Workbook

Sheet Frontsheet
E2: “Feeling better than ever?” – Are there any internally consistent responses to the challenge of ‘better than perfect’ human health enhancement technology in a health technology appraisal context?
E4: Economic model associated with PhD submission by candidate 32199200
E8: Introduction
F9: This economic model is a microsimulation of an enhancement vs non-enhancement scenario
F11: Navigation is done via the buttons on the left-hand column of every page, and occasionally by contextual buttons appearing on specific pages in order to drill down into e.g. transition tables
F13: In general, colour coding is used to indicate what each cell is for:
I15: Calculation - do not alter under any circumstances
... 10 more rows

Sheet Parameters
E2: “Feeling better than ever?” – Are there any internally consistent responses to the challenge of ‘better than perfect’ human health enhancement technology in a health technology appraisal context?
E4: Economic model associated with PhD submission by candidate 32199200
E8: Health system variables
F10: NHS Parameters
F11: UK Population | I11: 68000000
F12: NHS Budget (£billion) | I12: 140
F13: Population eligible | I13: 0.01231527094
F14: Starting age | I14: 18
F15: Costs age dependent? | I15: No
... 15 more rows

Sheet Treatment Trace
E2: “Feeling better than ever?” – Are there any internally consistent responses to the challenge of ‘better than perfect’ human health enhancement technology in a health technology appraisal context?
PA3: Red Queen | PB3: =Parameters!$K$90+((Parameters!$J$90-Parameters!$K$90)*(1-(SUM(COUNTIF(J:J,3),COUNTIF(J:J,5),COUNTIF(J:J,7))/(COUNTIF(J:J,">1"))))) -> 1.2 | PC3: =Parameters!$K$90+((Parameters!$J$90-Parameters!$K$90)*(1-(SUM(COUNTIF(K:K,3),COUNTIF(K:K,5),COUNTIF(K:K,7))/(COUNTIF(K:K,">1"))))) -> 0.86 | PD3: =Parameters!$K$90+((Parameters!$J$90-Parameters!$K$90)*(1-(SUM(COUNTIF(L:L,3),COUNTIF(L:L,5),COUNTIF(L:L,7))/(COUNTIF(L:L,">1"))))) -> 0.8633663366 | PE3: =Parameters!$K$90+((Parameters!$J$90-Parameters!$K$90)*(1-(SUM(COUNTIF(M:M,3),COUNTIF(M:M,5),COUNTIF(M:M,7))/(COUNTIF(M:M,">1"))))) -> 0.86 | PF3: =Parameters!$K$90+((Parameters!$J$90-Parameters!$K$90)*(1-(SUM(COUNTIF(N:N,3),COUNTIF(N:N,5),COUNTIF(N:N,7))/(COUNTIF(N:N,">1"))))) -> 0.8633663366 | PG3: =Parameters!$K$90+((Parameters!$J$90-Parameters!$K$90)*(1-(SUM(COUNTIF(O:O,3),COUNTIF(O:O,5),COUNTIF(O:O,7))/(COUNTIF(O:O,">1"))))) -> 0.86 | PH3: =Parameters!$K$90+((Parameters!$J$90-Parameters!$K$90)*(1-(SUM(COUNTIF(P:P,3),COUNTIF(P:P,5),COUNTIF(P:P,7))/(COUNTIF(P:P,">1"))))) -> 0.8633663366 | PI3: =Parameters!$K$90+((Parameters!$J$90-Parameters!$K$90)*(1-(SUM(COUNTIF(Q:Q,3),COUNTIF(Q:Q,5),COUNTIF(Q:Q,7))/(COUNTIF(Q:Q,">1"))))) -> 0.86 | PJ3: =Parameters!$K$90+((Parameters!$J$90-Parameters!$K$90)*(1-(SUM(COUNTIF(R:R,3),COUNTIF(R:R,5),COUNTIF(R:R,7))/(COUNTIF(R:R,">1"))))) -> 0.8633663366 | PK3: =Parameters!$K$90+((Parameters!$J$90-Parameters!$K$90)*(1-(SUM(COUNTIF(S:S,3),COUNTIF(S:S,5),COUNTIF(S:S,7))/(COUNTIF(S:S,">1"))))) -> 0.8633663366 | PL3: =Parameters!$K$90+((Parameters!$J$90-Parameters!$K$90)*(1-(SUM(COUNTIF(T:T,3),COUNTIF(T:T,5),COUNTIF(T:T,7))/(COUNTIF(T:T,">1"))))) -> 0.8633663366 | PM3: =Parameters!$K$90+((Parameters!$J$90-Parameters!$K$90)*(1-(SUM(COUNTIF(U:U,3),COUNTIF(U:U,5),COUNTIF(U:U,7))/(COUNTIF(U:U,">1"))))) -> 0.8633663366 | PN3: =Parameters!$K$90+((Parameters!$J$90-Parameters!$K$90)*(1-(SUM(COUNTIF(V:V,3),COUNTIF(V:V,5),COUNTIF(V:V,7))/(COUNTIF(V:V,">1"))))) -> 0.8633663366 | PO3: =Parameters!$K$90+((Parameters!$J$90-Parameters!$K$90)*(1-(SUM(COUNTIF(W:W,3),COUNTIF(W:W,5),COUNTIF(W:W,7))/(COUNTIF(W:W,">1"))))) -> 0.8633663366 | PP3: =Parameters!$K$90+((Parameters!$J$90-Parameters!$K$90)*(1-(SUM(COUNTIF(X:X,3),COUNTIF(X:X,5),COUNTIF(X:X,7))/(COUNTIF(X:X,">1"))))) -> 0.8633663366 | PQ3: =Parameters!$K$90+((Parameters!$J$90-Parameters!$K$90)*(1-(SUM(COUNTIF(Y:Y,3),COUNTIF(Y:Y,5),COUNTIF(Y:Y,7))/(COUNTIF(Y:Y,">1"))))) -> 0.8633663366 | PR3: =Parameters!$K$90+((Parameters!$J$90-Parameters!$K$90)*(1-(SUM(COUNTIF(Z:Z,3),COUNTIF(Z:Z,5),COUNTIF(Z:Z,7))/(COUNTIF(Z:Z,">1"))))) -> 0.8633663366 | PS3: =Parameters!$K$90+((Parameters!$J$90-Parameters!$K$90)*(1-(SUM(COUNTIF(AA:AA,3),COUNTIF(AA:AA,5),COUNTIF(AA:AA,7))/(COUNTIF(AA:AA,">1"))))) -> 0.8633663366 | PT3: =Parameters!$K$90+((Parameters!$J$90-Parameters!$K$90)*(1-(SUM(COUNTIF(AB:AB,3),COUNTIF(AB:AB,5),COUNTIF(AB:AB,7))/(COUNTIF(AB:AB,">1"))))) -> 0.8633663366 | PU3: =Parameters!$K$90+((Parameters!$J$90-Parameters!$K$90)*(1-(SUM(COUNTIF(AC:AC,3),COUNTIF(AC:AC,5),COUNTIF(AC:AC,7))/(COUNTIF(AC:AC,">1"))))) -> 0.8633663366 | PV3: =Parameters!$K$90+((Parameters!$J$90-Parameters!$K$90)*(1-(SUM(COUNTIF(AD:AD,3),COUNTIF(AD:AD,5),COUNTIF(AD:AD,7))/(COUNTIF(AD:AD,">1"))))) -> 0.8633663366 | PW3: =Parameters!$K$90+((Parameters!$J$90-Parameters!$K$90)*(1-(SUM(COUNTIF(AE:AE,3),COUNTIF(AE:AE,5),COUNTIF(AE:AE,7))/(COUNTIF(AE:AE,">1"))))) -> 0.8634 | PX3: =Parameters!$K$90+((Parameters!$J$90-Parameters!$K$90)*(1-(SUM(COUNTIF(AF:AF,3),COUNTIF(AF:AF,5),COUNTIF(AF:AF,7))/(COUNTIF(AF:AF,">1"))))) -> 0.8634 | PY3: =Parameters!$K$90+((Parameters!$J$90-Parameters!$K$90)*(1-(SUM(COUNTIF(AG:AG,3),COUNTIF(AG:AG,5),COUNTIF(AG:AG,7))/(COUNTIF(AG:AG,">1"))))) -> 0.8634 | PZ3: =Parameters!$K$90+((Parameters!$J$90-Parameters!$K$90)*(1-(SUM(COUNTIF(AH:AH,3),COUNTIF(AH:AH,5),COUNTIF(AH:AH,7))/(COUNTIF(AH:AH,">1"))))) -> 0.8634343434 | QA3: =Parameters!$K$90+((Parameters!$J$90-Parameters!$K$90)*(1-(SUM(COUNTIF(AI:AI,3),COUNTIF(AI:AI,5),COUNTIF(AI:AI,7))/(COUNTIF(AI:AI,">1"))))) -> 0.8634343434 | QB3: =Parameters!$K$90+((Parameters!$J$90-Parameters!$K$90)*(1-(SUM(COUNTIF(AJ:AJ,3),COUNTIF(AJ:AJ,5),COUNTIF(AJ:AJ,7))/(COUNTIF(AJ:AJ,">1"))))) -> 0.8634693878 | QC3: =Parameters!$K$90+((Parameters!$J$90-Parameters!$K$90)*(1-(SUM(COUNTIF(AK:AK,3),COUNTIF(AK:AK,5),COUNTIF(AK:AK,7))/(COUNTIF(AK:AK,">1"))))) -> 0.8634693878 | QD3: =Parameters!$K$90+((Parameters!$J$90-Parameters!$K$90)*(1-(SUM(COUNTIF(AL:AL,3),COUNTIF(AL:AL,5),COUNTIF(AL:AL,7))/(COUNTIF(AL:AL,">1"))))) -> 0.8634693878 | QE3: =Parameters!$K$90+((Parameters!$J$90-Parameters!$K$90)*(1-(SUM(COUNTIF(AM:AM,3),COUNTIF(AM:AM,5),COUNTIF(AM:AM,7))/(COUNTIF(AM:AM,">1"))))) -> 0.8634693878 | QF3: =Parameters!$K$90+((Parameters!$J$90-Parameters!$K$90)*(1-(SUM(COUNTIF(AN:AN,3),COUNTIF(AN:AN,5),COUNTIF(AN:AN,7))/(COUNTIF(AN:AN,">1"))))) -> 0.8634693878 | QG3: =Parameters!$K$90+((Parameters!$J$90-Parameters!$K$90)*(1-(SUM(COUNTIF(AO:AO,3),COUNTIF(AO:AO,5),COUNTIF(AO:AO,7))/(COUNTIF(AO:AO,">1"))))) -> 0.8634693878 | QH3: =Parameters!$K$90+((Parameters!$J$90-Parameters!$K$90)*(1-(SUM(COUNTIF(AP:AP,3),COUNTIF(AP:AP,5),COUNTIF(AP:AP,7))/(COUNTIF(AP:AP,">1"))))) -> 0.8634693878 | QI3: =Parameters!$K$90+((Parameters!$J$90-Parameters!$K$90)*(1-(SUM(COUNTIF(AQ:AQ,3),COUNTIF(AQ:AQ,5),COUNTIF(AQ:AQ,7))/(COUNTIF(AQ:AQ,">1"))))) -> 0.8634693878 | QJ3: =Parameters!$K$90+((Parameters!$J$90-Parameters!$K$90)*(1-(SUM(COUNTIF(AR:AR,3),COUNTIF(AR:AR,5),COUNTIF(AR:AR,7))/(COUNTIF(AR:AR,">1"))))) -> 0.8634693878 | QK3: =Parameters!$K$90+((Parameters!$J$90-Parameters!$K$90)*(1-(SUM(COUNTIF(AS:AS,3),COUNTIF(AS:AS,5),COUNTIF(AS:AS,7))/(COUNTIF(AS:AS,">1"))))) -> 0.8634693878 | QL3: =Parameters!$K$90+((Parameters!$J$90-Parameters!$K$90)*(1-(SUM(COUNTIF(AT:AT,3),COUNTIF(AT:AT,5),COUNTIF(AT:AT,7))/(COUNTIF(AT:AT,">1"))))) -> 0.8634693878 | QM3: =Parameters!$K$90+((Parameters!$J$90-Parameters!$K$90)*(1-(SUM(COUNTIF(AU:AU,3),COUNTIF(AU:AU,5),COUNTIF(AU:AU,7))/(COUNTIF(AU:AU,">1"))))) -> 0.8634693878 | QN3: =Parameters!$K$90+((Parameters!$J$90-Parameters!$K$90)*(1-(SUM(COUNTIF(AV:AV,3),COUNTIF(AV:AV,5),COUNTIF(AV:AV,7))/(COUNTIF(AV:AV,">1"))))) -> 0.8634693878 | QO3: =Parameters!$K$90+((Parameters!$J$90-Parameters!$K$90)*(1-(SUM(COUNTIF(AW:AW,3),COUNTIF(AW:AW,5),COUNTIF(AW:AW,7))/(COUNTIF(AW:AW,">1"))))) -> 0.8635051546 | QP3: =Parameters!$K$90+((Parameters!$J$90-Parameters!$K$90)*(1-(SUM(COUNTIF(AX:AX,3),COUNTIF(AX:AX,5),COUNTIF(AX:AX,7))/(COUNTIF(AX:AX,">1"))))) -> 0.8635789474 | QQ3: =Parameters!$K$90+((Parameters!$J$90-Parameters!$K$90)*(1-(SUM(COUNTIF(AY:AY,3),COUNTIF(AY:AY,5),COUNTIF(AY:AY,7))/(COUNTIF(AY:AY,">1"))))) -> 0.8636170213 | QR3: =Parameters!$K$90+((Parameters!$J$90-Parameters!$K$90)*(1-(SUM(COUNTIF(AZ:AZ,3),COUNTIF(AZ:AZ,5),COUNTIF(AZ:AZ,7))/(COUNTIF(AZ:AZ,">1"))))) -> 0.8636170213 | QS3: =Parameters!$K$90+((Parameters!$J$90-Parameters!$K$90)*(1-(SUM(COUNTIF(BA:BA,3),COUNTIF(BA:BA,5),COUNTIF(BA:BA,7))/(COUNTIF(BA:BA,">1"))))) -> 0.8636170213 | QT3: =Parameters!$K$90+((Parameters!$J$90-Parameters!$K$90)*(1-(SUM(COUNTIF(BB:BB,3),COUNTIF(BB:BB,5),COUNTIF(BB:BB,7))/(COUNTIF(BB:BB,">1"))))) -> 0.8636170213 | QU3: =Parameters!$K$90+((Parameters!$J$90-Parameters!$K$90)*(1-(SUM(COUNTIF(BC:BC,3),COUNTIF(BC:BC,5),COUNTIF(BC:BC,7))/(COUNTIF(BC:BC,">1"))))) -> 0.8636956522 | QV3: =Parameters!$K$90+((Parameters!$J$90-Parameters!$K$90)*(1-(SUM(COUNTIF(BD:BD,3),COUNTIF(BD:BD,5),COUNTIF(BD:BD,7))/(COUNTIF(BD:BD,">1"))))) -> 0.8636956522 | QW3: =Parameters!$K$90+((Parameters!$J$90-Parameters!$K$90)*(1-(SUM(COUNTIF(BE:BE,3),COUNTIF(BE:BE,5),COUNTIF(BE:BE,7))/(COUNTIF(BE:BE,">1"))))) -> 0.8636956522 | QX3: =Parameters!$K$90+((Parameters!$J$90-Parameters!$K$90)*(1-(SUM(COUNTIF(BF:BF,3),COUNTIF(BF:BF,5),COUNTIF(BF:BF,7))/(COUNTIF(BF:BF,">1"))))) -> 0.8637362637 | QY3: =Parameters!$K$90+((Parameters!$J$90-Parameters!$K$90)*(1-(SUM(COUNTIF(BG:BG,3),COUNTIF(BG:BG,5),COUNTIF(BG:BG,7))/(COUNTIF(BG:BG,">1"))))) -> 0.8637777778 | QZ3: =Parameters!$K$90+((Parameters!$J$90-Parameters!$K$90)*(1-(SUM(COUNTIF(BH:BH,3),COUNTIF(BH:BH,5),COUNTIF(BH:BH,7))/(COUNTIF(BH:BH,">1"))))) -> 0.8638636364 | RA3: =Parameters!$K$90+((Parameters!$J$90-Parameters!$K$90)*(1-(SUM(COUNTIF(BI:BI,3),COUNTIF(BI:BI,5),COUNTIF(BI:BI,7))/(COUNTIF(BI:BI,">1"))))) -> 0.8638636364 | RB3: =Parameters!$K$90+((Parameters!$J$90-Parameters!$K$90)*(1-(SUM(COUNTIF(BJ:BJ,3),COUNTIF(BJ:BJ,5),COUNTIF(BJ:BJ,7))/(COUNTIF(BJ:BJ,">1"))))) -> 0.8638636364 | RC3: =Parameters!$K$90+((Parameters!$J$90-Parameters!$K$90)*(1-(SUM(COUNTIF(BK:BK,3),COUNTIF(BK:BK,5),COUNTIF(BK:BK,7))/(COUNTIF(BK:BK,">1"))))) -> 0.863908046 | RD3: =Parameters!$K$90+((Parameters!$J$90-Parameters!$K$90)*(1-(SUM(COUNTIF(BL:BL,3),COUNTIF(BL:BL,5),COUNTIF(BL:BL,7))/(COUNTIF(BL:BL,">1"))))) -> 0.864 | RE3: =Parameters!$K$90+((Parameters!$J$90-Parameters!$K$90)*(1-(SUM(COUNTIF(BM:BM,3),COUNTIF(BM:BM,5),COUNTIF(BM:BM,7))/(COUNTIF(BM:BM,">1"))))) -> 0.864047619 | RF3: =Parameters!$K$90+((Parameters!$J$90-Parameters!$K$90)*(1-(SUM(COUNTIF(BN:BN,3),COUNTIF(BN:BN,5),COUNTIF(BN:BN,7))/(COUNTIF(BN:BN,">1"))))) -> 0.8641463415 | RG3: =Parameters!$K$90+((Parameters!$J$90-Parameters!$K$90)*(1-(SUM(COUNTIF(BO:BO,3),COUNTIF(BO:BO,5),COUNTIF(BO:BO,7))/(COUNTIF(BO:BO,">1"))))) -> 0.8641975309 | RH3: =Parameters!$K$90+((Parameters!$J$90-Parameters!$K$90)*(1-(SUM(COUNTIF(BP:BP,3),COUNTIF(BP:BP,5),COUNTIF(BP:BP,7))/(COUNTIF(BP:BP,">1"))))) -> 0.8643037975 | RI3: =Parameters!$K$90+((Parameters!$J$90-Parameters!$K$90)*(1-(SUM(COUNTIF(BQ:BQ,3),COUNTIF(BQ:BQ,5),COUNTIF(BQ:BQ,7))/(COUNTIF(BQ:BQ,">1"))))) -> 0.8643037975 | RJ3: =Parameters!$K$90+((Parameters!$J$90-Parameters!$K$90)*(1-(SUM(COUNTIF(BR:BR,3),COUNTIF(BR:BR,5),COUNTIF(BR:BR,7))/(COUNTIF(BR:BR,">1"))))) -> 0.8643037975 | RK3: =Parameters!$K$90+((Parameters!$J$90-Parameters!$K$90)*(1-(SUM(COUNTIF(BS:BS,3),COUNTIF(BS:BS,5),COUNTIF(BS:BS,7))/(COUNTIF(BS:BS,">1"))))) -> 0.8645333333 | RL3: =Parameters!$K$90+((Parameters!$J$90-Parameters!$K$90)*(1-(SUM(COUNTIF(BT:BT,3),COUNTIF(BT:BT,5),COUNTIF(BT:BT,7))/(COUNTIF(BT:BT,">1"))))) -> 0.8647887324 | RM3: =Parameters!$K$90+((Parameters!$J$90-Parameters!$K$90)*(1-(SUM(COUNTIF(BU:BU,3),COUNTIF(BU:BU,5),COUNTIF(BU:BU,7))/(COUNTIF(BU:BU,">1"))))) -> 0.865 | RN3: =Parameters!$K$90+((Parameters!$J$90-Parameters!$K$90)*(1-(SUM(COUNTIF(BV:BV,3),COUNTIF(BV:BV,5),COUNTIF(BV:BV,7))/(COUNTIF(BV:BV,">1"))))) -> 0.8653968254 | RO3: =Parameters!$K$90+((Parameters!$J$90-Parameters!$K$90)*(1-(SUM(COUNTIF(BW:BW,3),COUNTIF(BW:BW,5),COUNTIF(BW:BW,7))/(COUNTIF(BW:BW,">1"))))) -> 0.8656666667 | RP3: =Parameters!$K$90+((Parameters!$J$90-Parameters!$K$90)*(1-(SUM(COUNTIF(BX:BX,3),COUNTIF(BX:BX,5),COUNTIF(BX:BX,7))/(COUNTIF(BX:BX,">1"))))) -> 0.8661818182 | RQ3: =Parameters!$K$90+((Parameters!$J$90-Parameters!$K$90)*(1-(SUM(COUNTIF(BY:BY,3),COUNTIF(BY:BY,5),COUNTIF(BY:BY,7))/(COUNTIF(BY:BY,">1"))))) -> 0.8665384615 | RR3: =Parameters!$K$90+((Parameters!$J$90-Parameters!$K$90)*(1-(SUM(COUNTIF(BZ:BZ,3),COUNTIF(BZ:BZ,5),COUNTIF(BZ:BZ,7))/(COUNTIF(BZ:BZ,">1"))))) -> 0.8673913043 | RS3: =Parameters!$K$90+((Parameters!$J$90-Parameters!$K$90)*(1-(SUM(COUNTIF(CA:CA,3),COUNTIF(CA:CA,5),COUNTIF(CA:CA,7))/(COUNTIF(CA:CA,">1"))))) -> 0.8675555556 | RT3: =Parameters!$K$90+((Parameters!$J$90-Parameters!$K$90)*(1-(SUM(COUNTIF(CB:CB,3),COUNTIF(CB:CB,5),COUNTIF(CB:CB,7))/(COUNTIF(CB:CB,">1"))))) -> 0.8685 | RU3: =Parameters!$K$90+((Parameters!$J$90-Parameters!$K$90)*(1-(SUM(COUNTIF(CC:CC,3),COUNTIF(CC:CC,5),COUNTIF(CC:CC,7))/(COUNTIF(CC:CC,">1"))))) -> 0.8691891892 | RV3: =Parameters!$K$90+((Parameters!$J$90-Parameters!$K$90)*(1-(SUM(COUNTIF(CD:CD,3),COUNTIF(CD:CD,5),COUNTIF(CD:CD,7))/(COUNTIF(CD:CD,">1"))))) -> 0.8703030303 | RW3: =Parameters!$K$90+((Parameters!$J$90-Parameters!$K$90)*(1-(SUM(COUNTIF(CE:CE,3),COUNTIF(CE:CE,5),COUNTIF(CE:CE,7))/(COUNTIF(CE:CE,">1"))))) -> 0.8725925926 | RX3: =Parameters!$K$90+((Parameters!$J$90-Parameters!$K$90)*(1-(SUM(COUNTIF(CF:CF,3),COUNTIF(CF:CF,5),COUNTIF(CF:CF,7))/(COUNTIF(CF:CF,">1"))))) -> 0.8747826087 | RY3: =Parameters!$K$90+((Parameters!$J$90-Parameters!$K$90)*(1-(SUM(COUNTIF(CG:CG,3),COUNTIF(CG:CG,5),COUNTIF(CG:CG,7))/(COUNTIF(CG:CG,">1"))))) -> 0.877 | RZ3: =Parameters!$K$90+((Parameters!$J$90-Parameters!$K$90)*(1-(SUM(COUNTIF(CH:CH,3),COUNTIF(CH:CH,5),COUNTIF(CH:CH,7))/(COUNTIF(CH:CH,">1"))))) -> 0.88125 | SA3: =Parameters!$K$90+((Parameters!$J$90-Parameters!$K$90)*(1-(SUM(COUNTIF(CI:CI,3),COUNTIF(CI:CI,5),COUNTIF(CI:CI,7))/(COUNTIF(CI:CI,">1"))))) -> 0.894 | SB3: =Parameters!$K$90+((Parameters!$J$90-Parameters!$K$90)*(1-(SUM(COUNTIF(CJ:CJ,3),COUNTIF(CJ:CJ,5),COUNTIF(CJ:CJ,7))/(COUNTIF(CJ:CJ,">1"))))) -> 0.9025 | SC3: =Parameters!$K$90+((Parameters!$J$90-Parameters!$K$90)*(1-(SUM(COUNTIF(CK:CK,3),COUNTIF(CK:CK,5),COUNTIF(CK:CK,7))/(COUNTIF(CK:CK,">1"))))) -> 0.928 | SD3: =Parameters!$K$90+((Parameters!$J$90-Parameters!$K$90)*(1-(SUM(COUNTIF(CL:CL,3),COUNTIF(CL:CL,5),COUNTIF(CL:CL,7))/(COUNTIF(CL:CL,">1"))))) -> 0.9733333333 | SE3: =Parameters!$K$90+((Parameters!$J$90-Parameters!$K$90)*(1-(SUM(COUNTIF(CM:CM,3),COUNTIF(CM:CM,5),COUNTIF(CM:CM,7))/(COUNTIF(CM:CM,">1"))))) -> 0.9733333333 | SF3: =Parameters!$K$90+((Parameters!$J$90-Parameters!$K$90)*(1-(SUM(COUNTIF(CN:CN,3),COUNTIF(CN:CN,5),COUNTIF(CN:CN,7))/(COUNTIF(CN:CN,">1"))))) -> 1.2 | SG3: =Parameters!$K$90+((Parameters!$J$90-Parameters!$K$90)*(1-(SUM(COUNTIF(CO:CO,3),COUNTIF(CO:CO,5),COUNTIF(CO:CO,7))/(COUNTIF(CO:CO,">1"))))) -> 1.2 | SH3: =Parameters!$K$90+((Parameters!$J$90-Parameters!$K$90)*(1-(SUM(COUNTIF(CP:CP,3),COUNTIF(CP:CP,5),COUNTIF(CP:CP,7))/(COUNTIF(CP:CP,">1"))))) -> 1.2 | SI3: =Parameters!$K$90+((Parameters!$J$90-Parameters!$K$90)*(1-(SUM(COUNTIF(CQ:CQ,3),COUNTIF(CQ:CQ,5),COUNTIF(CQ:CQ,7))/(COUNTIF(CQ:CQ,">1"))))) -> 1.2 | SJ3: =Parameters!$K$90+((Parameters!$J$90-Parameters!$K$90)*(1-(SUM(COUNTIF(CR:CR,3),COUNTIF(CR:CR,5),COUNTIF(CR:CR,7))/(COUNTIF(CR:CR,">1"))))) -> 1.2 | SK3: =Parameters!$K$90+((Parameters!$J$90-Parameters!$K$90)*(1-(SUM(COUNTIF(CS:CS,3),COUNTIF(CS:CS,5),COUNTIF(CS:CS,7))/(COUNTIF(CS:CS,">1"))))) -> 1.2 | SL3: =Parameters!$K$90+((Parameters!$J$90-Parameters!$K$90)*(1-(SUM(COUNTIF(CT:CT,3),COUNTIF(CT:CT,5),COUNTIF(CT:CT,7))/(COUNTIF(CT:CT,">1"))))) -> 1.2 | SM3: =Parameters!$K$90+((Parameters!$J$90-Parameters!$K$90)*(1-(SUM(COUNTIF(CU:CU,3),COUNTIF(CU:CU,5),COUNTIF(CU:CU,7))/(COUNTIF(CU:CU,">1"))))) -> 1.2 | SN3: =Parameters!$K$90+((Parameters!$J$90-Parameters!$K$90)*(1-(SUM(COUNTIF(CV:CV,3),COUNTIF(CV:CV,5),COUNTIF(CV:CV,7))/(COUNTIF(CV:CV,">1"))))) -> 1.2 | SO3: =Parameters!$K$90+((Parameters!$J$90-Parameters!$K$90)*(1-(SUM(COUNTIF(CW:CW,3),COUNTIF(CW:CW,5),COUNTIF(CW:CW,7))/(COUNTIF(CW:CW,">1"))))) -> 1.2 | SP3: =Parameters!$K$90+((Parameters!$J$90-Parameters!$K$90)*(1-(SUM(COUNTIF(CX:CX,3),COUNTIF(CX:CX,5),COUNTIF(CX:CX,7))/(COUNTIF(CX:CX,">1"))))) -> 1.2 | SQ3: =Parameters!$K$90+((Parameters!$J$90-Parameters!$K$90)*(1-(SUM(COUNTIF(CY:CY,3),COUNTIF(CY:CY,5),COUNTIF(CY:CY,7))/(COUNTIF(CY:CY,">1"))))) -> 1.2 | SR3: =Parameters!$K$90+((Parameters!$J$90-Parameters!$K$90)*(1-(SUM(COUNTIF(CZ:CZ,3),COUNTIF(CZ:CZ,5),COUNTIF(CZ:CZ,7))/(COUNTIF(CZ:CZ,">1"))))) -> 1.2 | SS3: =Parameters!$K$90+((Parameters!$J$90-Parameters!$K$90)*(1-(SUM(COUNTIF(DA:DA,3),COUNTIF(DA:DA,5),COUNTIF(DA:DA,7))/(COUNTIF(DA:DA,">1"))))) -> 1.2 | ST3: =Parameters!$K$90+((Parameters!$J$90-Parameters!$K$90)*(1-(SUM(COUNTIF(DB:DB,3),COUNTIF(DB:DB,5),COUNTIF(DB:DB,7))/(COUNTIF(DB:DB,">1"))))) -> 1.2 | SU3: =Parameters!$K$90+((Parameters!$J$90-Parameters!$K$90)*(1-(SUM(COUNTIF(DC:DC,3),COUNTIF(DC:DC,5),COUNTIF(DC:DC,7))/(COUNTIF(DC:DC,">1"))))) -> 1.2 | SV3: =Parameters!$K$90+((Parameters!$J$90-Parameters!$K$90)*(1-(SUM(COUNTIF(DD:DD,3),COUNTIF(DD:DD,5),COUNTIF(DD:DD,7))/(COUNTIF(DD:DD,">1"))))) -> 1.2 | SW3: =Parameters!$K$90+((Parameters!$J$90-Parameters!$K$90)*(1-(SUM(COUNTIF(DE:DE,3),COUNTIF(DE:DE,5),COUNTIF(DE:DE,7))/(COUNTIF(DE:DE,">1"))))) -> 1.2 | SX3: =Parameters!$K$90+((Parameters!$J$90-Parameters!$K$90)*(1-(SUM(COUNTIF(DF:DF,3),COUNTIF(DF:DF,5),COUNTIF(DF:DF,7))/(COUNTIF(DF:DF,">1"))))) -> 1.2
E4: Economic model associated with PhD submission by candidate 32199200 | PA4: Hipster | PB4: =1-(((SUM(COUNTIF(J:J,3),COUNTIF(J:J,5),COUNTIF(J:J,7))/(COUNTIF(J:J,">1"))))*Parameters!$J$91) -> 1 | PC4: =1-(((SUM(COUNTIF(K:K,3),COUNTIF(K:K,5),COUNTIF(K:K,7))/(COUNTIF(K:K,">1"))))*Parameters!$J$91) -> -1 | PD4: =1-(((SUM(COUNTIF(L:L,3),COUNTIF(L:L,5),COUNTIF(L:L,7))/(COUNTIF(L:L,">1"))))*Parameters!$J$91) -> -0.9801980198 | PE4: =1-(((SUM(COUNTIF(M:M,3),COUNTIF(M:M,5),COUNTIF(M:M,7))/(COUNTIF(M:M,">1"))))*Parameters!$J$91) -> -1 | PF4: =1-(((SUM(COUNTIF(N:N,3),COUNTIF(N:N,5),COUNTIF(N:N,7))/(COUNTIF(N:N,">1"))))*Parameters!$J$91) -> -0.9801980198 | PG4: =1-(((SUM(COUNTIF(O:O,3),COUNTIF(O:O,5),COUNTIF(O:O,7))/(COUNTIF(O:O,">1"))))*Parameters!$J$91) -> -1 | PH4: =1-(((SUM(COUNTIF(P:P,3),COUNTIF(P:P,5),COUNTIF(P:P,7))/(COUNTIF(P:P,">1"))))*Parameters!$J$91) -> -0.9801980198 | PI4: =1-(((SUM(COUNTIF(Q:Q,3),COUNTIF(Q:Q,5),COUNTIF(Q:Q,7))/(COUNTIF(Q:Q,">1"))))*Parameters!$J$91) -> -1 | PJ4: =1-(((SUM(COUNTIF(R:R,3),COUNTIF(R:R,5),COUNTIF(R:R,7))/(COUNTIF(R:R,">1"))))*Parameters!$J$91) -> -0.9801980198 | PK4: =1-(((SUM(COUNTIF(S:S,3),COUNTIF(S:S,5),COUNTIF(S:S,7))/(COUNTIF(S:S,">1"))))*Parameters!$J$91) -> -0.9801980198 | PL4: =1-(((SUM(COUNTIF(T:T,3),COUNTIF(T:T,5),COUNTIF(T:T,7))/(COUNTIF(T:T,">1"))))*Parameters!$J$91) -> -0.9801980198 | PM4: =1-(((SUM(COUNTIF(U:U,3),COUNTIF(U:U,5),COUNTIF(U:U,7))/(COUNTIF(U:U,">1"))))*Parameters!$J$91) -> -0.9801980198 | PN4: =1-(((SUM(COUNTIF(V:V,3),COUNTIF(V:V,5),COUNTIF(V:V,7))/(COUNTIF(V:V,">1"))))*Parameters!$J$91) -> -0.9801980198 | PO4: =1-(((SUM(COUNTIF(W:W,3),COUNTIF(W:W,5),COUNTIF(W:W,7))/(COUNTIF(W:W,">1"))))*Parameters!$J$91) -> -0.9801980198 | PP4: =1-(((SUM(COUNTIF(X:X,3),COUNTIF(X:X,5),COUNTIF(X:X,7))/(COUNTIF(X:X,">1"))))*Parameters!$J$91) -> -0.9801980198 | PQ4: =1-(((SUM(COUNTIF(Y:Y,3),COUNTIF(Y:Y,5),COUNTIF(Y:Y,7))/(COUNTIF(Y:Y,">1"))))*Parameters!$J$91) -> -0.9801980198 | PR4: =1-(((SUM(COUNTIF(Z:Z,3),COUNTIF(Z:Z,5),COUNTIF(Z:Z,7))/(COUNTIF(Z:Z,">1"))))*Parameters!$J$91) -> -0.9801980198 | PS4: =1-(((SUM(COUNTIF(AA:AA,3),COUNTIF(AA:AA,5),COUNTIF(AA:AA,7))/(COUNTIF(AA:AA,">1"))))*Parameters!$J$91) -> -0.9801980198 | PT4: =1-(((SUM(COUNTIF(AB:AB,3),COUNTIF(AB:AB,5),COUNTIF(AB:AB,7))/(COUNTIF(AB:AB,">1"))))*Parameters!$J$91) -> -0.9801980198 | PU4: =1-(((SUM(COUNTIF(AC:AC,3),COUNTIF(AC:AC,5),COUNTIF(AC:AC,7))/(COUNTIF(AC:AC,">1"))))*Parameters!$J$91) -> -0.9801980198 | PV4: =1-(((SUM(COUNTIF(AD:AD,3),COUNTIF(AD:AD,5),COUNTIF(AD:AD,7))/(COUNTIF(AD:AD,">1"))))*Parameters!$J$91) -> -0.9801980198 | PW4: =1-(((SUM(COUNTIF(AE:AE,3),COUNTIF(AE:AE,5),COUNTIF(AE:AE,7))/(COUNTIF(AE:AE,">1"))))*Parameters!$J$91) -> -0.98 | PX4: =1-(((SUM(COUNTIF(AF:AF,3),COUNTIF(AF:AF,5),COUNTIF(AF:AF,7))/(COUNTIF(AF:AF,">1"))))*Parameters!$J$91) -> -0.98 | PY4: =1-(((SUM(COUNTIF(AG:AG,3),COUNTIF(AG:AG,5),COUNTIF(AG:AG,7))/(COUNTIF(AG:AG,">1"))))*Parameters!$J$91) -> -0.98 | PZ4: =1-(((SUM(COUNTIF(AH:AH,3),COUNTIF(AH:AH,5),COUNTIF(AH:AH,7))/(COUNTIF(AH:AH,">1"))))*Parameters!$J$91) -> -0.9797979798 | QA4: =1-(((SUM(COUNTIF(AI:AI,3),COUNTIF(AI:AI,5),COUNTIF(AI:AI,7))/(COUNTIF(AI:AI,">1"))))*Parameters!$J$91) -> -0.9797979798 | QB4: =1-(((SUM(COUNTIF(AJ:AJ,3),COUNTIF(AJ:AJ,5),COUNTIF(AJ:AJ,7))/(COUNTIF(AJ:AJ,">1"))))*Parameters!$J$91) -> -0.9795918367 | QC4: =1-(((SUM(COUNTIF(AK:AK,3),COUNTIF(AK:AK,5),COUNTIF(AK:AK,7))/(COUNTIF(AK:AK,">1"))))*Parameters!$J$91) -> -0.9795918367 | QD4: =1-(((SUM(COUNTIF(AL:AL,3),COUNTIF(AL:AL,5),COUNTIF(AL:AL,7))/(COUNTIF(AL:AL,">1"))))*Parameters!$J$91) -> -0.9795918367 | QE4: =1-(((SUM(COUNTIF(AM:AM,3),COUNTIF(AM:AM,5),COUNTIF(AM:AM,7))/(COUNTIF(AM:AM,">1"))))*Parameters!$J$91) -> -0.9795918367 | QF4: =1-(((SUM(COUNTIF(AN:AN,3),COUNTIF(AN:AN,5),COUNTIF(AN:AN,7))/(COUNTIF(AN:AN,">1"))))*Parameters!$J$91) -> -0.9795918367 | QG4: =1-(((SUM(COUNTIF(AO:AO,3),COUNTIF(AO:AO,5),COUNTIF(AO:AO,7))/(COUNTIF(AO:AO,">1"))))*Parameters!$J$91) -> -0.9795918367 | QH4: =1-(((SUM(COUNTIF(AP:AP,3),COUNTIF(AP:AP,5),COUNTIF(AP:AP,7))/(COUNTIF(AP:AP,">1"))))*Parameters!$J$91) -> -0.9795918367 | QI4: =1-(((SUM(COUNTIF(AQ:AQ,3),COUNTIF(AQ:AQ,5),COUNTIF(AQ:AQ,7))/(COUNTIF(AQ:AQ,">1"))))*Parameters!$J$91) -> -0.9795918367 | QJ4: =1-(((SUM(COUNTIF(AR:AR,3),COUNTIF(AR:AR,5),COUNTIF(AR:AR,7))/(COUNTIF(AR:AR,">1"))))*Parameters!$J$91) -> -0.9795918367 | QK4: =1-(((SUM(COUNTIF(AS:AS,3),COUNTIF(AS:AS,5),COUNTIF(AS:AS,7))/(COUNTIF(AS:AS,">1"))))*Parameters!$J$91) -> -0.9795918367 | QL4: =1-(((SUM(COUNTIF(AT:AT,3),COUNTIF(AT:AT,5),COUNTIF(AT:AT,7))/(COUNTIF(AT:AT,">1"))))*Parameters!$J$91) -> -0.9795918367 | QM4: =1-(((SUM(COUNTIF(AU:AU,3),COUNTIF(AU:AU,5),COUNTIF(AU:AU,7))/(COUNTIF(AU:AU,">1"))))*Parameters!$J$91) -> -0.9795918367 | QN4: =1-(((SUM(COUNTIF(AV:AV,3),COUNTIF(AV:AV,5),COUNTIF(AV:AV,7))/(COUNTIF(AV:AV,">1"))))*Parameters!$J$91) -> -0.9795918367 | QO4: =1-(((SUM(COUNTIF(AW:AW,3),COUNTIF(AW:AW,5),COUNTIF(AW:AW,7))/(COUNTIF(AW:AW,">1"))))*Parameters!$J$91) -> -0.9793814433 | QP4: =1-(((SUM(COUNTIF(AX:AX,3),COUNTIF(AX:AX,5),COUNTIF(AX:AX,7))/(COUNTIF(AX:AX,">1"))))*Parameters!$J$91) -> -0.9789473684 | QQ4: =1-(((SUM(COUNTIF(AY:AY,3),COUNTIF(AY:AY,5),COUNTIF(AY:AY,7))/(COUNTIF(AY:AY,">1"))))*Parameters!$J$91) -> -0.9787234043 | QR4: =1-(((SUM(COUNTIF(AZ:AZ,3),COUNTIF(AZ:AZ,5),COUNTIF(AZ:AZ,7))/(COUNTIF(AZ:AZ,">1"))))*Parameters!$J$91) -> -0.9787234043 | QS4: =1-(((SUM(COUNTIF(BA:BA,3),COUNTIF(BA:BA,5),COUNTIF(BA:BA,7))/(COUNTIF(BA:BA,">1"))))*Parameters!$J$91) -> -0.9787234043 | QT4: =1-(((SUM(COUNTIF(BB:BB,3),COUNTIF(BB:BB,5),COUNTIF(BB:BB,7))/(COUNTIF(BB:BB,">1"))))*Parameters!$J$91) -> -0.9787234043 | QU4: =1-(((SUM(COUNTIF(BC:BC,3),COUNTIF(BC:BC,5),COUNTIF(BC:BC,7))/(COUNTIF(BC:BC,">1"))))*Parameters!$J$91) -> -0.9782608696 | QV4: =1-(((SUM(COUNTIF(BD:BD,3),COUNTIF(BD:BD,5),COUNTIF(BD:BD,7))/(COUNTIF(BD:BD,">1"))))*Parameters!$J$91) -> -0.9782608696 | QW4: =1-(((SUM(COUNTIF(BE:BE,3),COUNTIF(BE:BE,5),COUNTIF(BE:BE,7))/(COUNTIF(BE:BE,">1"))))*Parameters!$J$91) -> -0.9782608696 | QX4: =1-(((SUM(COUNTIF(BF:BF,3),COUNTIF(BF:BF,5),COUNTIF(BF:BF,7))/(COUNTIF(BF:BF,">1"))))*Parameters!$J$91) -> -0.978021978 | QY4: =1-(((SUM(COUNTIF(BG:BG,3),COUNTIF(BG:BG,5),COUNTIF(BG:BG,7))/(COUNTIF(BG:BG,">1"))))*Parameters!$J$91) -> -0.9777777778 | QZ4: =1-(((SUM(COUNTIF(BH:BH,3),COUNTIF(BH:BH,5),COUNTIF(BH:BH,7))/(COUNTIF(BH:BH,">1"))))*Parameters!$J$91) -> -0.9772727273 | RA4: =1-(((SUM(COUNTIF(BI:BI,3),COUNTIF(BI:BI,5),COUNTIF(BI:BI,7))/(COUNTIF(BI:BI,">1"))))*Parameters!$J$91) -> -0.9772727273 | RB4: =1-(((SUM(COUNTIF(BJ:BJ,3),COUNTIF(BJ:BJ,5),COUNTIF(BJ:BJ,7))/(COUNTIF(BJ:BJ,">1"))))*Parameters!$J$91) -> -0.9772727273 | RC4: =1-(((SUM(COUNTIF(BK:BK,3),COUNTIF(BK:BK,5),COUNTIF(BK:BK,7))/(COUNTIF(BK:BK,">1"))))*Parameters!$J$91) -> -0.9770114943 | RD4: =1-(((SUM(COUNTIF(BL:BL,3),COUNTIF(BL:BL,5),COUNTIF(BL:BL,7))/(COUNTIF(BL:BL,">1"))))*Parameters!$J$91) -> -0.9764705882 | RE4: =1-(((SUM(COUNTIF(BM:BM,3),COUNTIF(BM:BM,5),COUNTIF(BM:BM,7))/(COUNTIF(BM:BM,">1"))))*Parameters!$J$91) -> -0.9761904762 | RF4: =1-(((SUM(COUNTIF(BN:BN,3),COUNTIF(BN:BN,5),COUNTIF(BN:BN,7))/(COUNTIF(BN:BN,">1"))))*Parameters!$J$91) -> -0.9756097561 | RG4: =1-(((SUM(COUNTIF(BO:BO,3),COUNTIF(BO:BO,5),COUNTIF(BO:BO,7))/(COUNTIF(BO:BO,">1"))))*Parameters!$J$91) -> -0.975308642 | RH4: =1-(((SUM(COUNTIF(BP:BP,3),COUNTIF(BP:BP,5),COUNTIF(BP:BP,7))/(COUNTIF(BP:BP,">1"))))*Parameters!$J$91) -> -0.9746835443 | RI4: =1-(((SUM(COUNTIF(BQ:BQ,3),COUNTIF(BQ:BQ,5),COUNTIF(BQ:BQ,7))/(COUNTIF(BQ:BQ,">1"))))*Parameters!$J$91) -> -0.9746835443 | RJ4: =1-(((SUM(COUNTIF(BR:BR,3),COUNTIF(BR:BR,5),COUNTIF(BR:BR,7))/(COUNTIF(BR:BR,">1"))))*Parameters!$J$91) -> -0.9746835443 | RK4: =1-(((SUM(COUNTIF(BS:BS,3),COUNTIF(BS:BS,5),COUNTIF(BS:BS,7))/(COUNTIF(BS:BS,">1"))))*Parameters!$J$91) -> -0.9733333333 | RL4: =1-(((SUM(COUNTIF(BT:BT,3),COUNTIF(BT:BT,5),COUNTIF(BT:BT,7))/(COUNTIF(BT:BT,">1"))))*Parameters!$J$91) -> -0.9718309859 | RM4: =1-(((SUM(COUNTIF(BU:BU,3),COUNTIF(BU:BU,5),COUNTIF(BU:BU,7))/(COUNTIF(BU:BU,">1"))))*Parameters!$J$91) -> -0.9705882353 | RN4: =1-(((SUM(COUNTIF(BV:BV,3),COUNTIF(BV:BV,5),COUNTIF(BV:BV,7))/(COUNTIF(BV:BV,">1"))))*Parameters!$J$91) -> -0.9682539683 | RO4: =1-(((SUM(COUNTIF(BW:BW,3),COUNTIF(BW:BW,5),COUNTIF(BW:BW,7))/(COUNTIF(BW:BW,">1"))))*Parameters!$J$91) -> -0.9666666667 | RP4: =1-(((SUM(COUNTIF(BX:BX,3),COUNTIF(BX:BX,5),COUNTIF(BX:BX,7))/(COUNTIF(BX:BX,">1"))))*Parameters!$J$91) -> -0.9636363636 | RQ4: =1-(((SUM(COUNTIF(BY:BY,3),COUNTIF(BY:BY,5),COUNTIF(BY:BY,7))/(COUNTIF(BY:BY,">1"))))*Parameters!$J$91) -> -0.9615384615 | RR4: =1-(((SUM(COUNTIF(BZ:BZ,3),COUNTIF(BZ:BZ,5),COUNTIF(BZ:BZ,7))/(COUNTIF(BZ:BZ,">1"))))*Parameters!$J$91) -> -0.9565217391 | RS4: =1-(((SUM(COUNTIF(CA:CA,3),COUNTIF(CA:CA,5),COUNTIF(CA:CA,7))/(COUNTIF(CA:CA,">1"))))*Parameters!$J$91) -> -0.9555555556 | RT4: =1-(((SUM(COUNTIF(CB:CB,3),COUNTIF(CB:CB,5),COUNTIF(CB:CB,7))/(COUNTIF(CB:CB,">1"))))*Parameters!$J$91) -> -0.95 | RU4: =1-(((SUM(COUNTIF(CC:CC,3),COUNTIF(CC:CC,5),COUNTIF(CC:CC,7))/(COUNTIF(CC:CC,">1"))))*Parameters!$J$91) -> -0.9459459459 | RV4: =1-(((SUM(COUNTIF(CD:CD,3),COUNTIF(CD:CD,5),COUNTIF(CD:CD,7))/(COUNTIF(CD:CD,">1"))))*Parameters!$J$91) -> -0.9393939394 | RW4: =1-(((SUM(COUNTIF(CE:CE,3),COUNTIF(CE:CE,5),COUNTIF(CE:CE,7))/(COUNTIF(CE:CE,">1"))))*Parameters!$J$91) -> -0.9259259259 | RX4: =1-(((SUM(COUNTIF(CF:CF,3),COUNTIF(CF:CF,5),COUNTIF(CF:CF,7))/(COUNTIF(CF:CF,">1"))))*Parameters!$J$91) -> -0.9130434783 | RY4: =1-(((SUM(COUNTIF(CG:CG,3),COUNTIF(CG:CG,5),COUNTIF(CG:CG,7))/(COUNTIF(CG:CG,">1"))))*Parameters!$J$91) -> -0.9 | RZ4: =1-(((SUM(COUNTIF(CH:CH,3),COUNTIF(CH:CH,5),COUNTIF(CH:CH,7))/(COUNTIF(CH:CH,">1"))))*Parameters!$J$91) -> -0.875 | SA4: =1-(((SUM(COUNTIF(CI:CI,3),COUNTIF(CI:CI,5),COUNTIF(CI:CI,7))/(COUNTIF(CI:CI,">1"))))*Parameters!$J$91) -> -0.8 | SB4: =1-(((SUM(COUNTIF(CJ:CJ,3),COUNTIF(CJ:CJ,5),COUNTIF(CJ:CJ,7))/(COUNTIF(CJ:CJ,">1"))))*Parameters!$J$91) -> -0.75 | SC4: =1-(((SUM(COUNTIF(CK:CK,3),COUNTIF(CK:CK,5),COUNTIF(CK:CK,7))/(COUNTIF(CK:CK,">1"))))*Parameters!$J$91) -> -0.6 | SD4: =1-(((SUM(COUNTIF(CL:CL,3),COUNTIF(CL:CL,5),COUNTIF(CL:CL,7))/(COUNTIF(CL:CL,">1"))))*Parameters!$J$91) -> -0.3333333333 | SE4: =1-(((SUM(COUNTIF(CM:CM,3),COUNTIF(CM:CM,5),COUNTIF(CM:CM,7))/(COUNTIF(CM:CM,">1"))))*Parameters!$J$91) -> -0.3333333333 | SF4: =1-(((SUM(COUNTIF(CN:CN,3),COUNTIF(CN:CN,5),COUNTIF(CN:CN,7))/(COUNTIF(CN:CN,">1"))))*Parameters!$J$91) -> 1 | SG4: =1-(((SUM(COUNTIF(CO:CO,3),COUNTIF(CO:CO,5),COUNTIF(CO:CO,7))/(COUNTIF(CO:CO,">1"))))*Parameters!$J$91) -> 1 | SH4: =1-(((SUM(COUNTIF(CP:CP,3),COUNTIF(CP:CP,5),COUNTIF(CP:CP,7))/(COUNTIF(CP:CP,">1"))))*Parameters!$J$91) -> 1 | SI4: =1-(((SUM(COUNTIF(CQ:CQ,3),COUNTIF(CQ:CQ,5),COUNTIF(CQ:CQ,7))/(COUNTIF(CQ:CQ,">1"))))*Parameters!$J$91) -> 1 | SJ4: =1-(((SUM(COUNTIF(CR:CR,3),COUNTIF(CR:CR,5),COUNTIF(CR:CR,7))/(COUNTIF(CR:CR,">1"))))*Parameters!$J$91) -> 1 | SK4: =1-(((SUM(COUNTIF(CS:CS,3),COUNTIF(CS:CS,5),COUNTIF(CS:CS,7))/(COUNTIF(CS:CS,">1"))))*Parameters!$J$91) -> 1 | SL4: =1-(((SUM(COUNTIF(CT:CT,3),COUNTIF(CT:CT,5),COUNTIF(CT:CT,7))/(COUNTIF(CT:CT,">1"))))*Parameters!$J$91) -> 1 | SM4: =1-(((SUM(COUNTIF(CU:CU,3),COUNTIF(CU:CU,5),COUNTIF(CU:CU,7))/(COUNTIF(CU:CU,">1"))))*Parameters!$J$91) -> 1 | SN4: =1-(((SUM(COUNTIF(CV:CV,3),COUNTIF(CV:CV,5),COUNTIF(CV:CV,7))/(COUNTIF(CV:CV,">1"))))*Parameters!$J$91) -> 1 | SO4: =1-(((SUM(COUNTIF(CW:CW,3),COUNTIF(CW:CW,5),COUNTIF(CW:CW,7))/(COUNTIF(CW:CW,">1"))))*Parameters!$J$91) -> 1 | SP4: =1-(((SUM(COUNTIF(CX:CX,3),COUNTIF(CX:CX,5),COUNTIF(CX:CX,7))/(COUNTIF(CX:CX,">1"))))*Parameters!$J$91) -> 1 | SQ4: =1-(((SUM(COUNTIF(CY:CY,3),COUNTIF(CY:CY,5),COUNTIF(CY:CY,7))/(COUNTIF(CY:CY,">1"))))*Parameters!$J$91) -> 1 | SR4: =1-(((SUM(COUNTIF(CZ:CZ,3),COUNTIF(CZ:CZ,5),COUNTIF(CZ:CZ,7))/(COUNTIF(CZ:CZ,">1"))))*Parameters!$J$91) -> 1 | SS4: =1-(((SUM(COUNTIF(DA:DA,3),COUNTIF(DA:DA,5),COUNTIF(DA:DA,7))/(COUNTIF(DA:DA,">1"))))*Parameters!$J$91) -> 1 | ST4: =1-(((SUM(COUNTIF(DB:DB,3),COUNTIF(DB:DB,5),COUNTIF(DB:DB,7))/(COUNTIF(DB:DB,">1"))))*Parameters!$J$91) -> 1 | SU4: =1-(((SUM(COUNTIF(DC:DC,3),COUNTIF(DC:DC,5),COUNTIF(DC:DC,7))/(COUNTIF(DC:DC,">1"))))*Parameters!$J$91) -> 1 | SV4: =1-(((SUM(COUNTIF(DD:DD,3),COUNTIF(DD:DD,5),COUNTIF(DD:DD,7))/(COUNTIF(DD:DD,">1"))))*Parameters!$J$91) -> 1 | SW4: =1-(((SUM(COUNTIF(DE:DE,3),COUNTIF(DE:DE,5),COUNTIF(DE:DE,7))/(COUNTIF(DE:DE,">1"))))*Parameters!$J$91) -> 1 | SX4: =1-(((SUM(COUNTIF(DF:DF,3),COUNTIF(DF:DF,5),COUNTIF(DF:DF,7))/(COUNTIF(DF:DF,">1"))))*Parameters!$J$91) -> 1
LE7: Undiscounted | AET7: Totals
E8: Patient initialisation data | J8: Initialisation | K8: Patient transition probs | DI8: COST Discount Multiplier | HG8: QALY Discount Multiplier | LE8: Costs - Undiscounted | PC8: QALYs - Undiscounted | TA8: <1 QoL Only QALYs - Undiscounted | WY8: Taper QoL - Undiscounted | AAW8: Externalities - Undiscounted | AET8: Undiscounted | AEZ8: Discounted
E9: Patient ID | F9: Patient Archetype | G9: Name | H9: Age | J9: 0 | K9: 1 | L9: 2 | M9: 3 | N9: 4 | O9: 5 | P9: 6 | Q9: 7 | R9: 8 | S9: 9 | T9: 10 | U9: 11 | V9: 12 | W9: 13 | X9: 14 | Y9: 15 | Z9: 16 | AA9: 17 | AB9: 18 | AC9: 19 | AD9: 20 | AE9: 21 | AF9: 22 | AG9: 23 | AH9: 24 | AI9: 25 | AJ9: 26 | AK9: 27 | AL9: 28 | AM9: 29 | AN9: 30 | AO9: 31 | AP9: 32 | AQ9: 33 | AR9: 34 | AS9: 35 | AT9: 36 | AU9: 37 | AV9: 38 | AW9: 39 | AX9: 40 | AY9: 41 | AZ9: 42 | BA9: 43 | BB9: 44 | BC9: 45 | BD9: 46 | BE9: 47 | BF9: 48 | BG9: 49 | BH9: 50 | BI9: 51 | BJ9: 52 | BK9: 53 | BL9: 54 | BM9: 55 | BN9: 56 | BO9: 57 | BP9: 58 | BQ9: 59 | BR9: 60 | BS9: 61 | BT9: 62 | BU9: 63 | BV9: 64 | BW9: 65 | BX9: 66 | BY9: 67 | BZ9: 68 | CA9: 69 | CB9: 70 | CC9: 71 | CD9: 72 | CE9: 73 | CF9: 74 | CG9: 75 | CH9: 76 | CI9: 77 | CJ9: 78 | CK9: 79 | CL9: 80 | CM9: 81 | CN9: 82 | CO9: 83 | CP9: 84 | CQ9: 85 | CR9: 86 | CS9: 87 | CT9: 88 | CU9: 89 | CV9: 90 | CW9: 91 | CX9: 92 | CY9: 93 | CZ9: 94 | DA9: 95 | DB9: 96 | DC9: 97 | DD9: 98 | DE9: 99 | DF9: 100 | DH9: 0 | DI9: 1 | DJ9: 2 | DK9: 3 | DL9: 4 | DM9: 5 | DN9: 6 | DO9: 7 | DP9: 8 | DQ9: 9 | DR9: 10 | DS9: 11 | DT9: 12 | DU9: 13 | DV9: 14 | DW9: 15 | DX9: 16 | DY9: 17 | DZ9: 18 | EA9: 19 | EB9: 20 | EC9: 21 | ED9: 22 | EE9: 23 | EF9: 24 | EG9: 25 | EH9: 26 | EI9: 27 | EJ9: 28 | EK9: 29 | EL9: 30 | EM9: 31 | EN9: 32 | EO9: 33 | EP9: 34 | EQ9: 35 | ER9: 36 | ES9: 37 | ET9: 38 | EU9: 39 | EV9: 40 | EW9: 41 | EX9: 42 | EY9: 43 | EZ9: 44 | FA9: 45 | FB9: 46 | FC9: 47 | FD9: 48 | FE9: 49 | FF9: 50 | FG9: 51 | FH9: 52 | FI9: 53 | FJ9: 54 | FK9: 55 | FL9: 56 | FM9: 57 | FN9: 58 | FO9: 59 | FP9: 60 | FQ9: 61 | FR9: 62 | FS9: 63 | FT9: 64 | FU9: 65 | FV9: 66 | FW9: 67 | FX9: 68 | FY9: 69 | FZ9: 70 | GA9: 71 | GB9: 72 | GC9: 73 | GD9: 74 | GE9: 75 | GF9: 76 | GG9: 77 | GH9: 78 | GI9: 79 | GJ9: 80 | GK9: 81 | GL9: 82 | GM9: 83 | GN9: 84 | GO9: 85 | GP9: 86 | GQ9: 87 | GR9: 88 | GS9: 89 | GT9: 90 | GU9: 91 | GV9: 92 | GW9: 93 | GX9: 94 | GY9: 95 | GZ9: 96 | HA9: 97 | HB9: 98 | HC9: 99 | HD9: 100 | HF9: 0 | HG9: 1 | HH9: 2 | HI9: 3 | HJ9: 4 | HK9: 5 | HL9: 6 | HM9: 7 | HN9: 8 | HO9: 9 | HP9: 10 | HQ9: 11 | HR9: 12 | HS9: 13 | HT9: 14 | HU9: 15 | HV9: 16 | HW9: 17 | HX9: 18 | HY9: 19 | HZ9: 20 | IA9: 21 | IB9: 22 | IC9: 23 | ID9: 24 | IE9: 25 | IF9: 26 | IG9: 27 | IH9: 28 | II9: 29 | IJ9: 30 | IK9: 31 | IL9: 32 | IM9: 33 | IN9: 34 | IO9: 35 | IP9: 36 | IQ9: 37 | IR9: 38 | IS9: 39 | IT9: 40 | IU9: 41 | IV9: 42 | IW9: 43 | IX9: 44 | IY9: 45 | IZ9: 46 | JA9: 47 | JB9: 48 | JC9: 49 | JD9: 50 | JE9: 51 | JF9: 52 | JG9: 53 | JH9: 54 | JI9: 55 | JJ9: 56 | JK9: 57 | JL9: 58 | JM9: 59 | JN9: 60 | JO9: 61 | JP9: 62 | JQ9: 63 | JR9: 64 | JS9: 65 | JT9: 66 | JU9: 67 | JV9: 68 | JW9: 69 | JX9: 70 | JY9: 71 | JZ9: 72 | KA9: 73 | KB9: 74 | KC9: 75 | KD9: 76 | KE9: 77 | KF9: 78 | KG9: 79 | KH9: 80 | KI9: 81 | KJ9: 82 | KK9: 83 | KL9: 84 | KM9: 85 | KN9: 86 | KO9: 87 | KP9: 88 | KQ9: 89 | KR9: 90 | KS9: 91 | KT9: 92 | KU9: 93 | KV9: 94 | KW9: 95 | KX9: 96 | KY9: 97 | KZ9: 98 | LA9: 99 | LB9: 100 | LD9: 0 | LE9: 1 | LF9: 2 | LG9: 3 | LH9: 4 | LI9: 5 | LJ9: 6 | LK9: 7 | LL9: 8 | LM9: 9 | LN9: 10 | LO9: 11 | LP9: 12 | LQ9: 13 | LR9: 14 | LS9: 15 | LT9: 16 | LU9: 17 | LV9: 18 | LW9: 19 | LX9: 20 | LY9: 21 | LZ9: 22 | MA9: 23 | MB9: 24 | MC9: 25 | MD9: 26 | ME9: 27 | MF9: 28 | MG9: 29 | MH9: 30 | MI9: 31 | MJ9: 32 | MK9: 33 | ML9: 34 | MM9: 35 | MN9: 36 | MO9: 37 | MP9: 38 | MQ9: 39 | MR9: 40 | MS9: 41 | MT9: 42 | MU9: 43 | MV9: 44 | MW9: 45 | MX9: 46 | MY9: 47 | MZ9: 48 | NA9: 49 | NB9: 50 | NC9: 51 | ND9: 52 | NE9: 53 | NF9: 54 | NG9: 55 | NH9: 56 | NI9: 57 | NJ9: 58 | NK9: 59 | NL9: 60 | NM9: 61 | NN9: 62 | NO9: 63 | NP9: 64 | NQ9: 65 | NR9: 66 | NS9: 67 | NT9: 68 | NU9: 69 | NV9: 70 | NW9: 71 | NX9: 72 | NY9: 73 | NZ9: 74 | OA9: 75 | OB9: 76 | OC9: 77 | OD9: 78 | OE9: 79 | OF9: 80 | OG9: 81 | OH9: 82 | OI9: 83 | OJ9: 84 | OK9: 85 | OL9: 86 | OM9: 87 | ON9: 88 | OO9: 89 | OP9: 90 | OQ9: 91 | OR9: 92 | OS9: 93 | OT9: 94 | OU9: 95 | OV9: 96 | OW9: 97 | OX9: 98 | OY9: 99 | OZ9: 100 | PB9: 0 | PC9: 1 | PD9: 2 | PE9: 3 | PF9: 4 | PG9: 5 | PH9: 6 | PI9: 7 | PJ9: 8 | PK9: 9 | PL9: 10 | PM9: 11 | PN9: 12 | PO9: 13 | PP9: 14 | PQ9: 15 | PR9: 16 | PS9: 17 | PT9: 18 | PU9: 19 | PV9: 20 | PW9: 21 | PX9: 22 | PY9: 23 | PZ9: 24 | QA9: 25 | QB9: 26 | QC9: 27 | QD9: 28 | QE9: 29 | QF9: 30 | QG9: 31 | QH9: 32 | QI9: 33 | QJ9: 34 | QK9: 35 | QL9: 36 | QM9: 37 | QN9: 38 | QO9: 39 | QP9: 40 | QQ9: 41 | QR9: 42 | QS9: 43 | QT9: 44 | QU9: 45 | QV9: 46 | QW9: 47 | QX9: 48 | QY9: 49 | QZ9: 50 | RA9: 51 | RB9: 52 | RC9: 53 | RD9: 54 | RE9: 55 | RF9: 56 | RG9: 57 | RH9: 58 | RI9: 59 | RJ9: 60 | RK9: 61 | RL9: 62 | RM9: 63 | RN9: 64 | RO9: 65 | RP9: 66 | RQ9: 67 | RR9: 68 | RS9: 69 | RT9: 70 | RU9: 71 | RV9: 72 | RW9: 73 | RX9: 74 | RY9: 75 | RZ9: 76 | SA9: 77 | SB9: 78 | SC9: 79 | SD9: 80 | SE9: 81 | SF9: 82 | SG9: 83 | SH9: 84 | SI9: 85 | SJ9: 86 | SK9: 87 | SL9: 88 | SM9: 89 | SN9: 90 | SO9: 91 | SP9: 92 | SQ9: 93 | SR9: 94 | SS9: 95 | ST9: 96 | SU9: 97 | SV9: 98 | SW9: 99 | SX9: 100 | SZ9: 0 | TA9: 1 | TB9: 2 | TC9: 3 | TD9: 4 | TE9: 5 | TF9: 6 | TG9: 7 | TH9: 8 | TI9: 9 | TJ9: 10 | TK9: 11 | TL9: 12 | TM9: 13 | TN9: 14 | TO9: 15 | TP9: 16 | TQ9: 17 | TR9: 18 | TS9: 19 | TT9: 20 | TU9: 21 | TV9: 22 | TW9: 23 | TX9: 24 | TY9: 25 | TZ9: 26 | UA9: 27 | UB9: 28 | UC9: 29 | UD9: 30 | UE9: 31 | UF9: 32 | UG9: 33 | UH9: 34 | UI9: 35 | UJ9: 36 | UK9: 37 | UL9: 38 | UM9: 39 | UN9: 40 | UO9: 41 | UP9: 42 | UQ9: 43 | UR9: 44 | US9: 45 | UT9: 46 | UU9: 47 | UV9: 48 | UW9: 49 | UX9: 50 | UY9: 51 | UZ9: 52 | VA9: 53 | VB9: 54 | VC9: 55 | VD9: 56 | VE9: 57 | VF9: 58 | VG9: 59 | VH9: 60 | VI9: 61 | VJ9: 62 | VK9: 63 | VL9: 64 | VM9: 65 | VN9: 66 | VO9: 67 | VP9: 68 | VQ9: 69 | VR9: 70 | VS9: 71 | VT9: 72 | VU9: 73 | VV9: 74 | VW9: 75 | VX9: 76 | VY9: 77 | VZ9: 78 | WA9: 79 | WB9: 80 | WC9: 81 | WD9: 82 | WE9: 83 | WF9: 84 | WG9: 85 | WH9: 86 | WI9: 87 | WJ9: 88 | WK9: 89 | WL9: 90 | WM9: 91 | WN9: 92 | WO9: 93 | WP9: 94 | WQ9: 95 | WR9: 96 | WS9: 97 | WT9: 98 | WU9: 99 | WV9: 100 | WX9: 0 | WY9: 1 | WZ9: 2 | XA9: 3 | XB9: 4 | XC9: 5 | XD9: 6 | XE9: 7 | XF9: 8 | XG9: 9 | XH9: 10 | XI9: 11 | XJ9: 12 | XK9: 13 | XL9: 14 | XM9: 15 | XN9: 16 | XO9: 17 | XP9: 18 | XQ9: 19 | XR9: 20 | XS9: 21 | XT9: 22 | XU9: 23 | XV9: 24 | XW9: 25 | XX9: 26 | XY9: 27 | XZ9: 28 | YA9: 29 | YB9: 30 | YC9: 31 | YD9: 32 | YE9: 33 | YF9: 34 | YG9: 35 | YH9: 36 | YI9: 37 | YJ9: 38 | YK9: 39 | YL9: 40 | YM9: 41 | YN9: 42 | YO9: 43 | YP9: 44 | YQ9: 45 | YR9: 46 | YS9: 47 | YT9: 48 | YU9: 49 | YV9: 50 | YW9: 51 | YX9: 52 | YY9: 53 | YZ9: 54 | ZA9: 55 | ZB9: 56 | ZC9: 57 | ZD9: 58 | ZE9: 59 | ZF9: 60 | ZG9: 61 | ZH9: 62 | ZI9: 63 | ZJ9: 64 | ZK9: 65 | ZL9: 66 | ZM9: 67 | ZN9: 68 | ZO9: 69 | ZP9: 70 | ZQ9: 71 | ZR9: 72 | ZS9: 73 | ZT9: 74 | ZU9: 75 | ZV9: 76 | ZW9: 77 | ZX9: 78 | ZY9: 79 | ZZ9: 80 | AAA9: 81 | AAB9: 82 | AAC9: 83 | AAD9: 84 | AAE9: 85 | AAF9: 86 | AAG9: 87 | AAH9: 88 | AAI9: 89 | AAJ9: 90 | AAK9: 91 | AAL9: 92 | AAM9: 93 | AAN9: 94 | AAO9: 95 | AAP9: 96 | AAQ9: 97 | AAR9: 98 | AAS9: 99 | AAT9: 100 | AAV9: 0 | AAW9: 1 | AAX9: 2 | AAY9: 3 | AAZ9: 4 | ABA9: 5 | ABB9: 6 | ABC9: 7 | ABD9: 8 | ABE9: 9 | ABF9: 10 | ABG9: 11 | ABH9: 12 | ABI9: 13 | ABJ9: 14 | ABK9: 15 | ABL9: 16 | ABM9: 17 | ABN9: 18 | ABO9: 19 | ABP9: 20 | ABQ9: 21 | ABR9: 22 | ABS9: 23 | ABT9: 24 | ABU9: 25 | ABV9: 26 | ABW9: 27 | ABX9: 28 | ABY9: 29 | ABZ9: 30 | ACA9: 31 | ACB9: 32 | ACC9: 33 | ACD9: 34 | ACE9: 35 | ACF9: 36 | ACG9: 37 | ACH9: 38 | ACI9: 39 | ACJ9: 40 | ACK9: 41 | ACL9: 42 | ACM9: 43 | ACN9: 44 | ACO9: 45 | ACP9: 46 | ACQ9: 47 | ACR9: 48 | ACS9: 49 | ACT9: 50 | ACU9: 51 | ACV9: 52 | ACW9: 53 | ACX9: 54 | ACY9: 55 | ACZ9: 56 | ADA9: 57 | ADB9: 58 | ADC9: 59 | ADD9: 60 | ADE9: 61 | ADF9: 62 | ADG9: 63 | ADH9: 64 | ADI9: 65 | ADJ9: 66 | ADK9: 67 | ADL9: 68 | ADM9: 69 | ADN9: 70 | ADO9: 71 | ADP9: 72 | ADQ9: 73 | ADR9: 74 | ADS9: 75 | ADT9: 76 | ADU9: 77 | ADV9: 78 | ADW9: 79 | ADX9: 80 | ADY9: 81 | ADZ9: 82 | AEA9: 83 | AEB9: 84 | AEC9: 85 | AED9: 86 | AEE9: 87 | AEF9: 88 | AEG9: 89 | AEH9: 90 | AEI9: 91 | AEJ9: 92 | AEK9: 93 | AEL9: 94 | AEM9: 95 | AEN9: 96 | AEO9: 97 | AEP9: 98 | AEQ9: 99 | AER9: 100 | AET9: Costs | AEU9: QALYs | AEV9: Externalities | AEW9: <1 QoL | AEX9: TaperQoL | AEY9: Life Years | AEZ9: Costs | AFA9: QALYs | AFB9: Externalities | AFC9: <1 QoL | AFD9: TaperQoL | AFF9: Total good | AFG9: Harmed? | AFH9: Rank | AFI9: Rawls | AFJ9: SII | AFK9: Idealised curve | AFL9: Actual curve | AFM9: Area under cumulative concentration curve | AFN9: https://healtheconomicsreview.biomedcentral.com/articles/10.1186/s13561-014-0010-x
E10: 1 | F10: =IF(RNG!F10<Parameters!$I$105,1,IF(RNG!F10<Parameters!$J$105,2,IF(RNG!F10<Parameters!$K$105,3,IF(RNG!F10<Parameters!$L$105,4,IF(RNG!F10<Parameters!$M$105,5,IF(RNG!F10<Parameters!$N$105,6,IF(RNG!F10<Parameters!$O$105,7,IF(RNG!F10<Parameters!$P$105,8,IF(RNG!F10<Parameters!$Q$105,9,IF(RNG!F10<Parameters!$R$105,10,IF(RNG!F10<Parameters!$S$105,11,IF(RNG!F10<Parameters!$T$105,12,IF(RNG!F10<Parameters!$U$105,13,IF(RNG!F10<Parameters!$V$105,14,IF(RNG!F10<Parameters!$W$105,15,IF(RNG!F10<Parameters!$X$105,16,IF(RNG!F10<Parameters!$Y$105,17,IF(RNG!F10<Parameters!$Z$105,18,IF(RNG!F10<Parameters!$AA$105,19,IF(RNG!F10<Parameters!$AB$105,20,ERROR)))))))))))))))))))) -> 2 | G10: =HLOOKUP(F10,Parameters!$I$102:$AB$103,2,0) -> Standard | H10: =Parameters!$I$14 -> 18 | J10: =IF(HLOOKUP(F10,Parameters!$I$102:$AB$195,7,0)=1,1,IF(HLOOKUP(F10,Parameters!$I$102:$AB$195,16,0)=1,2,IF(HLOOKUP(F10,Parameters!$I$102:$AB$195,25,0)=1,3,IF(HLOOKUP(F10,Parameters!$I$102:$AB$195,34,0)=1,4,IF(HLOOKUP(F10,Parameters!$I$102:$AB$195,43,0)=1,5,IF(HLOOKUP(F10,Parameters!$I$102:$AB$195,52,0)=1,6,IF(HLOOKUP(F10,Parameters!$I$102:$AB$195,61,0)=1,7,IF(HLOOKUP(F10,Parameters!$I$102:$AB$195,70,0)=1,8,IF(HLOOKUP(F10,Parameters!$I$102:$AB$195,79,0)=1,9,IF(HLOOKUP(F10,Parameters!$I$102:$AB$195,88,0)=1,10,"ERROR")))))))))) -> 2 | K10: =IF(RNG!H10<((OFFSET(Parameters!$H$114,(J10-1)*9,$F10))*(VLOOKUP($H10+K$9,'Age Dependencies'!$E$8:$H$208,2,0))),1,IF(RNG!K10<OFFSET('Transition Probabilities'!$HJ$45,J10,($F10-1)*12+1),1,IF(RNG!K10<OFFSET('Transition Probabilities'!$HJ$45,J10,($F10-1)*12+2),2,IF(RNG!K10<OFFSET('Transition Probabilities'!$HJ$45,J10,($F10-1)*12+3),3,IF(RNG!K10<OFFSET('Transition Probabilities'!$HJ$45,J10,($F10-1)*12+4),4,IF(RNG!K10<OFFSET('Transition Probabilities'!$HJ$45,J10,($F10-1)*12+5),5,IF(RNG!K10<OFFSET('Transition Probabilities'!$HJ$45,J10,($F10-1)*12+6),6,IF(RNG!K10<OFFSET('Transition Probabilities'!$HJ$45,J10,($F10-1)*12+7),7,IF(RNG!K10<OFFSET('Transition Probabilities'!$HJ$45,J10,($F10-1)*12+8),8,IF(RNG!K10<OFFSET('Transition Probabilities'!$HJ$45,J10,($F10-1)*12+9),9,IF(RNG!K10<OFFSET('Transition Probabilities'!$HJ$45,J10,($F10-1)*12+10),10,"ERROR"))))))))))) -> 3 | L10: =IF(RNG!I10<((OFFSET(Parameters!$H$114,(K10-1)*9,$F10))*(VLOOKUP($H10+L$9,'Age Dependencies'!$E$8:$H$208,2,0))),1,IF(RNG!L10<OFFSET('Transition Probabilities'!$HJ$45,K10,($F10-1)*12+1),1,IF(RNG!L10<OFFSET('Transition Probabilities'!$HJ$45,K10,($F10-1)*12+2),2,IF(RNG!L10<OFFSET('Transition Probabilities'!$HJ$45,K10,($F10-1)*12+3),3,IF(RNG!L10<OFFSET('Transition Probabilities'!$HJ$45,K10,($F10-1)*12+4),4,IF(RNG!L10<OFFSET('Transition Probabilities'!$HJ$45,K10,($F10-1)*12+5),5,IF(RNG!L10<OFFSET('Transition Probabilities'!$HJ$45,K10,($F10-1)*12+6),6,IF(RNG!L10<OFFSET('Transition Probabilities'!$HJ$45,K10,($F10-1)*12+7),7,IF(RNG!L10<OFFSET('Transition Probabilities'!$HJ$45,K10,($F10-1)*12+8),8,IF(RNG!L10<OFFSET('Transition Probabilities'!$HJ$45,K10,($F10-1)*12+9),9,IF(RNG!L10<OFFSET('Transition Probabilities'!$HJ$45,K10,($F10-1)*12+10),10,"ERROR"))))))))))) -> 3 | M10: =IF(RNG!J10<((OFFSET(Parameters!$H$114,(L10-1)*9,$F10))*(VLOOKUP($H10+M$9,'Age Dependencies'!$E$8:$H$208,2,0))),1,IF(RNG!M10<OFFSET('Transition Probabilities'!$HJ$45,L10,($F10-1)*12+1),1,IF(RNG!M10<OFFSET('Transition Probabilities'!$HJ$45,L10,($F10-1)*12+2),2,IF(RNG!M10<OFFSET('Transition Probabilities'!$HJ$45,L10,($F10-1)*12+3),3,IF(RNG!M10<OFFSET('Transition Probabilities'!$HJ$45,L10,($F10-1)*12+4),4,IF(RNG!M10<OFFSET('Transition Probabilities'!$HJ$45,L10,($F10-1)*12+5),5,IF(RNG!M10<OFFSET('Transition Probabilities'!$HJ$45,L10,($F10-1)*12+6),6,IF(RNG!M10<OFFSET('Transition Probabilities'!$HJ$45,L10,($F10-1)*12+7),7,IF(RNG!M10<OFFSET('Transition Probabilities'!$HJ$45,L10,($F10-1)*12+8),8,IF(RNG!M10<OFFSET('Transition Probabilities'!$HJ$45,L10,($F10-1)*12+9),9,IF(RNG!M10<OFFSET('Transition Probabilities'!$HJ$45,L10,($F10-1)*12+10),10,"ERROR"))))))))))) -> 3 | N10: =IF(RNG!K10<((OFFSET(Parameters!$H$114,(M10-1)*9,$F10))*(VLOOKUP($H10+N$9,'Age Dependencies'!$E$8:$H$208,2,0))),1,IF(RNG!N10<OFFSET('Transition Probabilities'!$HJ$45,M10,($F10-1)*12+1),1,IF(RNG!N10<OFFSET('Transition Probabilities'!$HJ$45,M10,($F10-1)*12+2),2,IF(RNG!N10<OFFSET('Transition Probabilities'!$HJ$45,M10,($F10-1)*12+3),3,IF(RNG!N10<OFFSET('Transition Probabilities'!$HJ$45,M10,($F10-1)*12+4),4,IF(RNG!N10<OFFSET('Transition Probabilities'!$HJ$45,M10,($F10-1)*12+5),5,IF(RNG!N10<OFFSET('Transition Probabilities'!$HJ$45,M10,($F10-1)*12+6),6,IF(RNG!N10<OFFSET('Transition Probabilities'!$HJ$45,M10,($F10-1)*12+7),7,IF(RNG!N10<OFFSET('Transition Probabilities'!$HJ$45,M10,($F10-1)*12+8),8,IF(RNG!N10<OFFSET('Transition Probabilities'!$HJ$45,M10,($F10-1)*12+9),9,IF(RNG!N10<OFFSET('Transition Probabilities'!$HJ$45,M10,($F10-1)*12+10),10,"ERROR"))))))))))) -> 3 | O10: =IF(RNG!L10<((OFFSET(Parameters!$H$114,(N10-1)*9,$F10))*(VLOOKUP($H10+O$9,'Age Dependencies'!$E$8:$H$208,2,0))),1,IF(RNG!O10<OFFSET('Transition Probabilities'!$HJ$45,N10,($F10-1)*12+1),1,IF(RNG!O10<OFFSET('Transition Probabilities'!$HJ$45,N10,($F10-1)*12+2),2,IF(RNG!O10<OFFSET('Transition Probabilities'!$HJ$45,N10,($F10-1)*12+3),3,IF(RNG!O10<OFFSET('Transition Probabilities'!$HJ$45,N10,($F10-1)*12+4),4,IF(RNG!O10<OFFSET('Transition Probabilities'!$HJ$45,N10,($F10-1)*12+5),5,IF(RNG!O10<OFFSET('Transition Probabilities'!$HJ$45,N10,($F10-1)*12+6),6,IF(RNG!O10<OFFSET('Transition Probabilities'!$HJ$45,N10,($F10-1)*12+7),7,IF(RNG!O10<OFFSET('Transition Probabilities'!$HJ$45,N10,($F10-1)*12+8),8,IF(RNG!O10<OFFSET('Transition Probabilities'!$HJ$45,N10,($F10-1)*12+9),9,IF(RNG!O10<OFFSET('Transition Probabilities'!$HJ$45,N10,($F10-1)*12+10),10,"ERROR"))))))))))) -> 3 | P10: =IF(RNG!M10<((OFFSET(Parameters!$H$114,(O10-1)*9,$F10))*(VLOOKUP($H10+P$9,'Age Dependencies'!$E$8:$H$208,2,0))),1,IF(RNG!P10<OFFSET('Transition Probabilities'!$HJ$45,O10,($F10-1)*12+1),1,IF(RNG!P10<OFFSET('Transition Probabilities'!$HJ$45,O10,($F10-1)*12+2),2,IF(RNG!P10<OFFSET('Transition Probabilities'!$HJ$45,O10,($F10-1)*12+3),3,IF(RNG!P10<OFFSET('Transition Probabilities'!$HJ$45,O10,($F10-1)*12+4),4,IF(RNG!P10<OFFSET('Transition Probabilities'!$HJ$45,O10,($F10-1)*12+5),5,IF(RNG!P10<OFFSET('Transition Probabilities'!$HJ$45,O10,($F10-1)*12+6),6,IF(RNG!P10<OFFSET('Transition Probabilities'!$HJ$45,O10,($F10-1)*12+7),7,IF(RNG!P10<OFFSET('Transition Probabilities'!$HJ$45,O10,($F10-1)*12+8),8,IF(RNG!P10<OFFSET('Transition Probabilities'!$HJ$45,O10,($F10-1)*12+9),9,IF(RNG!P10<OFFSET('Transition Probabilities'!$HJ$45,O10,($F10-1)*12+10),10,"ERROR"))))))))))) -> 3 | Q10: =IF(RNG!N10<((OFFSET(Parameters!$H$114,(P10-1)*9,$F10))*(VLOOKUP($H10+Q$9,'Age Dependencies'!$E$8:$H$208,2,0))),1,IF(RNG!Q10<OFFSET('Transition Probabilities'!$HJ$45,P10,($F10-1)*12+1),1,IF(RNG!Q10<OFFSET('Transition Probabilities'!$HJ$45,P10,($F10-1)*12+2),2,IF(RNG!Q10<OFFSET('Transition Probabilities'!$HJ$45,P10,($F10-1)*12+3),3,IF(RNG!Q10<OFFSET('Transition Probabilities'!$HJ$45,P10,($F10-1)*12+4),4,IF(RNG!Q10<OFFSET('Transition Probabilities'!$HJ$45,P10,($F10-1)*12+5),5,IF(RNG!Q10<OFFSET('Transition Probabilities'!$HJ$45,P10,($F10-1)*12+6),6,IF(RNG!Q10<OFFSET('Transition Probabilities'!$HJ$45,P10,($F10-1)*12+7),7,IF(RNG!Q10<OFFSET('Transition Probabilities'!$HJ$45,P10,($F10-1)*12+8),8,IF(RNG!Q10<OFFSET('Transition Probabilities'!$HJ$45,P10,($F10-1)*12+9),9,IF(RNG!Q10<OFFSET('Transition Probabilities'!$HJ$45,P10,($F10-1)*12+10),10,"ERROR"))))))))))) -> 3 | R10: =IF(RNG!O10<((OFFSET(Parameters!$H$114,(Q10-1)*9,$F10))*(VLOOKUP($H10+R$9,'Age Dependencies'!$E$8:$H$208,2,0))),1,IF(RNG!R10<OFFSET('Transition Probabilities'!$HJ$45,Q10,($F10-1)*12+1),1,IF(RNG!R10<OFFSET('Transition Probabilities'!$HJ$45,Q10,($F10-1)*12+2),2,IF(RNG!R10<OFFSET('Transition Probabilities'!$HJ$45,Q10,($F10-1)*12+3),3,IF(RNG!R10<OFFSET('Transition Probabilities'!$HJ$45,Q10,($F10-1)*12+4),4,IF(RNG!R10<OFFSET('Transition Probabilities'!$HJ$45,Q10,($F10-1)*12+5),5,IF(RNG!R10<OFFSET('Transition Probabilities'!$HJ$45,Q10,($F10-1)*12+6),6,IF(RNG!R10<OFFSET('Transition Probabilities'!$HJ$45,Q10,($F10-1)*12+7),7,IF(RNG!R10<OFFSET('Transition Probabilities'!$HJ$45,Q10,($F10-1)*12+8),8,IF(RNG!R10<OFFSET('Transition Probabilities'!$HJ$45,Q10,($F10-1)*12+9),9,IF(RNG!R10<OFFSET('Transition Probabilities'!$HJ$45,Q10,($F10-1)*12+10),10,"ERROR"))))))))))) -> 3 | S10: =IF(RNG!P10<((OFFSET(Parameters!$H$114,(R10-1)*9,$F10))*(VLOOKUP($H10+S$9,'Age Dependencies'!$E$8:$H$208,2,0))),1,IF(RNG!S10<OFFSET('Transition Probabilities'!$HJ$45,R10,($F10-1)*12+1),1,IF(RNG!S10<OFFSET('Transition Probabilities'!$HJ$45,R10,($F10-1)*12+2),2,IF(RNG!S10<OFFSET('Transition Probabilities'!$HJ$45,R10,($F10-1)*12+3),3,IF(RNG!S10<OFFSET('Transition Probabilities'!$HJ$45,R10,($F10-1)*12+4),4,IF(RNG!S10<OFFSET('Transition Probabilities'!$HJ$45,R10,($F10-1)*12+5),5,IF(RNG!S10<OFFSET('Transition Probabilities'!$HJ$45,R10,($F10-1)*12+6),6,IF(RNG!S10<OFFSET('Transition Probabilities'!$HJ$45,R10,($F10-1)*12+7),7,IF(RNG!S10<OFFSET('Transition Probabilities'!$HJ$45,R10,($F10-1)*12+8),8,IF(RNG!S10<OFFSET('Transition Probabilities'!$HJ$45,R10,($F10-1)*12+9),9,IF(RNG!S10<OFFSET('Transition Probabilities'!$HJ$45,R10,($F10-1)*12+10),10,"ERROR"))))))))))) -> 3 | T10: =IF(RNG!Q10<((OFFSET(Parameters!$H$114,(S10-1)*9,$F10))*(VLOOKUP($H10+T$9,'Age Dependencies'!$E$8:$H$208,2,0))),1,IF(RNG!T10<OFFSET('Transition Probabilities'!$HJ$45,S10,($F10-1)*12+1),1,IF(RNG!T10<OFFSET('Transition Probabilities'!$HJ$45,S10,($F10-1)*12+2),2,IF(RNG!T10<OFFSET('Transition Probabilities'!$HJ$45,S10,($F10-1)*12+3),3,IF(RNG!T10<OFFSET('Transition Probabilities'!$HJ$45,S10,($F10-1)*12+4),4,IF(RNG!T10<OFFSET('Transition Probabilities'!$HJ$45,S10,($F10-1)*12+5),5,IF(RNG!T10<OFFSET('Transition Probabilities'!$HJ$45,S10,($F10-1)*12+6),6,IF(RNG!T10<OFFSET('Transition Probabilities'!$HJ$45,S10,($F10-1)*12+7),7,IF(RNG!T10<OFFSET('Transition Probabilities'!$HJ$45,S10,($F10-1)*12+8),8,IF(RNG!T10<OFFSET('Transition Probabilities'!$HJ$45,S10,($F10-1)*12+9),9,IF(RNG!T10<OFFSET('Transition Probabilities'!$HJ$45,S10,($F10-1)*12+10),10,"ERROR"))))))))))) -> 3 | U10: =IF(RNG!R10<((OFFSET(Parameters!$H$114,(T10-1)*9,$F10))*(VLOOKUP($H10+U$9,'Age Dependencies'!$E$8:$H$208,2,0))),1,IF(RNG!U10<OFFSET('Transition Probabilities'!$HJ$45,T10,($F10-1)*12+1),1,IF(RNG!U10<OFFSET('Transition Probabilities'!$HJ$45,T10,($F10-1)*12+2),2,IF(RNG!U10<OFFSET('Transition Probabilities'!$HJ$45,T10,($F10-1)*12+3),3,IF(RNG!U10<OFFSET('Transition Probabilities'!$HJ$45,T10,($F10-1)*12+4),4,IF(RNG!U10<OFFSET('Transition Probabilities'!$HJ$45,T10,($F10-1)*12+5),5,IF(RNG!U10<OFFSET('Transition Probabilities'!$HJ$45,T10,($F10-1)*12+6),6,IF(RNG!U10<OFFSET('Transition Probabilities'!$HJ$45,T10,($F10-1)*12+7),7,IF(RNG!U10<OFFSET('Transition Probabilities'!$HJ$45,T10,($F10-1)*12+8),8,IF(RNG!U10<OFFSET('Transition Probabilities'!$HJ$45,T10,($F10-1)*12+9),9,IF(RNG!U10<OFFSET('Transition Probabilities'!$HJ$45,T10,($F10-1)*12+10),10,"ERROR"))))))))))) -> 3 | V10: =IF(RNG!S10<((OFFSET(Parameters!$H$114,(U10-1)*9,$F10))*(VLOOKUP($H10+V$9,'Age Dependencies'!$E$8:$H$208,2,0))),1,IF(RNG!V10<OFFSET('Transition Probabilities'!$HJ$45,U10,($F10-1)*12+1),1,IF(RNG!V10<OFFSET('Transition Probabilities'!$HJ$45,U10,($F10-1)*12+2),2,IF(RNG!V10<OFFSET('Transition Probabilities'!$HJ$45,U10,($F10-1)*12+3),3,IF(RNG!V10<OFFSET('Transition Probabilities'!$HJ$45,U10,($F10-1)*12+4),4,IF(RNG!V10<OFFSET('Transition Probabilities'!$HJ$45,U10,($F10-1)*12+5),5,IF(RNG!V10<OFFSET('Transition Probabilities'!$HJ$45,U10,($F10-1)*12+6),6,IF(RNG!V10<OFFSET('Transition Probabilities'!$HJ$45,U10,($F10-1)*12+7),7,IF(RNG!V10<OFFSET('Transition Probabilities'!$HJ$45,U10,($F10-1)*12+8),8,IF(RNG!V10<OFFSET('Transition Probabilities'!$HJ$45,U10,($F10-1)*12+9),9,IF(RNG!V10<OFFSET('Transition Probabilities'!$HJ$45,U10,($F10-1)*12+10),10,"ERROR"))))))))))) -> 3 | W10: =IF(RNG!T10<((OFFSET(Parameters!$H$114,(V10-1)*9,$F10))*(VLOOKUP($H10+W$9,'Age Dependencies'!$E$8:$H$208,2,0))),1,IF(RNG!W10<OFFSET('Transition Probabilities'!$HJ$45,V10,($F10-1)*12+1),1,IF(RNG!W10<OFFSET('Transition Probabilities'!$HJ$45,V10,($F10-1)*12+2),2,IF(RNG!W10<OFFSET('Transition Probabilities'!$HJ$45,V10,($F10-1)*12+3),3,IF(RNG!W10<OFFSET('Transition Probabilities'!$HJ$45,V10,($F10-1)*12+4),4,IF(RNG!W10<OFFSET('Transition Probabilities'!$HJ$45,V10,($F10-1)*12+5),5,IF(RNG!W10<OFFSET('Transition Probabilities'!$HJ$45,V10,($F10-1)*12+6),6,IF(RNG!W10<OFFSET('Transition Probabilities'!$HJ$45,V10,($F10-1)*12+7),7,IF(RNG!W10<OFFSET('Transition Probabilities'!$HJ$45,V10,($F10-1)*12+8),8,IF(RNG!W10<OFFSET('Transition Probabilities'!$HJ$45,V10,($F10-1)*12+9),9,IF(RNG!W10<OFFSET('Transition Probabilities'!$HJ$45,V10,($F10-1)*12+10),10,"ERROR"))))))))))) -> 3 | X10: =IF(RNG!U10<((OFFSET(Parameters!$H$114,(W10-1)*9,$F10))*(VLOOKUP($H10+X$9,'Age Dependencies'!$E$8:$H$208,2,0))),1,IF(RNG!X10<OFFSET('Transition Probabilities'!$HJ$45,W10,($F10-1)*12+1),1,IF(RNG!X10<OFFSET('Transition Probabilities'!$HJ$45,W10,($F10-1)*12+2),2,IF(RNG!X10<OFFSET('Transition Probabilities'!$HJ$45,W10,($F10-1)*12+3),3,IF(RNG!X10<OFFSET('Transition Probabilities'!$HJ$45,W10,($F10-1)*12+4),4,IF(RNG!X10<OFFSET('Transition Probabilities'!$HJ$45,W10,($F10-1)*12+5),5,IF(RNG!X10<OFFSET('Transition Probabilities'!$HJ$45,W10,($F10-1)*12+6),6,IF(RNG!X10<OFFSET('Transition Probabilities'!$HJ$45,W10,($F10-1)*12+7),7,IF(RNG!X10<OFFSET('Transition Probabilities'!$HJ$45,W10,($F10-1)*12+8),8,IF(RNG!X10<OFFSET('Transition Probabilities'!$HJ$45,W10,($F10-1)*12+9),9,IF(RNG!X10<OFFSET('Transition Probabilities'!$HJ$45,W10,($F10-1)*12+10),10,"ERROR"))))))))))) -> 3 | Y10: =IF(RNG!V10<((OFFSET(Parameters!$H$114,(X10-1)*9,$F10))*(VLOOKUP($H10+Y$9,'Age Dependencies'!$E$8:$H$208,2,0))),1,IF(RNG!Y10<OFFSET('Transition Probabilities'!$HJ$45,X10,($F10-1)*12+1),1,IF(RNG!Y10<OFFSET('Transition Probabilities'!$HJ$45,X10,($F10-1)*12+2),2,IF(RNG!Y10<OFFSET('Transition Probabilities'!$HJ$45,X10,($F10-1)*12+3),3,IF(RNG!Y10<OFFSET('Transition Probabilities'!$HJ$45,X10,($F10-1)*12+4),4,IF(RNG!Y10<OFFSET('Transition Probabilities'!$HJ$45,X10,($F10-1)*12+5),5,IF(RNG!Y10<OFFSET('Transition Probabilities'!$HJ$45,X10,($F10-1)*12+6),6,IF(RNG!Y10<OFFSET('Transition Probabilities'!$HJ$45,X10,($F10-1)*12+7),7,IF(RNG!Y10<OFFSET('Transition Probabilities'!$HJ$45,X10,($F10-1)*12+8),8,IF(RNG!Y10<OFFSET('Transition Probabilities'!$HJ$45,X10,($F10-1)*12+9),9,IF(RNG!Y10<OFFSET('Transition Probabilities'!$HJ$45,X10,($F10-1)*12+10),10,"ERROR"))))))))))) -> 3 | Z10: =IF(RNG!W10<((OFFSET(Parameters!$H$114,(Y10-1)*9,$F10))*(VLOOKUP($H10+Z$9,'Age Dependencies'!$E$8:$H$208,2,0))),1,IF(RNG!Z10<OFFSET('Transition Probabilities'!$HJ$45,Y10,($F10-1)*12+1),1,IF(RNG!Z10<OFFSET('Transition Probabilities'!$HJ$45,Y10,($F10-1)*12+2),2,IF(RNG!Z10<OFFSET('Transition Probabilities'!$HJ$45,Y10,($F10-1)*12+3),3,IF(RNG!Z10<OFFSET('Transition Probabilities'!$HJ$45,Y10,($F10-1)*12+4),4,IF(RNG!Z10<OFFSET('Transition Probabilities'!$HJ$45,Y10,($F10-1)*12+5),5,IF(RNG!Z10<OFFSET('Transition Probabilities'!$HJ$45,Y10,($F10-1)*12+6),6,IF(RNG!Z10<OFFSET('Transition Probabilities'!$HJ$45,Y10,($F10-1)*12+7),7,IF(RNG!Z10<OFFSET('Transition Probabilities'!$HJ$45,Y10,($F10-1)*12+8),8,IF(RNG!Z10<OFFSET('Transition Probabilities'!$HJ$45,Y10,($F10-1)*12+9),9,IF(RNG!Z10<OFFSET('Transition Probabilities'!$HJ$45,Y10,($F10-1)*12+10),10,"ERROR"))))))))))) -> 3 | AA10: =IF(RNG!X10<((OFFSET(Parameters!$H$114,(Z10-1)*9,$F10))*(VLOOKUP($H10+AA$9,'Age Dependencies'!$E$8:$H$208,2,0))),1,IF(RNG!AA10<OFFSET('Transition Probabilities'!$HJ$45,Z10,($F10-1)*12+1),1,IF(RNG!AA10<OFFSET('Transition Probabilities'!$HJ$45,Z10,($F10-1)*12+2),2,IF(RNG!AA10<OFFSET('Transition Probabilities'!$HJ$45,Z10,($F10-1)*12+3),3,IF(RNG!AA10<OFFSET('Transition Probabilities'!$HJ$45,Z10,($F10-1)*12+4),4,IF(RNG!AA10<OFFSET('Transition Probabilities'!$HJ$45,Z10,($F10-1)*12+5),5,IF(RNG!AA10<OFFSET('Transition Probabilities'!$HJ$45,Z10,($F10-1)*12+6),6,IF(RNG!AA10<OFFSET('Transition Probabilities'!$HJ$45,Z10,($F10-1)*12+7),7,IF(RNG!AA10<OFFSET('Transition Probabilities'!$HJ$45,Z10,($F10-1)*12+8),8,IF(RNG!AA10<OFFSET('Transition Probabilities'!$HJ$45,Z10,($F10-1)*12+9),9,IF(RNG!AA10<OFFSET('Transition Probabilities'!$HJ$45,Z10,($F10-1)*12+10),10,"ERROR"))))))))))) -> 3 | AB10: =IF(RNG!Y10<((OFFSET(Parameters!$H$114,(AA10-1)*9,$F10))*(VLOOKUP($H10+AB$9,'Age Dependencies'!$E$8:$H$208,2,0))),1,IF(RNG!AB10<OFFSET('Transition Probabilities'!$HJ$45,AA10,($F10-1)*12+1),1,IF(RNG!AB10<OFFSET('Transition Probabilities'!$HJ$45,AA10,($F10-1)*12+2),2,IF(RNG!AB10<OFFSET('Transition Probabilities'!$HJ$45,AA10,($F10-1)*12+3),3,IF(RNG!AB10<OFFSET('Transition Probabilities'!$HJ$45,AA10,($F10-1)*12+4),4,IF(RNG!AB10<OFFSET('Transition Probabilities'!$HJ$45,AA10,($F10-1)*12+5),5,IF(RNG!AB10<OFFSET('Transition Probabilities'!$HJ$45,AA10,($F10-1)*12+6),6,IF(RNG!AB10<OFFSET('Transition Probabilities'!$HJ$45,AA10,($F10-1)*12+7),7,IF(RNG!AB10<OFFSET('Transition Probabilities'!$HJ$45,AA10,($F10-1)*12+8),8,IF(RNG!AB10<OFFSET('Transition Probabilities'!$HJ$45,AA10,($F10-1)*12+9),9,IF(RNG!AB10<OFFSET('Transition Probabilities'!$HJ$45,AA10,($F10-1)*12+10),10,"ERROR"))))))))))) -> 3 | AC10: =IF(RNG!Z10<((OFFSET(Parameters!$H$114,(AB10-1)*9,$F10))*(VLOOKUP($H10+AC$9,'Age Dependencies'!$E$8:$H$208,2,0))),1,IF(RNG!AC10<OFFSET('Transition Probabilities'!$HJ$45,AB10,($F10-1)*12+1),1,IF(RNG!AC10<OFFSET('Transition Probabilities'!$HJ$45,AB10,($F10-1)*12+2),2,IF(RNG!AC10<OFFSET('Transition Probabilities'!$HJ$45,AB10,($F10-1)*12+3),3,IF(RNG!AC10<OFFSET('Transition Probabilities'!$HJ$45,AB10,($F10-1)*12+4),4,IF(RNG!AC10<OFFSET('Transition Probabilities'!$HJ$45,AB10,($F10-1)*12+5),5,IF(RNG!AC10<OFFSET('Transition Probabilities'!$HJ$45,AB10,($F10-1)*12+6),6,IF(RNG!AC10<OFFSET('Transition Probabilities'!$HJ$45,AB10,($F10-1)*12+7),7,IF(RNG!AC10<OFFSET('Transition Probabilities'!$HJ$45,AB10,($F10-1)*12+8),8,IF(RNG!AC10<OFFSET('Transition Probabilities'!$HJ$45,AB10,($F10-1)*12+9),9,IF(RNG!AC10<OFFSET('Transition Probabilities'!$HJ$45,AB10,($F10-1)*12+10),10,"ERROR"))))))))))) -> 3 | AD10: =IF(RNG!AA10<((OFFSET(Parameters!$H$114,(AC10-1)*9,$F10))*(VLOOKUP($H10+AD$9,'Age Dependencies'!$E$8:$H$208,2,0))),1,IF(RNG!AD10<OFFSET('Transition Probabilities'!$HJ$45,AC10,($F10-1)*12+1),1,IF(RNG!AD10<OFFSET('Transition Probabilities'!$HJ$45,AC10,($F10-1)*12+2),2,IF(RNG!AD10<OFFSET('Transition Probabilities'!$HJ$45,AC10,($F10-1)*12+3),3,IF(RNG!AD10<OFFSET('Transition Probabilities'!$HJ$45,AC10,($F10-1)*12+4),4,IF(RNG!AD10<OFFSET('Transition Probabilities'!$HJ$45,AC10,($F10-1)*12+5),5,IF(RNG!AD10<OFFSET('Transition Probabilities'!$HJ$45,AC10,($F10-1)*12+6),6,IF(RNG!AD10<OFFSET('Transition Probabilities'!$HJ$45,AC10,($F10-1)*12+7),7,IF(RNG!AD10<OFFSET('Transition Probabilities'!$HJ$45,AC10,($F10-1)*12+8),8,IF(RNG!AD10<OFFSET('Transition Probabilities'!$HJ$45,AC10,($F10-1)*12+9),9,IF(RNG!AD10<OFFSET('Transition Probabilities'!$HJ$45,AC10,($F10-1)*12+10),10,"ERROR"))))))))))) -> 3 | AE10: =IF(RNG!AB10<((OFFSET(Parameters!$H$114,(AD10-1)*9,$F10))*(VLOOKUP($H10+AE$9,'Age Dependencies'!$E$8:$H$208,2,0))),1,IF(RNG!AE10<OFFSET('Transition Probabilities'!$HJ$45,AD10,($F10-1)*12+1),1,IF(RNG!AE10<OFFSET('Transition Probabilities'!$HJ$45,AD10,($F10-1)*12+2),2,IF(RNG!AE10<OFFSET('Transition Probabilities'!$HJ$45,AD10,($F10-1)*12+3),3,IF(RNG!AE10<OFFSET('Transition Probabilities'!$HJ$45,AD10,($F10-1)*12+4),4,IF(RNG!AE10<OFFSET('Transition Probabilities'!$HJ$45,AD10,($F10-1)*12+5),5,IF(RNG!AE10<OFFSET('Transition Probabilities'!$HJ$45,AD10,($F10-1)*12+6),6,IF(RNG!AE10<OFFSET('Transition Probabilities'!$HJ$45,AD10,($F10-1)*12+7),7,IF(RNG!AE10<OFFSET('Transition Probabilities'!$HJ$45,AD10,($F10-1)*12+8),8,IF(RNG!AE10<OFFSET('Transition Probabilities'!$HJ$45,AD10,($F10-1)*12+9),9,IF(RNG!AE10<OFFSET('Transition Probabilities'!$HJ$45,AD10,($F10-1)*12+10),10,"ERROR"))))))))))) -> 3 | AF10: =IF(RNG!AC10<((OFFSET(Parameters!$H$114,(AE10-1)*9,$F10))*(VLOOKUP($H10+AF$9,'Age Dependencies'!$E$8:$H$208,2,0))),1,IF(RNG!AF10<OFFSET('Transition Probabilities'!$HJ$45,AE10,($F10-1)*12+1),1,IF(RNG!AF10<OFFSET('Transition Probabilities'!$HJ$45,AE10,($F10-1)*12+2),2,IF(RNG!AF10<OFFSET('Transition Probabilities'!$HJ$45,AE10,($F10-1)*12+3),3,IF(RNG!AF10<OFFSET('Transition Probabilities'!$HJ$45,AE10,($F10-1)*12+4),4,IF(RNG!AF10<OFFSET('Transition Probabilities'!$HJ$45,AE10,($F10-1)*12+5),5,IF(RNG!AF10<OFFSET('Transition Probabilities'!$HJ$45,AE10,($F10-1)*12+6),6,IF(RNG!AF10<OFFSET('Transition Probabilities'!$HJ$45,AE10,($F10-1)*12+7),7,IF(RNG!AF10<OFFSET('Transition Probabilities'!$HJ$45,AE10,($F10-1)*12+8),8,IF(RNG!AF10<OFFSET('Transition Probabilities'!$HJ$45,AE10,($F10-1)*12+9),9,IF(RNG!AF10<OFFSET('Transition Probabilities'!$HJ$45,AE10,($F10-1)*12+10),10,"ERROR"))))))))))) -> 3 | AG10: =IF(RNG!AD10<((OFFSET(Parameters!$H$114,(AF10-1)*9,$F10))*(VLOOKUP($H10+AG$9,'Age Dependencies'!$E$8:$H$208,2,0))),1,IF(RNG!AG10<OFFSET('Transition Probabilities'!$HJ$45,AF10,($F10-1)*12+1),1,IF(RNG!AG10<OFFSET('Transition Probabilities'!$HJ$45,AF10,($F10-1)*12+2),2,IF(RNG!AG10<OFFSET('Transition Probabilities'!$HJ$45,AF10,($F10-1)*12+3),3,IF(RNG!AG10<OFFSET('Transition Probabilities'!$HJ$45,AF10,($F10-1)*12+4),4,IF(RNG!AG10<OFFSET('Transition Probabilities'!$HJ$45,AF10,($F10-1)*12+5),5,IF(RNG!AG10<OFFSET('Transition Probabilities'!$HJ$45,AF10,($F10-1)*12+6),6,IF(RNG!AG10<OFFSET('Transition Probabilities'!$HJ$45,AF10,($F10-1)*12+7),7,IF(RNG!AG10<OFFSET('Transition Probabilities'!$HJ$45,AF10,($F10-1)*12+8),8,IF(RNG!AG10<OFFSET('Transition Probabilities'!$HJ$45,AF10,($F10-1)*12+9),9,IF(RNG!AG10<OFFSET('Transition Probabilities'!$HJ$45,AF10,($F10-1)*12+10),10,"ERROR"))))))))))) -> 3 | AH10: =IF(RNG!AE10<((OFFSET(Parameters!$H$114,(AG10-1)*9,$F10))*(VLOOKUP($H10+AH$9,'Age Dependencies'!$E$8:$H$208,2,0))),1,IF(RNG!AH10<OFFSET('Transition Probabilities'!$HJ$45,AG10,($F10-1)*12+1),1,IF(RNG!AH10<OFFSET('Transition Probabilities'!$HJ$45,AG10,($F10-1)*12+2),2,IF(RNG!AH10<OFFSET('Transition Probabilities'!$HJ$45,AG10,($F10-1)*12+3),3,IF(RNG!AH10<OFFSET('Transition Probabilities'!$HJ$45,AG10,($F10-1)*12+4),4,IF(RNG!AH10<OFFSET('Transition Probabilities'!$HJ$45,AG10,($F10-1)*12+5),5,IF(RNG!AH10<OFFSET('Transition Probabilities'!$HJ$45,AG10,($F10-1)*12+6),6,IF(RNG!AH10<OFFSET('Transition Probabilities'!$HJ$45,AG10,($F10-1)*12+7),7,IF(RNG!AH10<OFFSET('Transition Probabilities'!$HJ$45,AG10,($F10-1)*12+8),8,IF(RNG!AH10<OFFSET('Transition Probabilities'!$HJ$45,AG10,($F10-1)*12+9),9,IF(RNG!AH10<OFFSET('Transition Probabilities'!$HJ$45,AG10,($F10-1)*12+10),10,"ERROR"))))))))))) -> 3 | AI10: =IF(RNG!AF10<((OFFSET(Parameters!$H$114,(AH10-1)*9,$F10))*(VLOOKUP($H10+AI$9,'Age Dependencies'!$E$8:$H$208,2,0))),1,IF(RNG!AI10<OFFSET('Transition Probabilities'!$HJ$45,AH10,($F10-1)*12+1),1,IF(RNG!AI10<OFFSET('Transition Probabilities'!$HJ$45,AH10,($F10-1)*12+2),2,IF(RNG!AI10<OFFSET('Transition Probabilities'!$HJ$45,AH10,($F10-1)*12+3),3,IF(RNG!AI10<OFFSET('Transition Probabilities'!$HJ$45,AH10,($F10-1)*12+4),4,IF(RNG!AI10<OFFSET('Transition Probabilities'!$HJ$45,AH10,($F10-1)*12+5),5,IF(RNG!AI10<OFFSET('Transition Probabilities'!$HJ$45,AH10,($F10-1)*12+6),6,IF(RNG!AI10<OFFSET('Transition Probabilities'!$HJ$45,AH10,($F10-1)*12+7),7,IF(RNG!AI10<OFFSET('Transition Probabilities'!$HJ$45,AH10,($F10-1)*12+8),8,IF(RNG!AI10<OFFSET('Transition Probabilities'!$HJ$45,AH10,($F10-1)*12+9),9,IF(RNG!AI10<OFFSET('Transition Probabilities'!$HJ$45,AH10,($F10-1)*12+10),10,"ERROR"))))))))))) -> 3 | AJ10: =IF(RNG!AG10<((OFFSET(Parameters!$H$114,(AI10-1)*9,$F10))*(VLOOKUP($H10+AJ$9,'Age Dependencies'!$E$8:$H$208,2,0))),1,IF(RNG!AJ10<OFFSET('Transition Probabilities'!$HJ$45,AI10,($F10-1)*12+1),1,IF(RNG!AJ10<OFFSET('Transition Probabilities'!$HJ$45,AI10,($F10-1)*12+2),2,IF(RNG!AJ10<OFFSET('Transition Probabilities'!$HJ$45,AI10,($F10-1)*12+3),3,IF(RNG!AJ10<OFFSET('Transition Probabilities'!$HJ$45,AI10,($F10-1)*12+4),4,IF(RNG!AJ10<OFFSET('Transition Probabilities'!$HJ$45,AI10,($F10-1)*12+5),5,IF(RNG!AJ10<OFFSET('Transition Probabilities'!$HJ$45,AI10,($F10-1)*12+6),6,IF(RNG!AJ10<OFFSET('Transition Probabilities'!$HJ$45,AI10,($F10-1)*12+7),7,IF(RNG!AJ10<OFFSET('Transition Probabilities'!$HJ$45,AI10,($F10-1)*12+8),8,IF(RNG!AJ10<OFFSET('Transition Probabilities'!$HJ$45,AI10,($F10-1)*12+9),9,IF(RNG!AJ10<OFFSET('Transition Probabilities'!$HJ$45,AI10,($F10-1)*12+10),10,"ERROR"))))))))))) -> 3 | AK10: =IF(RNG!AH10<((OFFSET(Parameters!$H$114,(AJ10-1)*9,$F10))*(VLOOKUP($H10+AK$9,'Age Dependencies'!$E$8:$H$208,2,0))),1,IF(RNG!AK10<OFFSET('Transition Probabilities'!$HJ$45,AJ10,($F10-1)*12+1),1,IF(RNG!AK10<OFFSET('Transition Probabilities'!$HJ$45,AJ10,($F10-1)*12+2),2,IF(RNG!AK10<OFFSET('Transition Probabilities'!$HJ$45,AJ10,($F10-1)*12+3),3,IF(RNG!AK10<OFFSET('Transition Probabilities'!$HJ$45,AJ10,($F10-1)*12+4),4,IF(RNG!AK10<OFFSET('Transition Probabilities'!$HJ$45,AJ10,($F10-1)*12+5),5,IF(RNG!AK10<OFFSET('Transition Probabilities'!$HJ$45,AJ10,($F10-1)*12+6),6,IF(RNG!AK10<OFFSET('Transition Probabilities'!$HJ$45,AJ10,($F10-1)*12+7),7,IF(RNG!AK10<OFFSET('Transition Probabilities'!$HJ$45,AJ10,($F10-1)*12+8),8,IF(RNG!AK10<OFFSET('Transition Probabilities'!$HJ$45,AJ10,($F10-1)*12+9),9,IF(RNG!AK10<OFFSET('Transition Probabilities'!$HJ$45,AJ10,($F10-1)*12+10),10,"ERROR"))))))))))) -> 3 | AL10: =IF(RNG!AI10<((OFFSET(Parameters!$H$114,(AK10-1)*9,$F10))*(VLOOKUP($H10+AL$9,'Age Dependencies'!$E$8:$H$208,2,0))),1,IF(RNG!AL10<OFFSET('Transition Probabilities'!$HJ$45,AK10,($F10-1)*12+1),1,IF(RNG!AL10<OFFSET('Transition Probabilities'!$HJ$45,AK10,($F10-1)*12+2),2,IF(RNG!AL10<OFFSET('Transition Probabilities'!$HJ$45,AK10,($F10-1)*12+3),3,IF(RNG!AL10<OFFSET('Transition Probabilities'!$HJ$45,AK10,($F10-1)*12+4),4,IF(RNG!AL10<OFFSET('Transition Probabilities'!$HJ$45,AK10,($F10-1)*12+5),5,IF(RNG!AL10<OFFSET('Transition Probabilities'!$HJ$45,AK10,($F10-1)*12+6),6,IF(RNG!AL10<OFFSET('Transition Probabilities'!$HJ$45,AK10,($F10-1)*12+7),7,IF(RNG!AL10<OFFSET('Transition Probabilities'!$HJ$45,AK10,($F10-1)*12+8),8,IF(RNG!AL10<OFFSET('Transition Probabilities'!$HJ$45,AK10,($F10-1)*12+9),9,IF(RNG!AL10<OFFSET('Transition Probabilities'!$HJ$45,AK10,($F10-1)*12+10),10,"ERROR"))))))))))) -> 3 | AM10: =IF(RNG!AJ10<((OFFSET(Parameters!$H$114,(AL10-1)*9,$F10))*(VLOOKUP($H10+AM$9,'Age Dependencies'!$E$8:$H$208,2,0))),1,IF(RNG!AM10<OFFSET('Transition Probabilities'!$HJ$45,AL10,($F10-1)*12+1),1,IF(RNG!AM10<OFFSET('Transition Probabilities'!$HJ$45,AL10,($F10-1)*12+2),2,IF(RNG!AM10<OFFSET('Transition Probabilities'!$HJ$45,AL10,($F10-1)*12+3),3,IF(RNG!AM10<OFFSET('Transition Probabilities'!$HJ$45,AL10,($F10-1)*12+4),4,IF(RNG!AM10<OFFSET('Transition Probabilities'!$HJ$45,AL10,($F10-1)*12+5),5,IF(RNG!AM10<OFFSET('Transition Probabilities'!$HJ$45,AL10,($F10-1)*12+6),6,IF(RNG!AM10<OFFSET('Transition Probabilities'!$HJ$45,AL10,($F10-1)*12+7),7,IF(RNG!AM10<OFFSET('Transition Probabilities'!$HJ$45,AL10,($F10-1)*12+8),8,IF(RNG!AM10<OFFSET('Transition Probabilities'!$HJ$45,AL10,($F10-1)*12+9),9,IF(RNG!AM10<OFFSET('Transition Probabilities'!$HJ$45,AL10,($F10-1)*12+10),10,"ERROR"))))))))))) -> 3 | AN10: =IF(RNG!AK10<((OFFSET(Parameters!$H$114,(AM10-1)*9,$F10))*(VLOOKUP($H10+AN$9,'Age Dependencies'!$E$8:$H$208,2,0))),1,IF(RNG!AN10<OFFSET('Transition Probabilities'!$HJ$45,AM10,($F10-1)*12+1),1,IF(RNG!AN10<OFFSET('Transition Probabilities'!$HJ$45,AM10,($F10-1)*12+2),2,IF(RNG!AN10<OFFSET('Transition Probabilities'!$HJ$45,AM10,($F10-1)*12+3),3,IF(RNG!AN10<OFFSET('Transition Probabilities'!$HJ$45,AM10,($F10-1)*12+4),4,IF(RNG!AN10<OFFSET('Transition Probabilities'!$HJ$45,AM10,($F10-1)*12+5),5,IF(RNG!AN10<OFFSET('Transition Probabilities'!$HJ$45,AM10,($F10-1)*12+6),6,IF(RNG!AN10<OFFSET('Transition Probabilities'!$HJ$45,AM10,($F10-1)*12+7),7,IF(RNG!AN10<OFFSET('Transition Probabilities'!$HJ$45,AM10,($F10-1)*12+8),8,IF(RNG!AN10<OFFSET('Transition Probabilities'!$HJ$45,AM10,($F10-1)*12+9),9,IF(RNG!AN10<OFFSET('Transition Probabilities'!$HJ$45,AM10,($F10-1)*12+10),10,"ERROR"))))))))))) -> 3 | AO10: =IF(RNG!AL10<((OFFSET(Parameters!$H$114,(AN10-1)*9,$F10))*(VLOOKUP($H10+AO$9,'Age Dependencies'!$E$8:$H$208,2,0))),1,IF(RNG!AO10<OFFSET('Transition Probabilities'!$HJ$45,AN10,($F10-1)*12+1),1,IF(RNG!AO10<OFFSET('Transition Probabilities'!$HJ$45,AN10,($F10-1)*12+2),2,IF(RNG!AO10<OFFSET('Transition Probabilities'!$HJ$45,AN10,($F10-1)*12+3),3,IF(RNG!AO10<OFFSET('Transition Probabilities'!$HJ$45,AN10,($F10-1)*12+4),4,IF(RNG!AO10<OFFSET('Transition Probabilities'!$HJ$45,AN10,($F10-1)*12+5),5,IF(RNG!AO10<OFFSET('Transition Probabilities'!$HJ$45,AN10,($F10-1)*12+6),6,IF(RNG!AO10<OFFSET('Transition Probabilities'!$HJ$45,AN10,($F10-1)*12+7),7,IF(RNG!AO10<OFFSET('Transition Probabilities'!$HJ$45,AN10,($F10-1)*12+8),8,IF(RNG!AO10<OFFSET('Transition Probabilities'!$HJ$45,AN10,($F10-1)*12+9),9,IF(RNG!AO10<OFFSET('Transition Probabilities'!$HJ$45,AN10,($F10-1)*12+10),10,"ERROR"))))))))))) -> 3 | AP10: =IF(RNG!AM10<((OFFSET(Parameters!$H$114,(AO10-1)*9,$F10))*(VLOOKUP($H10+AP$9,'Age Dependencies'!$E$8:$H$208,2,0))),1,IF(RNG!AP10<OFFSET('Transition Probabilities'!$HJ$45,AO10,($F10-1)*12+1),1,IF(RNG!AP10<OFFSET('Transition Probabilities'!$HJ$45,AO10,($F10-1)*12+2),2,IF(RNG!AP10<OFFSET('Transition Probabilities'!$HJ$45,AO10,($F10-1)*12+3),3,IF(RNG!AP10<OFFSET('Transition Probabilities'!$HJ$45,AO10,($F10-1)*12+4),4,IF(RNG!AP10<OFFSET('Transition Probabilities'!$HJ$45,AO10,($F10-1)*12+5),5,IF(RNG!AP10<OFFSET('Transition Probabilities'!$HJ$45,AO10,($F10-1)*12+6),6,IF(RNG!AP10<OFFSET('Transition Probabilities'!$HJ$45,AO10,($F10-1)*12+7),7,IF(RNG!AP10<OFFSET('Transition Probabilities'!$HJ$45,AO10,($F10-1)*12+8),8,IF(RNG!AP10<OFFSET('Transition Probabilities'!$HJ$45,AO10,($F10-1)*12+9),9,IF(RNG!AP10<OFFSET('Transition Probabilities'!$HJ$45,AO10,($F10-1)*12+10),10,"ERROR"))))))))))) -> 3 | AQ10: =IF(RNG!AN10<((OFFSET(Parameters!$H$114,(AP10-1)*9,$F10))*(VLOOKUP($H10+AQ$9,'Age Dependencies'!$E$8:$H$208,2,0))),1,IF(RNG!AQ10<OFFSET('Transition Probabilities'!$HJ$45,AP10,($F10-1)*12+1),1,IF(RNG!AQ10<OFFSET('Transition Probabilities'!$HJ$45,AP10,($F10-1)*12+2),2,IF(RNG!AQ10<OFFSET('Transition Probabilities'!$HJ$45,AP10,($F10-1)*12+3),3,IF(RNG!AQ10<OFFSET('Transition Probabilities'!$HJ$45,AP10,($F10-1)*12+4),4,IF(RNG!AQ10<OFFSET('Transition Probabilities'!$HJ$45,AP10,($F10-1)*12+5),5,IF(RNG!AQ10<OFFSET('Transition Probabilities'!$HJ$45,AP10,($F10-1)*12+6),6,IF(RNG!AQ10<OFFSET('Transition Probabilities'!$HJ$45,AP10,($F10-1)*12+7),7,IF(RNG!AQ10<OFFSET('Transition Probabilities'!$HJ$45,AP10,($F10-1)*12+8),8,IF(RNG!AQ10<OFFSET('Transition Probabilities'!$HJ$45,AP10,($F10-1)*12+9),9,IF(RNG!AQ10<OFFSET('Transition Probabilities'!$HJ$45,AP10,($F10-1)*12+10),10,"ERROR"))))))))))) -> 3 | AR10: =IF(RNG!AO10<((OFFSET(Parameters!$H$114,(AQ10-1)*9,$F10))*(VLOOKUP($H10+AR$9,'Age Dependencies'!$E$8:$H$208,2,0))),1,IF(RNG!AR10<OFFSET('Transition Probabilities'!$HJ$45,AQ10,($F10-1)*12+1),1,IF(RNG!AR10<OFFSET('Transition Probabilities'!$HJ$45,AQ10,($F10-1)*12+2),2,IF(RNG!AR10<OFFSET('Transition Probabilities'!$HJ$45,AQ10,($F10-1)*12+3),3,IF(RNG!AR10<OFFSET('Transition Probabilities'!$HJ$45,AQ10,($F10-1)*12+4),4,IF(RNG!AR10<OFFSET('Transition Probabilities'!$HJ$45,AQ10,($F10-1)*12+5),5,IF(RNG!AR10<OFFSET('Transition Probabilities'!$HJ$45,AQ10,($F10-1)*12+6),6,IF(RNG!AR10<OFFSET('Transition Probabilities'!$HJ$45,AQ10,($F10-1)*12+7),7,IF(RNG!AR10<OFFSET('Transition Probabilities'!$HJ$45,AQ10,($F10-1)*12+8),8,IF(RNG!AR10<OFFSET('Transition Probabilities'!$HJ$45,AQ10,($F10-1)*12+9),9,IF(RNG!AR10<OFFSET('Transition Probabilities'!$HJ$45,AQ10,($F10-1)*12+10),10,"ERROR"))))))))))) -> 3 | AS10: =IF(RNG!AP10<((OFFSET(Parameters!$H$114,(AR10-1)*9,$F10))*(VLOOKUP($H10+AS$9,'Age Dependencies'!$E$8:$H$208,2,0))),1,IF(RNG!AS10<OFFSET('Transition Probabilities'!$HJ$45,AR10,($F10-1)*12+1),1,IF(RNG!AS10<OFFSET('Transition Probabilities'!$HJ$45,AR10,($F10-1)*12+2),2,IF(RNG!AS10<OFFSET('Transition Probabilities'!$HJ$45,AR10,($F10-1)*12+3),3,IF(RNG!AS10<OFFSET('Transition Probabilities'!$HJ$45,AR10,($F10-1)*12+4),4,IF(RNG!AS10<OFFSET('Transition Probabilities'!$HJ$45,AR10,($F10-1)*12+5),5,IF(RNG!AS10<OFFSET('Transition Probabilities'!$HJ$45,AR10,($F10-1)*12+6),6,IF(RNG!AS10<OFFSET('Transition Probabilities'!$HJ$45,AR10,($F10-1)*12+7),7,IF(RNG!AS10<OFFSET('Transition Probabilities'!$HJ$45,AR10,($F10-1)*12+8),8,IF(RNG!AS10<OFFSET('Transition Probabilities'!$HJ$45,AR10,($F10-1)*12+9),9,IF(RNG!AS10<OFFSET('Transition Probabilities'!$HJ$45,AR10,($F10-1)*12+10),10,"ERROR"))))))))))) -> 3 | AT10: =IF(RNG!AQ10<((OFFSET(Parameters!$H$114,(AS10-1)*9,$F10))*(VLOOKUP($H10+AT$9,'Age Dependencies'!$E$8:$H$208,2,0))),1,IF(RNG!AT10<OFFSET('Transition Probabilities'!$HJ$45,AS10,($F10-1)*12+1),1,IF(RNG!AT10<OFFSET('Transition Probabilities'!$HJ$45,AS10,($F10-1)*12+2),2,IF(RNG!AT10<OFFSET('Transition Probabilities'!$HJ$45,AS10,($F10-1)*12+3),3,IF(RNG!AT10<OFFSET('Transition Probabilities'!$HJ$45,AS10,($F10-1)*12+4),4,IF(RNG!AT10<OFFSET('Transition Probabilities'!$HJ$45,AS10,($F10-1)*12+5),5,IF(RNG!AT10<OFFSET('Transition Probabilities'!$HJ$45,AS10,($F10-1)*12+6),6,IF(RNG!AT10<OFFSET('Transition Probabilities'!$HJ$45,AS10,($F10-1)*12+7),7,IF(RNG!AT10<OFFSET('Transition Probabilities'!$HJ$45,AS10,($F10-1)*12+8),8,IF(RNG!AT10<OFFSET('Transition Probabilities'!$HJ$45,AS10,($F10-1)*12+9),9,IF(RNG!AT10<OFFSET('Transition Probabilities'!$HJ$45,AS10,($F10-1)*12+10),10,"ERROR"))))))))))) -> 3 | AU10: =IF(RNG!AR10<((OFFSET(Parameters!$H$114,(AT10-1)*9,$F10))*(VLOOKUP($H10+AU$9,'Age Dependencies'!$E$8:$H$208,2,0))),1,IF(RNG!AU10<OFFSET('Transition Probabilities'!$HJ$45,AT10,($F10-1)*12+1),1,IF(RNG!AU10<OFFSET('Transition Probabilities'!$HJ$45,AT10,($F10-1)*12+2),2,IF(RNG!AU10<OFFSET('Transition Probabilities'!$HJ$45,AT10,($F10-1)*12+3),3,IF(RNG!AU10<OFFSET('Transition Probabilities'!$HJ$45,AT10,($F10-1)*12+4),4,IF(RNG!AU10<OFFSET('Transition Probabilities'!$HJ$45,AT10,($F10-1)*12+5),5,IF(RNG!AU10<OFFSET('Transition Probabilities'!$HJ$45,AT10,($F10-1)*12+6),6,IF(RNG!AU10<OFFSET('Transition Probabilities'!$HJ$45,AT10,($F10-1)*12+7),7,IF(RNG!AU10<OFFSET('Transition Probabilities'!$HJ$45,AT10,($F10-1)*12+8),8,IF(RNG!AU10<OFFSET('Transition Probabilities'!$HJ$45,AT10,($F10-1)*12+9),9,IF(RNG!AU10<OFFSET('Transition Probabilities'!$HJ$45,AT10,($F10-1)*12+10),10,"ERROR"))))))))))) -> 3 | AV10: =IF(RNG!AS10<((OFFSET(Parameters!$H$114,(AU10-1)*9,$F10))*(VLOOKUP($H10+AV$9,'Age Dependencies'!$E$8:$H$208,2,0))),1,IF(RNG!AV10<OFFSET('Transition Probabilities'!$HJ$45,AU10,($F10-1)*12+1),1,IF(RNG!AV10<OFFSET('Transition Probabilities'!$HJ$45,AU10,($F10-1)*12+2),2,IF(RNG!AV10<OFFSET('Transition Probabilities'!$HJ$45,AU10,($F10-1)*12+3),3,IF(RNG!AV10<OFFSET('Transition Probabilities'!$HJ$45,AU10,($F10-1)*12+4),4,IF(RNG!AV10<OFFSET('Transition Probabilities'!$HJ$45,AU10,($F10-1)*12+5),5,IF(RNG!AV10<OFFSET('Transition Probabilities'!$HJ$45,AU10,($F10-1)*12+6),6,IF(RNG!AV10<OFFSET('Transition Probabilities'!$HJ$45,AU10,($F10-1)*12+7),7,IF(RNG!AV10<OFFSET('Transition Probabilities'!$HJ$45,AU10,($F10-1)*12+8),8,IF(RNG!AV10<OFFSET('Transition Probabilities'!$HJ$45,AU10,($F10-1)*12+9),9,IF(RNG!AV10<OFFSET('Transition Probabilities'!$HJ$45,AU10,($F10-1)*12+10),10,"ERROR"))))))))))) -> 3 | AW10: =IF(RNG!AT10<((OFFSET(Parameters!$H$114,(AV10-1)*9,$F10))*(VLOOKUP($H10+AW$9,'Age Dependencies'!$E$8:$H$208,2,0))),1,IF(RNG!AW10<OFFSET('Transition Probabilities'!$HJ$45,AV10,($F10-1)*12+1),1,IF(RNG!AW10<OFFSET('Transition Probabilities'!$HJ$45,AV10,($F10-1)*12+2),2,IF(RNG!AW10<OFFSET('Transition Probabilities'!$HJ$45,AV10,($F10-1)*12+3),3,IF(RNG!AW10<OFFSET('Transition Probabilities'!$HJ$45,AV10,($F10-1)*12+4),4,IF(RNG!AW10<OFFSET('Transition Probabilities'!$HJ$45,AV10,($F10-1)*12+5),5,IF(RNG!AW10<OFFSET('Transition Probabilities'!$HJ$45,AV10,($F10-1)*12+6),6,IF(RNG!AW10<OFFSET('Transition Probabilities'!$HJ$45,AV10,($F10-1)*12+7),7,IF(RNG!AW10<OFFSET('Transition Probabilities'!$HJ$45,AV10,($F10-1)*12+8),8,IF(RNG!AW10<OFFSET('Transition Probabilities'!$HJ$45,AV10,($F10-1)*12+9),9,IF(RNG!AW10<OFFSET('Transition Probabilities'!$HJ$45,AV10,($F10-1)*12+10),10,"ERROR"))))))))))) -> 3 | AX10: =IF(RNG!AU10<((OFFSET(Parameters!$H$114,(AW10-1)*9,$F10))*(VLOOKUP($H10+AX$9,'Age Dependencies'!$E$8:$H$208,2,0))),1,IF(RNG!AX10<OFFSET('Transition Probabilities'!$HJ$45,AW10,($F10-1)*12+1),1,IF(RNG!AX10<OFFSET('Transition Probabilities'!$HJ$45,AW10,($F10-1)*12+2),2,IF(RNG!AX10<OFFSET('Transition Probabilities'!$HJ$45,AW10,($F10-1)*12+3),3,IF(RNG!AX10<OFFSET('Transition Probabilities'!$HJ$45,AW10,($F10-1)*12+4),4,IF(RNG!AX10<OFFSET('Transition Probabilities'!$HJ$45,AW10,($F10-1)*12+5),5,IF(RNG!AX10<OFFSET('Transition Probabilities'!$HJ$45,AW10,($F10-1)*12+6),6,IF(RNG!AX10<OFFSET('Transition Probabilities'!$HJ$45,AW10,($F10-1)*12+7),7,IF(RNG!AX10<OFFSET('Transition Probabilities'!$HJ$45,AW10,($F10-1)*12+8),8,IF(RNG!AX10<OFFSET('Transition Probabilities'!$HJ$45,AW10,($F10-1)*12+9),9,IF(RNG!AX10<OFFSET('Transition Probabilities'!$HJ$45,AW10,($F10-1)*12+10),10,"ERROR"))))))))))) -> 3 | AY10: =IF(RNG!AV10<((OFFSET(Parameters!$H$114,(AX10-1)*9,$F10))*(VLOOKUP($H10+AY$9,'Age Dependencies'!$E$8:$H$208,2,0))),1,IF(RNG!AY10<OFFSET('Transition Probabilities'!$HJ$45,AX10,($F10-1)*12+1),1,IF(RNG!AY10<OFFSET('Transition Probabilities'!$HJ$45,AX10,($F10-1)*12+2),2,IF(RNG!AY10<OFFSET('Transition Probabilities'!$HJ$45,AX10,($F10-1)*12+3),3,IF(RNG!AY10<OFFSET('Transition Probabilities'!$HJ$45,AX10,($F10-1)*12+4),4,IF(RNG!AY10<OFFSET('Transition Probabilities'!$HJ$45,AX10,($F10-1)*12+5),5,IF(RNG!AY10<OFFSET('Transition Probabilities'!$HJ$45,AX10,($F10-1)*12+6),6,IF(RNG!AY10<OFFSET('Transition Probabilities'!$HJ$45,AX10,($F10-1)*12+7),7,IF(RNG!AY10<OFFSET('Transition Probabilities'!$HJ$45,AX10,($F10-1)*12+8),8,IF(RNG!AY10<OFFSET('Transition Probabilities'!$HJ$45,AX10,($F10-1)*12+9),9,IF(RNG!AY10<OFFSET('Transition Probabilities'!$HJ$45,AX10,($F10-1)*12+10),10,"ERROR"))))))))))) -> 3 | AZ10: =IF(RNG!AW10<((OFFSET(Parameters!$H$114,(AY10-1)*9,$F10))*(VLOOKUP($H10+AZ$9,'Age Dependencies'!$E$8:$H$208,2,0))),1,IF(RNG!AZ10<OFFSET('Transition Probabilities'!$HJ$45,AY10,($F10-1)*12+1),1,IF(RNG!AZ10<OFFSET('Transition Probabilities'!$HJ$45,AY10,($F10-1)*12+2),2,IF(RNG!AZ10<OFFSET('Transition Probabilities'!$HJ$45,AY10,($F10-1)*12+3),3,IF(RNG!AZ10<OFFSET('Transition Probabilities'!$HJ$45,AY10,($F10-1)*12+4),4,IF(RNG!AZ10<OFFSET('Transition Probabilities'!$HJ$45,AY10,($F10-1)*12+5),5,IF(RNG!AZ10<OFFSET('Transition Probabilities'!$HJ$45,AY10,($F10-1)*12+6),6,IF(RNG!AZ10<OFFSET('Transition Probabilities'!$HJ$45,AY10,($F10-1)*12+7),7,IF(RNG!AZ10<OFFSET('Transition Probabilities'!$HJ$45,AY10,($F10-1)*12+8),8,IF(RNG!AZ10<OFFSET('Transition Probabilities'!$HJ$45,AY10,($F10-1)*12+9),9,IF(RNG!AZ10<OFFSET('Transition Probabilities'!$HJ$45,AY10,($F10-1)*12+10),10,"ERROR"))))))))))) -> 3 | BA10: =IF(RNG!AX10<((OFFSET(Parameters!$H$114,(AZ10-1)*9,$F10))*(VLOOKUP($H10+BA$9,'Age Dependencies'!$E$8:$H$208,2,0))),1,IF(RNG!BA10<OFFSET('Transition Probabilities'!$HJ$45,AZ10,($F10-1)*12+1),1,IF(RNG!BA10<OFFSET('Transition Probabilities'!$HJ$45,AZ10,($F10-1)*12+2),2,IF(RNG!BA10<OFFSET('Transition Probabilities'!$HJ$45,AZ10,($F10-1)*12+3),3,IF(RNG!BA10<OFFSET('Transition Probabilities'!$HJ$45,AZ10,($F10-1)*12+4),4,IF(RNG!BA10<OFFSET('Transition Probabilities'!$HJ$45,AZ10,($F10-1)*12+5),5,IF(RNG!BA10<OFFSET('Transition Probabilities'!$HJ$45,AZ10,($F10-1)*12+6),6,IF(RNG!BA10<OFFSET('Transition Probabilities'!$HJ$45,AZ10,($F10-1)*12+7),7,IF(RNG!BA10<OFFSET('Transition Probabilities'!$HJ$45,AZ10,($F10-1)*12+8),8,IF(RNG!BA10<OFFSET('Transition Probabilities'!$HJ$45,AZ10,($F10-1)*12+9),9,IF(RNG!BA10<OFFSET('Transition Probabilities'!$HJ$45,AZ10,($F10-1)*12+10),10,"ERROR"))))))))))) -> 3 | BB10: =IF(RNG!AY10<((OFFSET(Parameters!$H$114,(BA10-1)*9,$F10))*(VLOOKUP($H10+BB$9,'Age Dependencies'!$E$8:$H$208,2,0))),1,IF(RNG!BB10<OFFSET('Transition Probabilities'!$HJ$45,BA10,($F10-1)*12+1),1,IF(RNG!BB10<OFFSET('Transition Probabilities'!$HJ$45,BA10,($F10-1)*12+2),2,IF(RNG!BB10<OFFSET('Transition Probabilities'!$HJ$45,BA10,($F10-1)*12+3),3,IF(RNG!BB10<OFFSET('Transition Probabilities'!$HJ$45,BA10,($F10-1)*12+4),4,IF(RNG!BB10<OFFSET('Transition Probabilities'!$HJ$45,BA10,($F10-1)*12+5),5,IF(RNG!BB10<OFFSET('Transition Probabilities'!$HJ$45,BA10,($F10-1)*12+6),6,IF(RNG!BB10<OFFSET('Transition Probabilities'!$HJ$45,BA10,($F10-1)*12+7),7,IF(RNG!BB10<OFFSET('Transition Probabilities'!$HJ$45,BA10,($F10-1)*12+8),8,IF(RNG!BB10<OFFSET('Transition Probabilities'!$HJ$45,BA10,($F10-1)*12+9),9,IF(RNG!BB10<OFFSET('Transition Probabilities'!$HJ$45,BA10,($F10-1)*12+10),10,"ERROR"))))))))))) -> 3 | BC10: =IF(RNG!AZ10<((OFFSET(Parameters!$H$114,(BB10-1)*9,$F10))*(VLOOKUP($H10+BC$9,'Age Dependencies'!$E$8:$H$208,2,0))),1,IF(RNG!BC10<OFFSET('Transition Probabilities'!$HJ$45,BB10,($F10-1)*12+1),1,IF(RNG!BC10<OFFSET('Transition Probabilities'!$HJ$45,BB10,($F10-1)*12+2),2,IF(RNG!BC10<OFFSET('Transition Probabilities'!$HJ$45,BB10,($F10-1)*12+3),3,IF(RNG!BC10<OFFSET('Transition Probabilities'!$HJ$45,BB10,($F10-1)*12+4),4,IF(RNG!BC10<OFFSET('Transition Probabilities'!$HJ$45,BB10,($F10-1)*12+5),5,IF(RNG!BC10<OFFSET('Transition Probabilities'!$HJ$45,BB10,($F10-1)*12+6),6,IF(RNG!BC10<OFFSET('Transition Probabilities'!$HJ$45,BB10,($F10-1)*12+7),7,IF(RNG!BC10<OFFSET('Transition Probabilities'!$HJ$45,BB10,($F10-1)*12+8),8,IF(RNG!BC10<OFFSET('Transition Probabilities'!$HJ$45,BB10,($F10-1)*12+9),9,IF(RNG!BC10<OFFSET('Transition Probabilities'!$HJ$45,BB10,($F10-1)*12+10),10,"ERROR"))))))))))) -> 3 | BD10: =IF(RNG!BA10<((OFFSET(Parameters!$H$114,(BC10-1)*9,$F10))*(VLOOKUP($H10+BD$9,'Age Dependencies'!$E$8:$H$208,2,0))),1,IF(RNG!BD10<OFFSET('Transition Probabilities'!$HJ$45,BC10,($F10-1)*12+1),1,IF(RNG!BD10<OFFSET('Transition Probabilities'!$HJ$45,BC10,($F10-1)*12+2),2,IF(RNG!BD10<OFFSET('Transition Probabilities'!$HJ$45,BC10,($F10-1)*12+3),3,IF(RNG!BD10<OFFSET('Transition Probabilities'!$HJ$45,BC10,($F10-1)*12+4),4,IF(RNG!BD10<OFFSET('Transition Probabilities'!$HJ$45,BC10,($F10-1)*12+5),5,IF(RNG!BD10<OFFSET('Transition Probabilities'!$HJ$45,BC10,($F10-1)*12+6),6,IF(RNG!BD10<OFFSET('Transition Probabilities'!$HJ$45,BC10,($F10-1)*12+7),7,IF(RNG!BD10<OFFSET('Transition Probabilities'!$HJ$45,BC10,($F10-1)*12+8),8,IF(RNG!BD10<OFFSET('Transition Probabilities'!$HJ$45,BC10,($F10-1)*12+9),9,IF(RNG!BD10<OFFSET('Transition Probabilities'!$HJ$45,BC10,($F10-1)*12+10),10,"ERROR"))))))))))) -> 3 | BE10: =IF(RNG!BB10<((OFFSET(Parameters!$H$114,(BD10-1)*9,$F10))*(VLOOKUP($H10+BE$9,'Age Dependencies'!$E$8:$H$208,2,0))),1,IF(RNG!BE10<OFFSET('Transition Probabilities'!$HJ$45,BD10,($F10-1)*12+1),1,IF(RNG!BE10<OFFSET('Transition Probabilities'!$HJ$45,BD10,($F10-1)*12+2),2,IF(RNG!BE10<OFFSET('Transition Probabilities'!$HJ$45,BD10,($F10-1)*12+3),3,IF(RNG!BE10<OFFSET('Transition Probabilities'!$HJ$45,BD10,($F10-1)*12+4),4,IF(RNG!BE10<OFFSET('Transition Probabilities'!$HJ$45,BD10,($F10-1)*12+5),5,IF(RNG!BE10<OFFSET('Transition Probabilities'!$HJ$45,BD10,($F10-1)*12+6),6,IF(RNG!BE10<OFFSET('Transition Probabilities'!$HJ$45,BD10,($F10-1)*12+7),7,IF(RNG!BE10<OFFSET('Transition Probabilities'!$HJ$45,BD10,($F10-1)*12+8),8,IF(RNG!BE10<OFFSET('Transition Probabilities'!$HJ$45,BD10,($F10-1)*12+9),9,IF(RNG!BE10<OFFSET('Transition Probabilities'!$HJ$45,BD10,($F10-1)*12+10),10,"ERROR"))))))))))) -> 3 | BF10: =IF(RNG!BC10<((OFFSET(Parameters!$H$114,(BE10-1)*9,$F10))*(VLOOKUP($H10+BF$9,'Age Dependencies'!$E$8:$H$208,2,0))),1,IF(RNG!BF10<OFFSET('Transition Probabilities'!$HJ$45,BE10,($F10-1)*12+1),1,IF(RNG!BF10<OFFSET('Transition Probabilities'!$HJ$45,BE10,($F10-1)*12+2),2,IF(RNG!BF10<OFFSET('Transition Probabilities'!$HJ$45,BE10,($F10-1)*12+3),3,IF(RNG!BF10<OFFSET('Transition Probabilities'!$HJ$45,BE10,($F10-1)*12+4),4,IF(RNG!BF10<OFFSET('Transition Probabilities'!$HJ$45,BE10,($F10-1)*12+5),5,IF(RNG!BF10<OFFSET('Transition Probabilities'!$HJ$45,BE10,($F10-1)*12+6),6,IF(RNG!BF10<OFFSET('Transition Probabilities'!$HJ$45,BE10,($F10-1)*12+7),7,IF(RNG!BF10<OFFSET('Transition Probabilities'!$HJ$45,BE10,($F10-1)*12+8),8,IF(RNG!BF10<OFFSET('Transition Probabilities'!$HJ$45,BE10,($F10-1)*12+9),9,IF(RNG!BF10<OFFSET('Transition Probabilities'!$HJ$45,BE10,($F10-1)*12+10),10,"ERROR"))))))))))) -> 3 | BG10: =IF(RNG!BD10<((OFFSET(Parameters!$H$114,(BF10-1)*9,$F10))*(VLOOKUP($H10+BG$9,'Age Dependencies'!$E$8:$H$208,2,0))),1,IF(RNG!BG10<OFFSET('Transition Probabilities'!$HJ$45,BF10,($F10-1)*12+1),1,IF(RNG!BG10<OFFSET('Transition Probabilities'!$HJ$45,BF10,($F10-1)*12+2),2,IF(RNG!BG10<OFFSET('Transition Probabilities'!$HJ$45,BF10,($F10-1)*12+3),3,IF(RNG!BG10<OFFSET('Transition Probabilities'!$HJ$45,BF10,($F10-1)*12+4),4,IF(RNG!BG10<OFFSET('Transition Probabilities'!$HJ$45,BF10,($F10-1)*12+5),5,IF(RNG!BG10<OFFSET('Transition Probabilities'!$HJ$45,BF10,($F10-1)*12+6),6,IF(RNG!BG10<OFFSET('Transition Probabilities'!$HJ$45,BF10,($F10-1)*12+7),7,IF(RNG!BG10<OFFSET('Transition Probabilities'!$HJ$45,BF10,($F10-1)*12+8),8,IF(RNG!BG10<OFFSET('Transition Probabilities'!$HJ$45,BF10,($F10-1)*12+9),9,IF(RNG!BG10<OFFSET('Transition Probabilities'!$HJ$45,BF10,($F10-1)*12+10),10,"ERROR"))))))))))) -> 3 | BH10: =IF(RNG!BE10<((OFFSET(Parameters!$H$114,(BG10-1)*9,$F10))*(VLOOKUP($H10+BH$9,'Age Dependencies'!$E$8:$H$208,2,0))),1,IF(RNG!BH10<OFFSET('Transition Probabilities'!$HJ$45,BG10,($F10-1)*12+1),1,IF(RNG!BH10<OFFSET('Transition Probabilities'!$HJ$45,BG10,($F10-1)*12+2),2,IF(RNG!BH10<OFFSET('Transition Probabilities'!$HJ$45,BG10,($F10-1)*12+3),3,IF(RNG!BH10<OFFSET('Transition Probabilities'!$HJ$45,BG10,($F10-1)*12+4),4,IF(RNG!BH10<OFFSET('Transition Probabilities'!$HJ$45,BG10,($F10-1)*12+5),5,IF(RNG!BH10<OFFSET('Transition Probabilities'!$HJ$45,BG10,($F10-1)*12+6),6,IF(RNG!BH10<OFFSET('Transition Probabilities'!$HJ$45,BG10,($F10-1)*12+7),7,IF(RNG!BH10<OFFSET('Transition Probabilities'!$HJ$45,BG10,($F10-1)*12+8),8,IF(RNG!BH10<OFFSET('Transition Probabilities'!$HJ$45,BG10,($F10-1)*12+9),9,IF(RNG!BH10<OFFSET('Transition Probabilities'!$HJ$45,BG10,($F10-1)*12+10),10,"ERROR"))))))))))) -> 3 | BI10: =IF(RNG!BF10<((OFFSET(Parameters!$H$114,(BH10-1)*9,$F10))*(VLOOKUP($H10+BI$9,'Age Dependencies'!$E$8:$H$208,2,0))),1,IF(RNG!BI10<OFFSET('Transition Probabilities'!$HJ$45,BH10,($F10-1)*12+1),1,IF(RNG!BI10<OFFSET('Transition Probabilities'!$HJ$45,BH10,($F10-1)*12+2),2,IF(RNG!BI10<OFFSET('Transition Probabilities'!$HJ$45,BH10,($F10-1)*12+3),3,IF(RNG!BI10<OFFSET('Transition Probabilities'!$HJ$45,BH10,($F10-1)*12+4),4,IF(RNG!BI10<OFFSET('Transition Probabilities'!$HJ$45,BH10,($F10-1)*12+5),5,IF(RNG!BI10<OFFSET('Transition Probabilities'!$HJ$45,BH10,($F10-1)*12+6),6,IF(RNG!BI10<OFFSET('Transition Probabilities'!$HJ$45,BH10,($F10-1)*12+7),7,IF(RNG!BI10<OFFSET('Transition Probabilities'!$HJ$45,BH10,($F10-1)*12+8),8,IF(RNG!BI10<OFFSET('Transition Probabilities'!$HJ$45,BH10,($F10-1)*12+9),9,IF(RNG!BI10<OFFSET('Transition Probabilities'!$HJ$45,BH10,($F10-1)*12+10),10,"ERROR"))))))))))) -> 3 | BJ10: =IF(RNG!BG10<((OFFSET(Parameters!$H$114,(BI10-1)*9,$F10))*(VLOOKUP($H10+BJ$9,'Age Dependencies'!$E$8:$H$208,2,0))),1,IF(RNG!BJ10<OFFSET('Transition Probabilities'!$HJ$45,BI10,($F10-1)*12+1),1,IF(RNG!BJ10<OFFSET('Transition Probabilities'!$HJ$45,BI10,($F10-1)*12+2),2,IF(RNG!BJ10<OFFSET('Transition Probabilities'!$HJ$45,BI10,($F10-1)*12+3),3,IF(RNG!BJ10<OFFSET('Transition Probabilities'!$HJ$45,BI10,($F10-1)*12+4),4,IF(RNG!BJ10<OFFSET('Transition Probabilities'!$HJ$45,BI10,($F10-1)*12+5),5,IF(RNG!BJ10<OFFSET('Transition Probabilities'!$HJ$45,BI10,($F10-1)*12+6),6,IF(RNG!BJ10<OFFSET('Transition Probabilities'!$HJ$45,BI10,($F10-1)*12+7),7,IF(RNG!BJ10<OFFSET('Transition Probabilities'!$HJ$45,BI10,($F10-1)*12+8),8,IF(RNG!BJ10<OFFSET('Transition Probabilities'!$HJ$45,BI10,($F10-1)*12+9),9,IF(RNG!BJ10<OFFSET('Transition Probabilities'!$HJ$45,BI10,($F10-1)*12+10),10,"ERROR"))))))))))) -> 3 | BK10: =IF(RNG!BH10<((OFFSET(Parameters!$H$114,(BJ10-1)*9,$F10))*(VLOOKUP($H10+BK$9,'Age Dependencies'!$E$8:$H$208,2,0))),1,IF(RNG!BK10<OFFSET('Transition Probabilities'!$HJ$45,BJ10,($F10-1)*12+1),1,IF(RNG!BK10<OFFSET('Transition Probabilities'!$HJ$45,BJ10,($F10-1)*12+2),2,IF(RNG!BK10<OFFSET('Transition Probabilities'!$HJ$45,BJ10,($F10-1)*12+3),3,IF(RNG!BK10<OFFSET('Transition Probabilities'!$HJ$45,BJ10,($F10-1)*12+4),4,IF(RNG!BK10<OFFSET('Transition Probabilities'!$HJ$45,BJ10,($F10-1)*12+5),5,IF(RNG!BK10<OFFSET('Transition Probabilities'!$HJ$45,BJ10,($F10-1)*12+6),6,IF(RNG!BK10<OFFSET('Transition Probabilities'!$HJ$45,BJ10,($F10-1)*12+7),7,IF(RNG!BK10<OFFSET('Transition Probabilities'!$HJ$45,BJ10,($F10-1)*12+8),8,IF(RNG!BK10<OFFSET('Transition Probabilities'!$HJ$45,BJ10,($F10-1)*12+9),9,IF(RNG!BK10<OFFSET('Transition Probabilities'!$HJ$45,BJ10,($F10-1)*12+10),10,"ERROR"))))))))))) -> 3 | BL10: =IF(RNG!BI10<((OFFSET(Parameters!$H$114,(BK10-1)*9,$F10))*(VLOOKUP($H10+BL$9,'Age Dependencies'!$E$8:$H$208,2,0))),1,IF(RNG!BL10<OFFSET('Transition Probabilities'!$HJ$45,BK10,($F10-1)*12+1),1,IF(RNG!BL10<OFFSET('Transition Probabilities'!$HJ$45,BK10,($F10-1)*12+2),2,IF(RNG!BL10<OFFSET('Transition Probabilities'!$HJ$45,BK10,($F10-1)*12+3),3,IF(RNG!BL10<OFFSET('Transition Probabilities'!$HJ$45,BK10,($F10-1)*12+4),4,IF(RNG!BL10<OFFSET('Transition Probabilities'!$HJ$45,BK10,($F10-1)*12+5),5,IF(RNG!BL10<OFFSET('Transition Probabilities'!$HJ$45,BK10,($F10-1)*12+6),6,IF(RNG!BL10<OFFSET('Transition Probabilities'!$HJ$45,BK10,($F10-1)*12+7),7,IF(RNG!BL10<OFFSET('Transition Probabilities'!$HJ$45,BK10,($F10-1)*12+8),8,IF(RNG!BL10<OFFSET('Transition Probabilities'!$HJ$45,BK10,($F10-1)*12+9),9,IF(RNG!BL10<OFFSET('Transition Probabilities'!$HJ$45,BK10,($F10-1)*12+10),10,"ERROR"))))))))))) -> 3 | BM10: =IF(RNG!BJ10<((OFFSET(Parameters!$H$114,(BL10-1)*9,$F10))*(VLOOKUP($H10+BM$9,'Age Dependencies'!$E$8:$H$208,2,0))),1,IF(RNG!BM10<OFFSET('Transition Probabilities'!$HJ$45,BL10,($F10-1)*12+1),1,IF(RNG!BM10<OFFSET('Transition Probabilities'!$HJ$45,BL10,($F10-1)*12+2),2,IF(RNG!BM10<OFFSET('Transition Probabilities'!$HJ$45,BL10,($F10-1)*12+3),3,IF(RNG!BM10<OFFSET('Transition Probabilities'!$HJ$45,BL10,($F10-1)*12+4),4,IF(RNG!BM10<OFFSET('Transition Probabilities'!$HJ$45,BL10,($F10-1)*12+5),5,IF(RNG!BM10<OFFSET('Transition Probabilities'!$HJ$45,BL10,($F10-1)*12+6),6,IF(RNG!BM10<OFFSET('Transition Probabilities'!$HJ$45,BL10,($F10-1)*12+7),7,IF(RNG!BM10<OFFSET('Transition Probabilities'!$HJ$45,BL10,($F10-1)*12+8),8,IF(RNG!BM10<OFFSET('Transition Probabilities'!$HJ$45,BL10,($F10-1)*12+9),9,IF(RNG!BM10<OFFSET('Transition Probabilities'!$HJ$45,BL10,($F10-1)*12+10),10,"ERROR"))))))))))) -> 3 | BN10: =IF(RNG!BK10<((OFFSET(Parameters!$H$114,(BM10-1)*9,$F10))*(VLOOKUP($H10+BN$9,'Age Dependencies'!$E$8:$H$208,2,0))),1,IF(RNG!BN10<OFFSET('Transition Probabilities'!$HJ$45,BM10,($F10-1)*12+1),1,IF(RNG!BN10<OFFSET('Transition Probabilities'!$HJ$45,BM10,($F10-1)*12+2),2,IF(RNG!BN10<OFFSET('Transition Probabilities'!$HJ$45,BM10,($F10-1)*12+3),3,IF(RNG!BN10<OFFSET('Transition Probabilities'!$HJ$45,BM10,($F10-1)*12+4),4,IF(RNG!BN10<OFFSET('Transition Probabilities'!$HJ$45,BM10,($F10-1)*12+5),5,IF(RNG!BN10<OFFSET('Transition Probabilities'!$HJ$45,BM10,($F10-1)*12+6),6,IF(RNG!BN10<OFFSET('Transition Probabilities'!$HJ$45,BM10,($F10-1)*12+7),7,IF(RNG!BN10<OFFSET('Transition Probabilities'!$HJ$45,BM10,($F10-1)*12+8),8,IF(RNG!BN10<OFFSET('Transition Probabilities'!$HJ$45,BM10,($F10-1)*12+9),9,IF(RNG!BN10<OFFSET('Transition Probabilities'!$HJ$45,BM10,($F10-1)*12+10),10,"ERROR"))))))))))) -> 3 | BO10: =IF(RNG!BL10<((OFFSET(Parameters!$H$114,(BN10-1)*9,$F10))*(VLOOKUP($H10+BO$9,'Age Dependencies'!$E$8:$H$208,2,0))),1,IF(RNG!BO10<OFFSET('Transition Probabilities'!$HJ$45,BN10,($F10-1)*12+1),1,IF(RNG!BO10<OFFSET('Transition Probabilities'!$HJ$45,BN10,($F10-1)*12+2),2,IF(RNG!BO10<OFFSET('Transition Probabilities'!$HJ$45,BN10,($F10-1)*12+3),3,IF(RNG!BO10<OFFSET('Transition Probabilities'!$HJ$45,BN10,($F10-1)*12+4),4,IF(RNG!BO10<OFFSET('Transition Probabilities'!$HJ$45,BN10,($F10-1)*12+5),5,IF(RNG!BO10<OFFSET('Transition Probabilities'!$HJ$45,BN10,($F10-1)*12+6),6,IF(RNG!BO10<OFFSET('Transition Probabilities'!$HJ$45,BN10,($F10-1)*12+7),7,IF(RNG!BO10<OFFSET('Transition Probabilities'!$HJ$45,BN10,($F10-1)*12+8),8,IF(RNG!BO10<OFFSET('Transition Probabilities'!$HJ$45,BN10,($F10-1)*12+9),9,IF(RNG!BO10<OFFSET('Transition Probabilities'!$HJ$45,BN10,($F10-1)*12+10),10,"ERROR"))))))))))) -> 3 | BP10: =IF(RNG!BM10<((OFFSET(Parameters!$H$114,(BO10-1)*9,$F10))*(VLOOKUP($H10+BP$9,'Age Dependencies'!$E$8:$H$208,2,0))),1,IF(RNG!BP10<OFFSET('Transition Probabilities'!$HJ$45,BO10,($F10-1)*12+1),1,IF(RNG!BP10<OFFSET('Transition Probabilities'!$HJ$45,BO10,($F10-1)*12+2),2,IF(RNG!BP10<OFFSET('Transition Probabilities'!$HJ$45,BO10,($F10-1)*12+3),3,IF(RNG!BP10<OFFSET('Transition Probabilities'!$HJ$45,BO10,($F10-1)*12+4),4,IF(RNG!BP10<OFFSET('Transition Probabilities'!$HJ$45,BO10,($F10-1)*12+5),5,IF(RNG!BP10<OFFSET('Transition Probabilities'!$HJ$45,BO10,($F10-1)*12+6),6,IF(RNG!BP10<OFFSET('Transition Probabilities'!$HJ$45,BO10,($F10-1)*12+7),7,IF(RNG!BP10<OFFSET('Transition Probabilities'!$HJ$45,BO10,($F10-1)*12+8),8,IF(RNG!BP10<OFFSET('Transition Probabilities'!$HJ$45,BO10,($F10-1)*12+9),9,IF(RNG!BP10<OFFSET('Transition Probabilities'!$HJ$45,BO10,($F10-1)*12+10),10,"ERROR"))))))))))) -> 3 | BQ10: =IF(RNG!BN10<((OFFSET(Parameters!$H$114,(BP10-1)*9,$F10))*(VLOOKUP($H10+BQ$9,'Age Dependencies'!$E$8:$H$208,2,0))),1,IF(RNG!BQ10<OFFSET('Transition Probabilities'!$HJ$45,BP10,($F10-1)*12+1),1,IF(RNG!BQ10<OFFSET('Transition Probabilities'!$HJ$45,BP10,($F10-1)*12+2),2,IF(RNG!BQ10<OFFSET('Transition Probabilities'!$HJ$45,BP10,($F10-1)*12+3),3,IF(RNG!BQ10<OFFSET('Transition Probabilities'!$HJ$45,BP10,($F10-1)*12+4),4,IF(RNG!BQ10<OFFSET('Transition Probabilities'!$HJ$45,BP10,($F10-1)*12+5),5,IF(RNG!BQ10<OFFSET('Transition Probabilities'!$HJ$45,BP10,($F10-1)*12+6),6,IF(RNG!BQ10<OFFSET('Transition Probabilities'!$HJ$45,BP10,($F10-1)*12+7),7,IF(RNG!BQ10<OFFSET('Transition Probabilities'!$HJ$45,BP10,($F10-1)*12+8),8,IF(RNG!BQ10<OFFSET('Transition Probabilities'!$HJ$45,BP10,($F10-1)*12+9),9,IF(RNG!BQ10<OFFSET('Transition Probabilities'!$HJ$45,BP10,($F10-1)*12+10),10,"ERROR"))))))))))) -> 3 | BR10: =IF(RNG!BO10<((OFFSET(Parameters!$H$114,(BQ10-1)*9,$F10))*(VLOOKUP($H10+BR$9,'Age Dependencies'!$E$8:$H$208,2,0))),1,IF(RNG!BR10<OFFSET('Transition Probabilities'!$HJ$45,BQ10,($F10-1)*12+1),1,IF(RNG!BR10<OFFSET('Transition Probabilities'!$HJ$45,BQ10,($F10-1)*12+2),2,IF(RNG!BR10<OFFSET('Transition Probabilities'!$HJ$45,BQ10,($F10-1)*12+3),3,IF(RNG!BR10<OFFSET('Transition Probabilities'!$HJ$45,BQ10,($F10-1)*12+4),4,IF(RNG!BR10<OFFSET('Transition Probabilities'!$HJ$45,BQ10,($F10-1)*12+5),5,IF(RNG!BR10<OFFSET('Transition Probabilities'!$HJ$45,BQ10,($F10-1)*12+6),6,IF(RNG!BR10<OFFSET('Transition Probabilities'!$HJ$45,BQ10,($F10-1)*12+7),7,IF(RNG!BR10<OFFSET('Transition Probabilities'!$HJ$45,BQ10,($F10-1)*12+8),8,IF(RNG!BR10<OFFSET('Transition Probabilities'!$HJ$45,BQ10,($F10-1)*12+9),9,IF(RNG!BR10<OFFSET('Transition Probabilities'!$HJ$45,BQ10,($F10-1)*12+10),10,"ERROR"))))))))))) -> 3 | BS10: =IF(RNG!BP10<((OFFSET(Parameters!$H$114,(BR10-1)*9,$F10))*(VLOOKUP($H10+BS$9,'Age Dependencies'!$E$8:$H$208,2,0))),1,IF(RNG!BS10<OFFSET('Transition Probabilities'!$HJ$45,BR10,($F10-1)*12+1),1,IF(RNG!BS10<OFFSET('Transition Probabilities'!$HJ$45,BR10,($F10-1)*12+2),2,IF(RNG!BS10<OFFSET('Transition Probabilities'!$HJ$45,BR10,($F10-1)*12+3),3,IF(RNG!BS10<OFFSET('Transition Probabilities'!$HJ$45,BR10,($F10-1)*12+4),4,IF(RNG!BS10<OFFSET('Transition Probabilities'!$HJ$45,BR10,($F10-1)*12+5),5,IF(RNG!BS10<OFFSET('Transition Probabilities'!$HJ$45,BR10,($F10-1)*12+6),6,IF(RNG!BS10<OFFSET('Transition Probabilities'!$HJ$45,BR10,($F10-1)*12+7),7,IF(RNG!BS10<OFFSET('Transition Probabilities'!$HJ$45,BR10,($F10-1)*12+8),8,IF(RNG!BS10<OFFSET('Transition Probabilities'!$HJ$45,BR10,($F10-1)*12+9),9,IF(RNG!BS10<OFFSET('Transition Probabilities'!$HJ$45,BR10,($F10-1)*12+10),10,"ERROR"))))))))))) -> 3 | BT10: =IF(RNG!BQ10<((OFFSET(Parameters!$H$114,(BS10-1)*9,$F10))*(VLOOKUP($H10+BT$9,'Age Dependencies'!$E$8:$H$208,2,0))),1,IF(RNG!BT10<OFFSET('Transition Probabilities'!$HJ$45,BS10,($F10-1)*12+1),1,IF(RNG!BT10<OFFSET('Transition Probabilities'!$HJ$45,BS10,($F10-1)*12+2),2,IF(RNG!BT10<OFFSET('Transition Probabilities'!$HJ$45,BS10,($F10-1)*12+3),3,IF(RNG!BT10<OFFSET('Transition Probabilities'!$HJ$45,BS10,($F10-1)*12+4),4,IF(RNG!BT10<OFFSET('Transition Probabilities'!$HJ$45,BS10,($F10-1)*12+5),5,IF(RNG!BT10<OFFSET('Transition Probabilities'!$HJ$45,BS10,($F10-1)*12+6),6,IF(RNG!BT10<OFFSET('Transition Probabilities'!$HJ$45,BS10,($F10-1)*12+7),7,IF(RNG!BT10<OFFSET('Transition Probabilities'!$HJ$45,BS10,($F10-1)*12+8),8,IF(RNG!BT10<OFFSET('Transition Probabilities'!$HJ$45,BS10,($F10-1)*12+9),9,IF(RNG!BT10<OFFSET('Transition Probabilities'!$HJ$45,BS10,($F10-1)*12+10),10,"ERROR"))))))))))) -> 3 | BU10: =IF(RNG!BR10<((OFFSET(Parameters!$H$114,(BT10-1)*9,$F10))*(VLOOKUP($H10+BU$9,'Age Dependencies'!$E$8:$H$208,2,0))),1,IF(RNG!BU10<OFFSET('Transition Probabilities'!$HJ$45,BT10,($F10-1)*12+1),1,IF(RNG!BU10<OFFSET('Transition Probabilities'!$HJ$45,BT10,($F10-1)*12+2),2,IF(RNG!BU10<OFFSET('Transition Probabilities'!$HJ$45,BT10,($F10-1)*12+3),3,IF(RNG!BU10<OFFSET('Transition Probabilities'!$HJ$45,BT10,($F10-1)*12+4),4,IF(RNG!BU10<OFFSET('Transition Probabilities'!$HJ$45,BT10,($F10-1)*12+5),5,IF(RNG!BU10<OFFSET('Transition Probabilities'!$HJ$45,BT10,($F10-1)*12+6),6,IF(RNG!BU10<OFFSET('Transition Probabilities'!$HJ$45,BT10,($F10-1)*12+7),7,IF(RNG!BU10<OFFSET('Transition Probabilities'!$HJ$45,BT10,($F10-1)*12+8),8,IF(RNG!BU10<OFFSET('Transition Probabilities'!$HJ$45,BT10,($F10-1)*12+9),9,IF(RNG!BU10<OFFSET('Transition Probabilities'!$HJ$45,BT10,($F10-1)*12+10),10,"ERROR"))))))))))) -> 3 | BV10: =IF(RNG!BS10<((OFFSET(Parameters!$H$114,(BU10-1)*9,$F10))*(VLOOKUP($H10+BV$9,'Age Dependencies'!$E$8:$H$208,2,0))),1,IF(RNG!BV10<OFFSET('Transition Probabilities'!$HJ$45,BU10,($F10-1)*12+1),1,IF(RNG!BV10<OFFSET('Transition Probabilities'!$HJ$45,BU10,($F10-1)*12+2),2,IF(RNG!BV10<OFFSET('Transition Probabilities'!$HJ$45,BU10,($F10-1)*12+3),3,IF(RNG!BV10<OFFSET('Transition Probabilities'!$HJ$45,BU10,($F10-1)*12+4),4,IF(RNG!BV10<OFFSET('Transition Probabilities'!$HJ$45,BU10,($F10-1)*12+5),5,IF(RNG!BV10<OFFSET('Transition Probabilities'!$HJ$45,BU10,($F10-1)*12+6),6,IF(RNG!BV10<OFFSET('Transition Probabilities'!$HJ$45,BU10,($F10-1)*12+7),7,IF(RNG!BV10<OFFSET('Transition Probabilities'!$HJ$45,BU10,($F10-1)*12+8),8,IF(RNG!BV10<OFFSET('Transition Probabilities'!$HJ$45,BU10,($F10-1)*12+9),9,IF(RNG!BV10<OFFSET('Transition Probabilities'!$HJ$45,BU10,($F10-1)*12+10),10,"ERROR"))))))))))) -> 3 | BW10: =IF(RNG!BT10<((OFFSET(Parameters!$H$114,(BV10-1)*9,$F10))*(VLOOKUP($H10+BW$9,'Age Dependencies'!$E$8:$H$208,2,0))),1,IF(RNG!BW10<OFFSET('Transition Probabilities'!$HJ$45,BV10,($F10-1)*12+1),1,IF(RNG!BW10<OFFSET('Transition Probabilities'!$HJ$45,BV10,($F10-1)*12+2),2,IF(RNG!BW10<OFFSET('Transition Probabilities'!$HJ$45,BV10,($F10-1)*12+3),3,IF(RNG!BW10<OFFSET('Transition Probabilities'!$HJ$45,BV10,($F10-1)*12+4),4,IF(RNG!BW10<OFFSET('Transition Probabilities'!$HJ$45,BV10,($F10-1)*12+5),5,IF(RNG!BW10<OFFSET('Transition Probabilities'!$HJ$45,BV10,($F10-1)*12+6),6,IF(RNG!BW10<OFFSET('Transition Probabilities'!$HJ$45,BV10,($F10-1)*12+7),7,IF(RNG!BW10<OFFSET('Transition Probabilities'!$HJ$45,BV10,($F10-1)*12+8),8,IF(RNG!BW10<OFFSET('Transition Probabilities'!$HJ$45,BV10,($F10-1)*12+9),9,IF(RNG!BW10<OFFSET('Transition Probabilities'!$HJ$45,BV10,($F10-1)*12+10),10,"ERROR"))))))))))) -> 3 | BX10: =IF(RNG!BU10<((OFFSET(Parameters!$H$114,(BW10-1)*9,$F10))*(VLOOKUP($H10+BX$9,'Age Dependencies'!$E$8:$H$208,2,0))),1,IF(RNG!BX10<OFFSET('Transition Probabilities'!$HJ$45,BW10,($F10-1)*12+1),1,IF(RNG!BX10<OFFSET('Transition Probabilities'!$HJ$45,BW10,($F10-1)*12+2),2,IF(RNG!BX10<OFFSET('Transition Probabilities'!$HJ$45,BW10,($F10-1)*12+3),3,IF(RNG!BX10<OFFSET('Transition Probabilities'!$HJ$45,BW10,($F10-1)*12+4),4,IF(RNG!BX10<OFFSET('Transition Probabilities'!$HJ$45,BW10,($F10-1)*12+5),5,IF(RNG!BX10<OFFSET('Transition Probabilities'!$HJ$45,BW10,($F10-1)*12+6),6,IF(RNG!BX10<OFFSET('Transition Probabilities'!$HJ$45,BW10,($F10-1)*12+7),7,IF(RNG!BX10<OFFSET('Transition Probabilities'!$HJ$45,BW10,($F10-1)*12+8),8,IF(RNG!BX10<OFFSET('Transition Probabilities'!$HJ$45,BW10,($F10-1)*12+9),9,IF(RNG!BX10<OFFSET('Transition Probabilities'!$HJ$45,BW10,($F10-1)*12+10),10,"ERROR"))))))))))) -> 3 | BY10: =IF(RNG!BV10<((OFFSET(Parameters!$H$114,(BX10-1)*9,$F10))*(VLOOKUP($H10+BY$9,'Age Dependencies'!$E$8:$H$208,2,0))),1,IF(RNG!BY10<OFFSET('Transition Probabilities'!$HJ$45,BX10,($F10-1)*12+1),1,IF(RNG!BY10<OFFSET('Transition Probabilities'!$HJ$45,BX10,($F10-1)*12+2),2,IF(RNG!BY10<OFFSET('Transition Probabilities'!$HJ$45,BX10,($F10-1)*12+3),3,IF(RNG!BY10<OFFSET('Transition Probabilities'!$HJ$45,BX10,($F10-1)*12+4),4,IF(RNG!BY10<OFFSET('Transition Probabilities'!$HJ$45,BX10,($F10-1)*12+5),5,IF(RNG!BY10<OFFSET('Transition Probabilities'!$HJ$45,BX10,($F10-1)*12+6),6,IF(RNG!BY10<OFFSET('Transition Probabilities'!$HJ$45,BX10,($F10-1)*12+7),7,IF(RNG!BY10<OFFSET('Transition Probabilities'!$HJ$45,BX10,($F10-1)*12+8),8,IF(RNG!BY10<OFFSET('Transition Probabilities'!$HJ$45,BX10,($F10-1)*12+9),9,IF(RNG!BY10<OFFSET('Transition Probabilities'!$HJ$45,BX10,($F10-1)*12+10),10,"ERROR"))))))))))) -> 3 | BZ10: =IF(RNG!BW10<((OFFSET(Parameters!$H$114,(BY10-1)*9,$F10))*(VLOOKUP($H10+BZ$9,'Age Dependencies'!$E$8:$H$208,2,0))),1,IF(RNG!BZ10<OFFSET('Transition Probabilities'!$HJ$45,BY10,($F10-1)*12+1),1,IF(RNG!BZ10<OFFSET('Transition Probabilities'!$HJ$45,BY10,($F10-1)*12+2),2,IF(RNG!BZ10<OFFSET('Transition Probabilities'!$HJ$45,BY10,($F10-1)*12+3),3,IF(RNG!BZ10<OFFSET('Transition Probabilities'!$HJ$45,BY10,($F10-1)*12+4),4,IF(RNG!BZ10<OFFSET('Transition Probabilities'!$HJ$45,BY10,($F10-1)*12+5),5,IF(RNG!BZ10<OFFSET('Transition Probabilities'!$HJ$45,BY10,($F10-1)*12+6),6,IF(RNG!BZ10<OFFSET('Transition Probabilities'!$HJ$45,BY10,($F10-1)*12+7),7,IF(RNG!BZ10<OFFSET('Transition Probabilities'!$HJ$45,BY10,($F10-1)*12+8),8,IF(RNG!BZ10<OFFSET('Transition Probabilities'!$HJ$45,BY10,($F10-1)*12+9),9,IF(RNG!BZ10<OFFSET('Transition Probabilities'!$HJ$45,BY10,($F10-1)*12+10),10,"ERROR"))))))))))) -> 3 | CA10: =IF(RNG!BX10<((OFFSET(Parameters!$H$114,(BZ10-1)*9,$F10))*(VLOOKUP($H10+CA$9,'Age Dependencies'!$E$8:$H$208,2,0))),1,IF(RNG!CA10<OFFSET('Transition Probabilities'!$HJ$45,BZ10,($F10-1)*12+1),1,IF(RNG!CA10<OFFSET('Transition Probabilities'!$HJ$45,BZ10,($F10-1)*12+2),2,IF(RNG!CA10<OFFSET('Transition Probabilities'!$HJ$45,BZ10,($F10-1)*12+3),3,IF(RNG!CA10<OFFSET('Transition Probabilities'!$HJ$45,BZ10,($F10-1)*12+4),4,IF(RNG!CA10<OFFSET('Transition Probabilities'!$HJ$45,BZ10,($F10-1)*12+5),5,IF(RNG!CA10<OFFSET('Transition Probabilities'!$HJ$45,BZ10,($F10-1)*12+6),6,IF(RNG!CA10<OFFSET('Transition Probabilities'!$HJ$45,BZ10,($F10-1)*12+7),7,IF(RNG!CA10<OFFSET('Transition Probabilities'!$HJ$45,BZ10,($F10-1)*12+8),8,IF(RNG!CA10<OFFSET('Transition Probabilities'!$HJ$45,BZ10,($F10-1)*12+9),9,IF(RNG!CA10<OFFSET('Transition Probabilities'!$HJ$45,BZ10,($F10-1)*12+10),10,"ERROR"))))))))))) -> 3 | CB10: =IF(RNG!BY10<((OFFSET(Parameters!$H$114,(CA10-1)*9,$F10))*(VLOOKUP($H10+CB$9,'Age Dependencies'!$E$8:$H$208,2,0))),1,IF(RNG!CB10<OFFSET('Transition Probabilities'!$HJ$45,CA10,($F10-1)*12+1),1,IF(RNG!CB10<OFFSET('Transition Probabilities'!$HJ$45,CA10,($F10-1)*12+2),2,IF(RNG!CB10<OFFSET('Transition Probabilities'!$HJ$45,CA10,($F10-1)*12+3),3,IF(RNG!CB10<OFFSET('Transition Probabilities'!$HJ$45,CA10,($F10-1)*12+4),4,IF(RNG!CB10<OFFSET('Transition Probabilities'!$HJ$45,CA10,($F10-1)*12+5),5,IF(RNG!CB10<OFFSET('Transition Probabilities'!$HJ$45,CA10,($F10-1)*12+6),6,IF(RNG!CB10<OFFSET('Transition Probabilities'!$HJ$45,CA10,($F10-1)*12+7),7,IF(RNG!CB10<OFFSET('Transition Probabilities'!$HJ$45,CA10,($F10-1)*12+8),8,IF(RNG!CB10<OFFSET('Transition Probabilities'!$HJ$45,CA10,($F10-1)*12+9),9,IF(RNG!CB10<OFFSET('Transition Probabilities'!$HJ$45,CA10,($F10-1)*12+10),10,"ERROR"))))))))))) -> 1 | CC10: =IF(RNG!BZ10<((OFFSET(Parameters!$H$114,(CB10-1)*9,$F10))*(VLOOKUP($H10+CC$9,'Age Dependencies'!$E$8:$H$208,2,0))),1,IF(RNG!CC10<OFFSET('Transition Probabilities'!$HJ$45,CB10,($F10-1)*12+1),1,IF(RNG!CC10<OFFSET('Transition Probabilities'!$HJ$45,CB10,($F10-1)*12+2),2,IF(RNG!CC10<OFFSET('Transition Probabilities'!$HJ$45,CB10,($F10-1)*12+3),3,IF(RNG!CC10<OFFSET('Transition Probabilities'!$HJ$45,CB10,($F10-1)*12+4),4,IF(RNG!CC10<OFFSET('Transition Probabilities'!$HJ$45,CB10,($F10-1)*12+5),5,IF(RNG!CC10<OFFSET('Transition Probabilities'!$HJ$45,CB10,($F10-1)*12+6),6,IF(RNG!CC10<OFFSET('Transition Probabilities'!$HJ$45,CB10,($F10-1)*12+7),7,IF(RNG!CC10<OFFSET('Transition Probabilities'!$HJ$45,CB10,($F10-1)*12+8),8,IF(RNG!CC10<OFFSET('Transition Probabilities'!$HJ$45,CB10,($F10-1)*12+9),9,IF(RNG!CC10<OFFSET('Transition Probabilities'!$HJ$45,CB10,($F10-1)*12+10),10,"ERROR"))))))))))) -> 1 | CD10: =IF(RNG!CA10<((OFFSET(Parameters!$H$114,(CC10-1)*9,$F10))*(VLOOKUP($H10+CD$9,'Age Dependencies'!$E$8:$H$208,2,0))),1,IF(RNG!CD10<OFFSET('Transition Probabilities'!$HJ$45,CC10,($F10-1)*12+1),1,IF(RNG!CD10<OFFSET('Transition Probabilities'!$HJ$45,CC10,($F10-1)*12+2),2,IF(RNG!CD10<OFFSET('Transition Probabilities'!$HJ$45,CC10,($F10-1)*12+3),3,IF(RNG!CD10<OFFSET('Transition Probabilities'!$HJ$45,CC10,($F10-1)*12+4),4,IF(RNG!CD10<OFFSET('Transition Probabilities'!$HJ$45,CC10,($F10-1)*12+5),5,IF(RNG!CD10<OFFSET('Transition Probabilities'!$HJ$45,CC10,($F10-1)*12+6),6,IF(RNG!CD10<OFFSET('Transition Probabilities'!$HJ$45,CC10,($F10-1)*12+7),7,IF(RNG!CD10<OFFSET('Transition Probabilities'!$HJ$45,CC10,($F10-1)*12+8),8,IF(RNG!CD10<OFFSET('Transition Probabilities'!$HJ$45,CC10,($F10-1)*12+9),9,IF(RNG!CD10<OFFSET('Transition Probabilities'!$HJ$45,CC10,($F10-1)*12+10),10,"ERROR"))))))))))) -> 1 | CE10: =IF(RNG!CB10<((OFFSET(Parameters!$H$114,(CD10-1)*9,$F10))*(VLOOKUP($H10+CE$9,'Age Dependencies'!$E$8:$H$208,2,0))),1,IF(RNG!CE10<OFFSET('Transition Probabilities'!$HJ$45,CD10,($F10-1)*12+1),1,IF(RNG!CE10<OFFSET('Transition Probabilities'!$HJ$45,CD10,($F10-1)*12+2),2,IF(RNG!CE10<OFFSET('Transition Probabilities'!$HJ$45,CD10,($F10-1)*12+3),3,IF(RNG!CE10<OFFSET('Transition Probabilities'!$HJ$45,CD10,($F10-1)*12+4),4,IF(RNG!CE10<OFFSET('Transition Probabilities'!$HJ$45,CD10,($F10-1)*12+5),5,IF(RNG!CE10<OFFSET('Transition Probabilities'!$HJ$45,CD10,($F10-1)*12+6),6,IF(RNG!CE10<OFFSET('Transition Probabilities'!$HJ$45,CD10,($F10-1)*12+7),7,IF(RNG!CE10<OFFSET('Transition Probabilities'!$HJ$45,CD10,($F10-1)*12+8),8,IF(RNG!CE10<OFFSET('Transition Probabilities'!$HJ$45,CD10,($F10-1)*12+9),9,IF(RNG!CE10<OFFSET('Transition Probabilities'!$HJ$45,CD10,($F10-1)*12+10),10,"ERROR"))))))))))) -> 1 | CF10: =IF(RNG!CC10<((OFFSET(Parameters!$H$114,(CE10-1)*9,$F10))*(VLOOKUP($H10+CF$9,'Age Dependencies'!$E$8:$H$208,2,0))),1,IF(RNG!CF10<OFFSET('Transition Probabilities'!$HJ$45,CE10,($F10-1)*12+1),1,IF(RNG!CF10<OFFSET('Transition Probabilities'!$HJ$45,CE10,($F10-1)*12+2),2,IF(RNG!CF10<OFFSET('Transition Probabilities'!$HJ$45,CE10,($F10-1)*12+3),3,IF(RNG!CF10<OFFSET('Transition Probabilities'!$HJ$45,CE10,($F10-1)*12+4),4,IF(RNG!CF10<OFFSET('Transition Probabilities'!$HJ$45,CE10,($F10-1)*12+5),5,IF(RNG!CF10<OFFSET('Transition Probabilities'!$HJ$45,CE10,($F10-1)*12+6),6,IF(RNG!CF10<OFFSET('Transition Probabilities'!$HJ$45,CE10,($F10-1)*12+7),7,IF(RNG!CF10<OFFSET('Transition Probabilities'!$HJ$45,CE10,($F10-1)*12+8),8,IF(RNG!CF10<OFFSET('Transition Probabilities'!$HJ$45,CE10,($F10-1)*12+9),9,IF(RNG!CF10<OFFSET('Transition Probabilities'!$HJ$45,CE10,($F10-1)*12+10),10,"ERROR"))))))))))) -> 1 | CG10: =IF(RNG!CD10<((OFFSET(Parameters!$H$114,(CF10-1)*9,$F10))*(VLOOKUP($H10+CG$9,'Age Dependencies'!$E$8:$H$208,2,0))),1,IF(RNG!CG10<OFFSET('Transition Probabilities'!$HJ$45,CF10,($F10-1)*12+1),1,IF(RNG!CG10<OFFSET('Transition Probabilities'!$HJ$45,CF10,($F10-1)*12+2),2,IF(RNG!CG10<OFFSET('Transition Probabilities'!$HJ$45,CF10,($F10-1)*12+3),3,IF(RNG!CG10<OFFSET('Transition Probabilities'!$HJ$45,CF10,($F10-1)*12+4),4,IF(RNG!CG10<OFFSET('Transition Probabilities'!$HJ$45,CF10,($F10-1)*12+5),5,IF(RNG!CG10<OFFSET('Transition Probabilities'!$HJ$45,CF10,($F10-1)*12+6),6,IF(RNG!CG10<OFFSET('Transition Probabilities'!$HJ$45,CF10,($F10-1)*12+7),7,IF(RNG!CG10<OFFSET('Transition Probabilities'!$HJ$45,CF10,($F10-1)*12+8),8,IF(RNG!CG10<OFFSET('Transition Probabilities'!$HJ$45,CF10,($F10-1)*12+9),9,IF(RNG!CG10<OFFSET('Transition Probabilities'!$HJ$45,CF10,($F10-1)*12+10),10,"ERROR"))))))))))) -> 1 | CH10: =IF(RNG!CE10<((OFFSET(Parameters!$H$114,(CG10-1)*9,$F10))*(VLOOKUP($H10+CH$9,'Age Dependencies'!$E$8:$H$208,2,0))),1,IF(RNG!CH10<OFFSET('Transition Probabilities'!$HJ$45,CG10,($F10-1)*12+1),1,IF(RNG!CH10<OFFSET('Transition Probabilities'!$HJ$45,CG10,($F10-1)*12+2),2,IF(RNG!CH10<OFFSET('Transition Probabilities'!$HJ$45,CG10,($F10-1)*12+3),3,IF(RNG!CH10<OFFSET('Transition Probabilities'!$HJ$45,CG10,($F10-1)*12+4),4,IF(RNG!CH10<OFFSET('Transition Probabilities'!$HJ$45,CG10,($F10-1)*12+5),5,IF(RNG!CH10<OFFSET('Transition Probabilities'!$HJ$45,CG10,($F10-1)*12+6),6,IF(RNG!CH10<OFFSET('Transition Probabilities'!$HJ$45,CG10,($F10-1)*12+7),7,IF(RNG!CH10<OFFSET('Transition Probabilities'!$HJ$45,CG10,($F10-1)*12+8),8,IF(RNG!CH10<OFFSET('Transition Probabilities'!$HJ$45,CG10,($F10-1)*12+9),9,IF(RNG!CH10<OFFSET('Transition Probabilities'!$HJ$45,CG10,($F10-1)*12+10),10,"ERROR"))))))))))) -> 1 | CI10: =IF(RNG!CF10<((OFFSET(Parameters!$H$114,(CH10-1)*9,$F10))*(VLOOKUP($H10+CI$9,'Age Dependencies'!$E$8:$H$208,2,0))),1,IF(RNG!CI10<OFFSET('Transition Probabilities'!$HJ$45,CH10,($F10-1)*12+1),1,IF(RNG!CI10<OFFSET('Transition Probabilities'!$HJ$45,CH10,($F10-1)*12+2),2,IF(RNG!CI10<OFFSET('Transition Probabilities'!$HJ$45,CH10,($F10-1)*12+3),3,IF(RNG!CI10<OFFSET('Transition Probabilities'!$HJ$45,CH10,($F10-1)*12+4),4,IF(RNG!CI10<OFFSET('Transition Probabilities'!$HJ$45,CH10,($F10-1)*12+5),5,IF(RNG!CI10<OFFSET('Transition Probabilities'!$HJ$45,CH10,($F10-1)*12+6),6,IF(RNG!CI10<OFFSET('Transition Probabilities'!$HJ$45,CH10,($F10-1)*12+7),7,IF(RNG!CI10<OFFSET('Transition Probabilities'!$HJ$45,CH10,($F10-1)*12+8),8,IF(RNG!CI10<OFFSET('Transition Probabilities'!$HJ$45,CH10,($F10-1)*12+9),9,IF(RNG!CI10<OFFSET('Transition Probabilities'!$HJ$45,CH10,($F10-1)*12+10),10,"ERROR"))))))))))) -> 1 | CJ10: =IF(RNG!CG10<((OFFSET(Parameters!$H$114,(CI10-1)*9,$F10))*(VLOOKUP($H10+CJ$9,'Age Dependencies'!$E$8:$H$208,2,0))),1,IF(RNG!CJ10<OFFSET('Transition Probabilities'!$HJ$45,CI10,($F10-1)*12+1),1,IF(RNG!CJ10<OFFSET('Transition Probabilities'!$HJ$45,CI10,($F10-1)*12+2),2,IF(RNG!CJ10<OFFSET('Transition Probabilities'!$HJ$45,CI10,($F10-1)*12+3),3,IF(RNG!CJ10<OFFSET('Transition Probabilities'!$HJ$45,CI10,($F10-1)*12+4),4,IF(RNG!CJ10<OFFSET('Transition Probabilities'!$HJ$45,CI10,($F10-1)*12+5),5,IF(RNG!CJ10<OFFSET('Transition Probabilities'!$HJ$45,CI10,($F10-1)*12+6),6,IF(RNG!CJ10<OFFSET('Transition Probabilities'!$HJ$45,CI10,($F10-1)*12+7),7,IF(RNG!CJ10<OFFSET('Transition Probabilities'!$HJ$45,CI10,($F10-1)*12+8),8,IF(RNG!CJ10<OFFSET('Transition Probabilities'!$HJ$45,CI10,($F10-1)*12+9),9,IF(RNG!CJ10<OFFSET('Transition Probabilities'!$HJ$45,CI10,($F10-1)*12+10),10,"ERROR"))))))))))) -> 1 | CK10: =IF(RNG!CH10<((OFFSET(Parameters!$H$114,(CJ10-1)*9,$F10))*(VLOOKUP($H10+CK$9,'Age Dependencies'!$E$8:$H$208,2,0))),1,IF(RNG!CK10<OFFSET('Transition Probabilities'!$HJ$45,CJ10,($F10-1)*12+1),1,IF(RNG!CK10<OFFSET('Transition Probabilities'!$HJ$45,CJ10,($F10-1)*12+2),2,IF(RNG!CK10<OFFSET('Transition Probabilities'!$HJ$45,CJ10,($F10-1)*12+3),3,IF(RNG!CK10<OFFSET('Transition Probabilities'!$HJ$45,CJ10,($F10-1)*12+4),4,IF(RNG!CK10<OFFSET('Transition Probabilities'!$HJ$45,CJ10,($F10-1)*12+5),5,IF(RNG!CK10<OFFSET('Transition Probabilities'!$HJ$45,CJ10,($F10-1)*12+6),6,IF(RNG!CK10<OFFSET('Transition Probabilities'!$HJ$45,CJ10,($F10-1)*12+7),7,IF(RNG!CK10<OFFSET('Transition Probabilities'!$HJ$45,CJ10,($F10-1)*12+8),8,IF(RNG!CK10<OFFSET('Transition Probabilities'!$HJ$45,CJ10,($F10-1)*12+9),9,IF(RNG!CK10<OFFSET('Transition Probabilities'!$HJ$45,CJ10,($F10-1)*12+10),10,"ERROR"))))))))))) -> 1 | CL10: =IF(RNG!CI10<((OFFSET(Parameters!$H$114,(CK10-1)*9,$F10))*(VLOOKUP($H10+CL$9,'Age Dependencies'!$E$8:$H$208,2,0))),1,IF(RNG!CL10<OFFSET('Transition Probabilities'!$HJ$45,CK10,($F10-1)*12+1),1,IF(RNG!CL10<OFFSET('Transition Probabilities'!$HJ$45,CK10,($F10-1)*12+2),2,IF(RNG!CL10<OFFSET('Transition Probabilities'!$HJ$45,CK10,($F10-1)*12+3),3,IF(RNG!CL10<OFFSET('Transition Probabilities'!$HJ$45,CK10,($F10-1)*12+4),4,IF(RNG!CL10<OFFSET('Transition Probabilities'!$HJ$45,CK10,($F10-1)*12+5),5,IF(RNG!CL10<OFFSET('Transition Probabilities'!$HJ$45,CK10,($F10-1)*12+6),6,IF(RNG!CL10<OFFSET('Transition Probabilities'!$HJ$45,CK10,($F10-1)*12+7),7,IF(RNG!CL10<OFFSET('Transition Probabilities'!$HJ$45,CK10,($F10-1)*12+8),8,IF(RNG!CL10<OFFSET('Transition Probabilities'!$HJ$45,CK10,($F10-1)*12+9),9,IF(RNG!CL10<OFFSET('Transition Probabilities'!$HJ$45,CK10,($F10-1)*12+10),10,"ERROR"))))))))))) -> 1 | CM10: =IF(RNG!CJ10<((OFFSET(Parameters!$H$114,(CL10-1)*9,$F10))*(VLOOKUP($H10+CM$9,'Age Dependencies'!$E$8:$H$208,2,0))),1,IF(RNG!CM10<OFFSET('Transition Probabilities'!$HJ$45,CL10,($F10-1)*12+1),1,IF(RNG!CM10<OFFSET('Transition Probabilities'!$HJ$45,CL10,($F10-1)*12+2),2,IF(RNG!CM10<OFFSET('Transition Probabilities'!$HJ$45,CL10,($F10-1)*12+3),3,IF(RNG!CM10<OFFSET('Transition Probabilities'!$HJ$45,CL10,($F10-1)*12+4),4,IF(RNG!CM10<OFFSET('Transition Probabilities'!$HJ$45,CL10,($F10-1)*12+5),5,IF(RNG!CM10<OFFSET('Transition Probabilities'!$HJ$45,CL10,($F10-1)*12+6),6,IF(RNG!CM10<OFFSET('Transition Probabilities'!$HJ$45,CL10,($F10-1)*12+7),7,IF(RNG!CM10<OFFSET('Transition Probabilities'!$HJ$45,CL10,($F10-1)*12+8),8,IF(RNG!CM10<OFFSET('Transition Probabilities'!$HJ$45,CL10,($F10-1)*12+9),9,IF(RNG!CM10<OFFSET('Transition Probabilities'!$HJ$45,CL10,($F10-1)*12+10),10,"ERROR"))))))))))) -> 1 | CN10: =IF(RNG!CK10<((OFFSET(Parameters!$H$114,(CM10-1)*9,$F10))*(VLOOKUP($H10+CN$9,'Age Dependencies'!$E$8:$H$208,2,0))),1,IF(RNG!CN10<OFFSET('Transition Probabilities'!$HJ$45,CM10,($F10-1)*12+1),1,IF(RNG!CN10<OFFSET('Transition Probabilities'!$HJ$45,CM10,($F10-1)*12+2),2,IF(RNG!CN10<OFFSET('Transition Probabilities'!$HJ$45,CM10,($F10-1)*12+3),3,IF(RNG!CN10<OFFSET('Transition Probabilities'!$HJ$45,CM10,($F10-1)*12+4),4,IF(RNG!CN10<OFFSET('Transition Probabilities'!$HJ$45,CM10,($F10-1)*12+5),5,IF(RNG!CN10<OFFSET('Transition Probabilities'!$HJ$45,CM10,($F10-1)*12+6),6,IF(RNG!CN10<OFFSET('Transition Probabilities'!$HJ$45,CM10,($F10-1)*12+7),7,IF(RNG!CN10<OFFSET('Transition Probabilities'!$HJ$45,CM10,($F10-1)*12+8),8,IF(RNG!CN10<OFFSET('Transition Probabilities'!$HJ$45,CM10,($F10-1)*12+9),9,IF(RNG!CN10<OFFSET('Transition Probabilities'!$HJ$45,CM10,($F10-1)*12+10),10,"ERROR"))))))))))) -> 1 | CO10: =IF(RNG!CL10<((OFFSET(Parameters!$H$114,(CN10-1)*9,$F10))*(VLOOKUP($H10+CO$9,'Age Dependencies'!$E$8:$H$208,2,0))),1,IF(RNG!CO10<OFFSET('Transition Probabilities'!$HJ$45,CN10,($F10-1)*12+1),1,IF(RNG!CO10<OFFSET('Transition Probabilities'!$HJ$45,CN10,($F10-1)*12+2),2,IF(RNG!CO10<OFFSET('Transition Probabilities'!$HJ$45,CN10,($F10-1)*12+3),3,IF(RNG!CO10<OFFSET('Transition Probabilities'!$HJ$45,CN10,($F10-1)*12+4),4,IF(RNG!CO10<OFFSET('Transition Probabilities'!$HJ$45,CN10,($F10-1)*12+5),5,IF(RNG!CO10<OFFSET('Transition Probabilities'!$HJ$45,CN10,($F10-1)*12+6),6,IF(RNG!CO10<OFFSET('Transition Probabilities'!$HJ$45,CN10,($F10-1)*12+7),7,IF(RNG!CO10<OFFSET('Transition Probabilities'!$HJ$45,CN10,($F10-1)*12+8),8,IF(RNG!CO10<OFFSET('Transition Probabilities'!$HJ$45,CN10,($F10-1)*12+9),9,IF(RNG!CO10<OFFSET('Transition Probabilities'!$HJ$45,CN10,($F10-1)*12+10),10,"ERROR"))))))))))) -> 1 | CP10: =IF(RNG!CM10<((OFFSET(Parameters!$H$114,(CO10-1)*9,$F10))*(VLOOKUP($H10+CP$9,'Age Dependencies'!$E$8:$H$208,2,0))),1,IF(RNG!CP10<OFFSET('Transition Probabilities'!$HJ$45,CO10,($F10-1)*12+1),1,IF(RNG!CP10<OFFSET('Transition Probabilities'!$HJ$45,CO10,($F10-1)*12+2),2,IF(RNG!CP10<OFFSET('Transition Probabilities'!$HJ$45,CO10,($F10-1)*12+3),3,IF(RNG!CP10<OFFSET('Transition Probabilities'!$HJ$45,CO10,($F10-1)*12+4),4,IF(RNG!CP10<OFFSET('Transition Probabilities'!$HJ$45,CO10,($F10-1)*12+5),5,IF(RNG!CP10<OFFSET('Transition Probabilities'!$HJ$45,CO10,($F10-1)*12+6),6,IF(RNG!CP10<OFFSET('Transition Probabilities'!$HJ$45,CO10,($F10-1)*12+7),7,IF(RNG!CP10<OFFSET('Transition Probabilities'!$HJ$45,CO10,($F10-1)*12+8),8,IF(RNG!CP10<OFFSET('Transition Probabilities'!$HJ$45,CO10,($F10-1)*12+9),9,IF(RNG!CP10<OFFSET('Transition Probabilities'!$HJ$45,CO10,($F10-1)*12+10),10,"ERROR"))))))))))) -> 1 | CQ10: =IF(RNG!CN10<((OFFSET(Parameters!$H$114,(CP10-1)*9,$F10))*(VLOOKUP($H10+CQ$9,'Age Dependencies'!$E$8:$H$208,2,0))),1,IF(RNG!CQ10<OFFSET('Transition Probabilities'!$HJ$45,CP10,($F10-1)*12+1),1,IF(RNG!CQ10<OFFSET('Transition Probabilities'!$HJ$45,CP10,($F10-1)*12+2),2,IF(RNG!CQ10<OFFSET('Transition Probabilities'!$HJ$45,CP10,($F10-1)*12+3),3,IF(RNG!CQ10<OFFSET('Transition Probabilities'!$HJ$45,CP10,($F10-1)*12+4),4,IF(RNG!CQ10<OFFSET('Transition Probabilities'!$HJ$45,CP10,($F10-1)*12+5),5,IF(RNG!CQ10<OFFSET('Transition Probabilities'!$HJ$45,CP10,($F10-1)*12+6),6,IF(RNG!CQ10<OFFSET('Transition Probabilities'!$HJ$45,CP10,($F10-1)*12+7),7,IF(RNG!CQ10<OFFSET('Transition Probabilities'!$HJ$45,CP10,($F10-1)*12+8),8,IF(RNG!CQ10<OFFSET('Transition Probabilities'!$HJ$45,CP10,($F10-1)*12+9),9,IF(RNG!CQ10<OFFSET('Transition Probabilities'!$HJ$45,CP10,($F10-1)*12+10),10,"ERROR"))))))))))) -> 1 | CR10: =IF(RNG!CO10<((OFFSET(Parameters!$H$114,(CQ10-1)*9,$F10))*(VLOOKUP($H10+CR$9,'Age Dependencies'!$E$8:$H$208,2,0))),1,IF(RNG!CR10<OFFSET('Transition Probabilities'!$HJ$45,CQ10,($F10-1)*12+1),1,IF(RNG!CR10<OFFSET('Transition Probabilities'!$HJ$45,CQ10,($F10-1)*12+2),2,IF(RNG!CR10<OFFSET('Transition Probabilities'!$HJ$45,CQ10,($F10-1)*12+3),3,IF(RNG!CR10<OFFSET('Transition Probabilities'!$HJ$45,CQ10,($F10-1)*12+4),4,IF(RNG!CR10<OFFSET('Transition Probabilities'!$HJ$45,CQ10,($F10-1)*12+5),5,IF(RNG!CR10<OFFSET('Transition Probabilities'!$HJ$45,CQ10,($F10-1)*12+6),6,IF(RNG!CR10<OFFSET('Transition Probabilities'!$HJ$45,CQ10,($F10-1)*12+7),7,IF(RNG!CR10<OFFSET('Transition Probabilities'!$HJ$45,CQ10,($F10-1)*12+8),8,IF(RNG!CR10<OFFSET('Transition Probabilities'!$HJ$45,CQ10,($F10-1)*12+9),9,IF(RNG!CR10<OFFSET('Transition Probabilities'!$HJ$45,CQ10,($F10-1)*12+10),10,"ERROR"))))))))))) -> 1 | CS10: =IF(RNG!CP10<((OFFSET(Parameters!$H$114,(CR10-1)*9,$F10))*(VLOOKUP($H10+CS$9,'Age Dependencies'!$E$8:$H$208,2,0))),1,IF(RNG!CS10<OFFSET('Transition Probabilities'!$HJ$45,CR10,($F10-1)*12+1),1,IF(RNG!CS10<OFFSET('Transition Probabilities'!$HJ$45,CR10,($F10-1)*12+2),2,IF(RNG!CS10<OFFSET('Transition Probabilities'!$HJ$45,CR10,($F10-1)*12+3),3,IF(RNG!CS10<OFFSET('Transition Probabilities'!$HJ$45,CR10,($F10-1)*12+4),4,IF(RNG!CS10<OFFSET('Transition Probabilities'!$HJ$45,CR10,($F10-1)*12+5),5,IF(RNG!CS10<OFFSET('Transition Probabilities'!$HJ$45,CR10,($F10-1)*12+6),6,IF(RNG!CS10<OFFSET('Transition Probabilities'!$HJ$45,CR10,($F10-1)*12+7),7,IF(RNG!CS10<OFFSET('Transition Probabilities'!$HJ$45,CR10,($F10-1)*12+8),8,IF(RNG!CS10<OFFSET('Transition Probabilities'!$HJ$45,CR10,($F10-1)*12+9),9,IF(RNG!CS10<OFFSET('Transition Probabilities'!$HJ$45,CR10,($F10-1)*12+10),10,"ERROR"))))))))))) -> 1 | CT10: =IF(RNG!CQ10<((OFFSET(Parameters!$H$114,(CS10-1)*9,$F10))*(VLOOKUP($H10+CT$9,'Age Dependencies'!$E$8:$H$208,2,0))),1,IF(RNG!CT10<OFFSET('Transition Probabilities'!$HJ$45,CS10,($F10-1)*12+1),1,IF(RNG!CT10<OFFSET('Transition Probabilities'!$HJ$45,CS10,($F10-1)*12+2),2,IF(RNG!CT10<OFFSET('Transition Probabilities'!$HJ$45,CS10,($F10-1)*12+3),3,IF(RNG!CT10<OFFSET('Transition Probabilities'!$HJ$45,CS10,($F10-1)*12+4),4,IF(RNG!CT10<OFFSET('Transition Probabilities'!$HJ$45,CS10,($F10-1)*12+5),5,IF(RNG!CT10<OFFSET('Transition Probabilities'!$HJ$45,CS10,($F10-1)*12+6),6,IF(RNG!CT10<OFFSET('Transition Probabilities'!$HJ$45,CS10,($F10-1)*12+7),7,IF(RNG!CT10<OFFSET('Transition Probabilities'!$HJ$45,CS10,($F10-1)*12+8),8,IF(RNG!CT10<OFFSET('Transition Probabilities'!$HJ$45,CS10,($F10-1)*12+9),9,IF(RNG!CT10<OFFSET('Transition Probabilities'!$HJ$45,CS10,($F10-1)*12+10),10,"ERROR"))))))))))) -> 1 | CU10: =IF(RNG!CR10<((OFFSET(Parameters!$H$114,(CT10-1)*9,$F10))*(VLOOKUP($H10+CU$9,'Age Dependencies'!$E$8:$H$208,2,0))),1,IF(RNG!CU10<OFFSET('Transition Probabilities'!$HJ$45,CT10,($F10-1)*12+1),1,IF(RNG!CU10<OFFSET('Transition Probabilities'!$HJ$45,CT10,($F10-1)*12+2),2,IF(RNG!CU10<OFFSET('Transition Probabilities'!$HJ$45,CT10,($F10-1)*12+3),3,IF(RNG!CU10<OFFSET('Transition Probabilities'!$HJ$45,CT10,($F10-1)*12+4),4,IF(RNG!CU10<OFFSET('Transition Probabilities'!$HJ$45,CT10,($F10-1)*12+5),5,IF(RNG!CU10<OFFSET('Transition Probabilities'!$HJ$45,CT10,($F10-1)*12+6),6,IF(RNG!CU10<OFFSET('Transition Probabilities'!$HJ$45,CT10,($F10-1)*12+7),7,IF(RNG!CU10<OFFSET('Transition Probabilities'!$HJ$45,CT10,($F10-1)*12+8),8,IF(RNG!CU10<OFFSET('Transition Probabilities'!$HJ$45,CT10,($F10-1)*12+9),9,IF(RNG!CU10<OFFSET('Transition Probabilities'!$HJ$45,CT10,($F10-1)*12+10),10,"ERROR"))))))))))) -> 1 | CV10: =IF(RNG!CS10<((OFFSET(Parameters!$H$114,(CU10-1)*9,$F10))*(VLOOKUP($H10+CV$9,'Age Dependencies'!$E$8:$H$208,2,0))),1,IF(RNG!CV10<OFFSET('Transition Probabilities'!$HJ$45,CU10,($F10-1)*12+1),1,IF(RNG!CV10<OFFSET('Transition Probabilities'!$HJ$45,CU10,($F10-1)*12+2),2,IF(RNG!CV10<OFFSET('Transition Probabilities'!$HJ$45,CU10,($F10-1)*12+3),3,IF(RNG!CV10<OFFSET('Transition Probabilities'!$HJ$45,CU10,($F10-1)*12+4),4,IF(RNG!CV10<OFFSET('Transition Probabilities'!$HJ$45,CU10,($F10-1)*12+5),5,IF(RNG!CV10<OFFSET('Transition Probabilities'!$HJ$45,CU10,($F10-1)*12+6),6,IF(RNG!CV10<OFFSET('Transition Probabilities'!$HJ$45,CU10,($F10-1)*12+7),7,IF(RNG!CV10<OFFSET('Transition Probabilities'!$HJ$45,CU10,($F10-1)*12+8),8,IF(RNG!CV10<OFFSET('Transition Probabilities'!$HJ$45,CU10,($F10-1)*12+9),9,IF(RNG!CV10<OFFSET('Transition Probabilities'!$HJ$45,CU10,($F10-1)*12+10),10,"ERROR"))))))))))) -> 1 | CW10: =IF(RNG!CT10<((OFFSET(Parameters!$H$114,(CV10-1)*9,$F10))*(VLOOKUP($H10+CW$9,'Age Dependencies'!$E$8:$H$208,2,0))),1,IF(RNG!CW10<OFFSET('Transition Probabilities'!$HJ$45,CV10,($F10-1)*12+1),1,IF(RNG!CW10<OFFSET('Transition Probabilities'!$HJ$45,CV10,($F10-1)*12+2),2,IF(RNG!CW10<OFFSET('Transition Probabilities'!$HJ$45,CV10,($F10-1)*12+3),3,IF(RNG!CW10<OFFSET('Transition Probabilities'!$HJ$45,CV10,($F10-1)*12+4),4,IF(RNG!CW10<OFFSET('Transition Probabilities'!$HJ$45,CV10,($F10-1)*12+5),5,IF(RNG!CW10<OFFSET('Transition Probabilities'!$HJ$45,CV10,($F10-1)*12+6),6,IF(RNG!CW10<OFFSET('Transition Probabilities'!$HJ$45,CV10,($F10-1)*12+7),7,IF(RNG!CW10<OFFSET('Transition Probabilities'!$HJ$45,CV10,($F10-1)*12+8),8,IF(RNG!CW10<OFFSET('Transition Probabilities'!$HJ$45,CV10,($F10-1)*12+9),9,IF(RNG!CW10<OFFSET('Transition Probabilities'!$HJ$45,CV10,($F10-1)*12+10),10,"ERROR"))))))))))) -> 1 | CX10: =IF(RNG!CU10<((OFFSET(Parameters!$H$114,(CW10-1)*9,$F10))*(VLOOKUP($H10+CX$9,'Age Dependencies'!$E$8:$H$208,2,0))),1,IF(RNG!CX10<OFFSET('Transition Probabilities'!$HJ$45,CW10,($F10-1)*12+1),1,IF(RNG!CX10<OFFSET('Transition Probabilities'!$HJ$45,CW10,($F10-1)*12+2),2,IF(RNG!CX10<OFFSET('Transition Probabilities'!$HJ$45,CW10,($F10-1)*12+3),3,IF(RNG!CX10<OFFSET('Transition Probabilities'!$HJ$45,CW10,($F10-1)*12+4),4,IF(RNG!CX10<OFFSET('Transition Probabilities'!$HJ$45,CW10,($F10-1)*12+5),5,IF(RNG!CX10<OFFSET('Transition Probabilities'!$HJ$45,CW10,($F10-1)*12+6),6,IF(RNG!CX10<OFFSET('Transition Probabilities'!$HJ$45,CW10,($F10-1)*12+7),7,IF(RNG!CX10<OFFSET('Transition Probabilities'!$HJ$45,CW10,($F10-1)*12+8),8,IF(RNG!CX10<OFFSET('Transition Probabilities'!$HJ$45,CW10,($F10-1)*12+9),9,IF(RNG!CX10<OFFSET('Transition Probabilities'!$HJ$45,CW10,($F10-1)*12+10),10,"ERROR"))))))))))) -> 1 | CY10: =IF(RNG!CV10<((OFFSET(Parameters!$H$114,(CX10-1)*9,$F10))*(VLOOKUP($H10+CY$9,'Age Dependencies'!$E$8:$H$208,2,0))),1,IF(RNG!CY10<OFFSET('Transition Probabilities'!$HJ$45,CX10,($F10-1)*12+1),1,IF(RNG!CY10<OFFSET('Transition Probabilities'!$HJ$45,CX10,($F10-1)*12+2),2,IF(RNG!CY10<OFFSET('Transition Probabilities'!$HJ$45,CX10,($F10-1)*12+3),3,IF(RNG!CY10<OFFSET('Transition Probabilities'!$HJ$45,CX10,($F10-1)*12+4),4,IF(RNG!CY10<OFFSET('Transition Probabilities'!$HJ$45,CX10,($F10-1)*12+5),5,IF(RNG!CY10<OFFSET('Transition Probabilities'!$HJ$45,CX10,($F10-1)*12+6),6,IF(RNG!CY10<OFFSET('Transition Probabilities'!$HJ$45,CX10,($F10-1)*12+7),7,IF(RNG!CY10<OFFSET('Transition Probabilities'!$HJ$45,CX10,($F10-1)*12+8),8,IF(RNG!CY10<OFFSET('Transition Probabilities'!$HJ$45,CX10,($F10-1)*12+9),9,IF(RNG!CY10<OFFSET('Transition Probabilities'!$HJ$45,CX10,($F10-1)*12+10),10,"ERROR"))))))))))) -> 1 | CZ10: =IF(RNG!CW10<((OFFSET(Parameters!$H$114,(CY10-1)*9,$F10))*(VLOOKUP($H10+CZ$9,'Age Dependencies'!$E$8:$H$208,2,0))),1,IF(RNG!CZ10<OFFSET('Transition Probabilities'!$HJ$45,CY10,($F10-1)*12+1),1,IF(RNG!CZ10<OFFSET('Transition Probabilities'!$HJ$45,CY10,($F10-1)*12+2),2,IF(RNG!CZ10<OFFSET('Transition Probabilities'!$HJ$45,CY10,($F10-1)*12+3),3,IF(RNG!CZ10<OFFSET('Transition Probabilities'!$HJ$45,CY10,($F10-1)*12+4),4,IF(RNG!CZ10<OFFSET('Transition Probabilities'!$HJ$45,CY10,($F10-1)*12+5),5,IF(RNG!CZ10<OFFSET('Transition Probabilities'!$HJ$45,CY10,($F10-1)*12+6),6,IF(RNG!CZ10<OFFSET('Transition Probabilities'!$HJ$45,CY10,($F10-1)*12+7),7,IF(RNG!CZ10<OFFSET('Transition Probabilities'!$HJ$45,CY10,($F10-1)*12+8),8,IF(RNG!CZ10<OFFSET('Transition Probabilities'!$HJ$45,CY10,($F10-1)*12+9),9,IF(RNG!CZ10<OFFSET('Transition Probabilities'!$HJ$45,CY10,($F10-1)*12+10),10,"ERROR"))))))))))) -> 1 | DA10: =IF(RNG!CX10<((OFFSET(Parameters!$H$114,(CZ10-1)*9,$F10))*(VLOOKUP($H10+DA$9,'Age Dependencies'!$E$8:$H$208,2,0))),1,IF(RNG!DA10<OFFSET('Transition Probabilities'!$HJ$45,CZ10,($F10-1)*12+1),1,IF(RNG!DA10<OFFSET('Transition Probabilities'!$HJ$45,CZ10,($F10-1)*12+2),2,IF(RNG!DA10<OFFSET('Transition Probabilities'!$HJ$45,CZ10,($F10-1)*12+3),3,IF(RNG!DA10<OFFSET('Transition Probabilities'!$HJ$45,CZ10,($F10-1)*12+4),4,IF(RNG!DA10<OFFSET('Transition Probabilities'!$HJ$45,CZ10,($F10-1)*12+5),5,IF(RNG!DA10<OFFSET('Transition Probabilities'!$HJ$45,CZ10,($F10-1)*12+6),6,IF(RNG!DA10<OFFSET('Transition Probabilities'!$HJ$45,CZ10,($F10-1)*12+7),7,IF(RNG!DA10<OFFSET('Transition Probabilities'!$HJ$45,CZ10,($F10-1)*12+8),8,IF(RNG!DA10<OFFSET('Transition Probabilities'!$HJ$45,CZ10,($F10-1)*12+9),9,IF(RNG!DA10<OFFSET('Transition Probabilities'!$HJ$45,CZ10,($F10-1)*12+10),10,"ERROR"))))))))))) -> 1 | DB10: =IF(RNG!CY10<((OFFSET(Parameters!$H$114,(DA10-1)*9,$F10))*(VLOOKUP($H10+DB$9,'Age Dependencies'!$E$8:$H$208,2,0))),1,IF(RNG!DB10<OFFSET('Transition Probabilities'!$HJ$45,DA10,($F10-1)*12+1),1,IF(RNG!DB10<OFFSET('Transition Probabilities'!$HJ$45,DA10,($F10-1)*12+2),2,IF(RNG!DB10<OFFSET('Transition Probabilities'!$HJ$45,DA10,($F10-1)*12+3),3,IF(RNG!DB10<OFFSET('Transition Probabilities'!$HJ$45,DA10,($F10-1)*12+4),4,IF(RNG!DB10<OFFSET('Transition Probabilities'!$HJ$45,DA10,($F10-1)*12+5),5,IF(RNG!DB10<OFFSET('Transition Probabilities'!$HJ$45,DA10,($F10-1)*12+6),6,IF(RNG!DB10<OFFSET('Transition Probabilities'!$HJ$45,DA10,($F10-1)*12+7),7,IF(RNG!DB10<OFFSET('Transition Probabilities'!$HJ$45,DA10,($F10-1)*12+8),8,IF(RNG!DB10<OFFSET('Transition Probabilities'!$HJ$45,DA10,($F10-1)*12+9),9,IF(RNG!DB10<OFFSET('Transition Probabilities'!$HJ$45,DA10,($F10-1)*12+10),10,"ERROR"))))))))))) -> 1 | DC10: =IF(RNG!CZ10<((OFFSET(Parameters!$H$114,(DB10-1)*9,$F10))*(VLOOKUP($H10+DC$9,'Age Dependencies'!$E$8:$H$208,2,0))),1,IF(RNG!DC10<OFFSET('Transition Probabilities'!$HJ$45,DB10,($F10-1)*12+1),1,IF(RNG!DC10<OFFSET('Transition Probabilities'!$HJ$45,DB10,($F10-1)*12+2),2,IF(RNG!DC10<OFFSET('Transition Probabilities'!$HJ$45,DB10,($F10-1)*12+3),3,IF(RNG!DC10<OFFSET('Transition Probabilities'!$HJ$45,DB10,($F10-1)*12+4),4,IF(RNG!DC10<OFFSET('Transition Probabilities'!$HJ$45,DB10,($F10-1)*12+5),5,IF(RNG!DC10<OFFSET('Transition Probabilities'!$HJ$45,DB10,($F10-1)*12+6),6,IF(RNG!DC10<OFFSET('Transition Probabilities'!$HJ$45,DB10,($F10-1)*12+7),7,IF(RNG!DC10<OFFSET('Transition Probabilities'!$HJ$45,DB10,($F10-1)*12+8),8,IF(RNG!DC10<OFFSET('Transition Probabilities'!$HJ$45,DB10,($F10-1)*12+9),9,IF(RNG!DC10<OFFSET('Transition Probabilities'!$HJ$45,DB10,($F10-1)*12+10),10,"ERROR"))))))))))) -> 1 | DD10: =IF(RNG!DA10<((OFFSET(Parameters!$H$114,(DC10-1)*9,$F10))*(VLOOKUP($H10+DD$9,'Age Dependencies'!$E$8:$H$208,2,0))),1,IF(RNG!DD10<OFFSET('Transition Probabilities'!$HJ$45,DC10,($F10-1)*12+1),1,IF(RNG!DD10<OFFSET('Transition Probabilities'!$HJ$45,DC10,($F10-1)*12+2),2,IF(RNG!DD10<OFFSET('Transition Probabilities'!$HJ$45,DC10,($F10-1)*12+3),3,IF(RNG!DD10<OFFSET('Transition Probabilities'!$HJ$45,DC10,($F10-1)*12+4),4,IF(RNG!DD10<OFFSET('Transition Probabilities'!$HJ$45,DC10,($F10-1)*12+5),5,IF(RNG!DD10<OFFSET('Transition Probabilities'!$HJ$45,DC10,($F10-1)*12+6),6,IF(RNG!DD10<OFFSET('Transition Probabilities'!$HJ$45,DC10,($F10-1)*12+7),7,IF(RNG!DD10<OFFSET('Transition Probabilities'!$HJ$45,DC10,($F10-1)*12+8),8,IF(RNG!DD10<OFFSET('Transition Probabilities'!$HJ$45,DC10,($F10-1)*12+9),9,IF(RNG!DD10<OFFSET('Transition Probabilities'!$HJ$45,DC10,($F10-1)*12+10),10,"ERROR"))))))))))) -> 1 | DE10: =IF(RNG!DB10<((OFFSET(Parameters!$H$114,(DD10-1)*9,$F10))*(VLOOKUP($H10+DE$9,'Age Dependencies'!$E$8:$H$208,2,0))),1,IF(RNG!DE10<OFFSET('Transition Probabilities'!$HJ$45,DD10,($F10-1)*12+1),1,IF(RNG!DE10<OFFSET('Transition Probabilities'!$HJ$45,DD10,($F10-1)*12+2),2,IF(RNG!DE10<OFFSET('Transition Probabilities'!$HJ$45,DD10,($F10-1)*12+3),3,IF(RNG!DE10<OFFSET('Transition Probabilities'!$HJ$45,DD10,($F10-1)*12+4),4,IF(RNG!DE10<OFFSET('Transition Probabilities'!$HJ$45,DD10,($F10-1)*12+5),5,IF(RNG!DE10<OFFSET('Transition Probabilities'!$HJ$45,DD10,($F10-1)*12+6),6,IF(RNG!DE10<OFFSET('Transition Probabilities'!$HJ$45,DD10,($F10-1)*12+7),7,IF(RNG!DE10<OFFSET('Transition Probabilities'!$HJ$45,DD10,($F10-1)*12+8),8,IF(RNG!DE10<OFFSET('Transition Probabilities'!$HJ$45,DD10,($F10-1)*12+9),9,IF(RNG!DE10<OFFSET('Transition Probabilities'!$HJ$45,DD10,($F10-1)*12+10),10,"ERROR"))))))))))) -> 1 | DF10: =IF(RNG!DC10<((OFFSET(Parameters!$H$114,(DE10-1)*9,$F10))*(VLOOKUP($H10+DF$9,'Age Dependencies'!$E$8:$H$208,2,0))),1,IF(RNG!DF10<OFFSET('Transition Probabilities'!$HJ$45,DE10,($F10-1)*12+1),1,IF(RNG!DF10<OFFSET('Transition Probabilities'!$HJ$45,DE10,($F10-1)*12+2),2,IF(RNG!DF10<OFFSET('Transition Probabilities'!$HJ$45,DE10,($F10-1)*12+3),3,IF(RNG!DF10<OFFSET('Transition Probabilities'!$HJ$45,DE10,($F10-1)*12+4),4,IF(RNG!DF10<OFFSET('Transition Probabilities'!$HJ$45,DE10,($F10-1)*12+5),5,IF(RNG!DF10<OFFSET('Transition Probabilities'!$HJ$45,DE10,($F10-1)*12+6),6,IF(RNG!DF10<OFFSET('Transition Probabilities'!$HJ$45,DE10,($F10-1)*12+7),7,IF(RNG!DF10<OFFSET('Transition Probabilities'!$HJ$45,DE10,($F10-1)*12+8),8,IF(RNG!DF10<OFFSET('Transition Probabilities'!$HJ$45,DE10,($F10-1)*12+9),9,IF(RNG!DF10<OFFSET('Transition Probabilities'!$HJ$45,DE10,($F10-1)*12+10),10,"ERROR"))))))))))) -> 1 | DH10: =IF(OR(J10=3,J10=5,J10=7),(1-Parameters!$I$25)^DH$9,(1-Parameters!$I$24)^DH$9) -> 1 | DI10: =IF(OR(K10=3,K10=5,K10=7),(1-Parameters!$I$25)^DI$9,(1-Parameters!$I$24)^DI$9) -> 0.965 | DJ10: =IF(OR(L10=3,L10=5,L10=7),(1-Parameters!$I$25)^DJ$9,(1-Parameters!$I$24)^DJ$9) -> 0.931225 | DK10: =IF(OR(M10=3,M10=5,M10=7),(1-Parameters!$I$25)^DK$9,(1-Parameters!$I$24)^DK$9) -> 0.898632125 | DL10: =IF(OR(N10=3,N10=5,N10=7),(1-Parameters!$I$25)^DL$9,(1-Parameters!$I$24)^DL$9) -> 0.8671800006 | DM10: =IF(OR(O10=3,O10=5,O10=7),(1-Parameters!$I$25)^DM$9,(1-Parameters!$I$24)^DM$9) -> 0.8368287006 | DN10: =IF(OR(P10=3,P10=5,P10=7),(1-Parameters!$I$25)^DN$9,(1-Parameters!$I$24)^DN$9) -> 0.8075396961 | DO10: =IF(OR(Q10=3,Q10=5,Q10=7),(1-Parameters!$I$25)^DO$9,(1-Parameters!$I$24)^DO$9) -> 0.7792758067 | DP10: =IF(OR(R10=3,R10=5,R10=7),(1-Parameters!$I$25)^DP$9,(1-Parameters!$I$24)^DP$9) -> 0.7520011535 | DQ10: =IF(OR(S10=3,S10=5,S10=7),(1-Parameters!$I$25)^DQ$9,(1-Parameters!$I$24)^DQ$9) -> 0.7256811131 | DR10: =IF(OR(T10=3,T10=5,T10=7),(1-Parameters!$I$25)^DR$9,(1-Parameters!$I$24)^DR$9) -> 0.7002822742 | DS10: =IF(OR(U10=3,U10=5,U10=7),(1-Parameters!$I$25)^DS$9,(1-Parameters!$I$24)^DS$9) -> 0.6757723946 | DT10: =IF(OR(V10=3,V10=5,V10=7),(1-Parameters!$I$25)^DT$9,(1-Parameters!$I$24)^DT$9) -> 0.6521203607 | DU10: =IF(OR(W10=3,W10=5,W10=7),(1-Parameters!$I$25)^DU$9,(1-Parameters!$I$24)^DU$9) -> 0.6292961481 | DV10: =IF(OR(X10=3,X10=5,X10=7),(1-Parameters!$I$25)^DV$9,(1-Parameters!$I$24)^DV$9) -> 0.6072707829 | DW10: =IF(OR(Y10=3,Y10=5,Y10=7),(1-Parameters!$I$25)^DW$9,(1-Parameters!$I$24)^DW$9) -> 0.5860163055 | DX10: =IF(OR(Z10=3,Z10=5,Z10=7),(1-Parameters!$I$25)^DX$9,(1-Parameters!$I$24)^DX$9) -> 0.5655057348 | DY10: =IF(OR(AA10=3,AA10=5,AA10=7),(1-Parameters!$I$25)^DY$9,(1-Parameters!$I$24)^DY$9) -> 0.5457130341 | DZ10: =IF(OR(AB10=3,AB10=5,AB10=7),(1-Parameters!$I$25)^DZ$9,(1-Parameters!$I$24)^DZ$9) -> 0.5266130779 | EA10: =IF(OR(AC10=3,AC10=5,AC10=7),(1-Parameters!$I$25)^EA$9,(1-Parameters!$I$24)^EA$9) -> 0.5081816202 | EB10: =IF(OR(AD10=3,AD10=5,AD10=7),(1-Parameters!$I$25)^EB$9,(1-Parameters!$I$24)^EB$9) -> 0.4903952635 | EC10: =IF(OR(AE10=3,AE10=5,AE10=7),(1-Parameters!$I$25)^EC$9,(1-Parameters!$I$24)^EC$9) -> 0.4732314293 | ED10: =IF(OR(AF10=3,AF10=5,AF10=7),(1-Parameters!$I$25)^ED$9,(1-Parameters!$I$24)^ED$9) -> 0.4566683292 | EE10: =IF(OR(AG10=3,AG10=5,AG10=7),(1-Parameters!$I$25)^EE$9,(1-Parameters!$I$24)^EE$9) -> 0.4406849377 | EF10: =IF(OR(AH10=3,AH10=5,AH10=7),(1-Parameters!$I$25)^EF$9,(1-Parameters!$I$24)^EF$9) -> 0.4252609649 | EG10: =IF(OR(AI10=3,AI10=5,AI10=7),(1-Parameters!$I$25)^EG$9,(1-Parameters!$I$24)^EG$9) -> 0.4103768311 | EH10: =IF(OR(AJ10=3,AJ10=5,AJ10=7),(1-Parameters!$I$25)^EH$9,(1-Parameters!$I$24)^EH$9) -> 0.396013642 | EI10: =IF(OR(AK10=3,AK10=5,AK10=7),(1-Parameters!$I$25)^EI$9,(1-Parameters!$I$24)^EI$9) -> 0.3821531646 | EJ10: =IF(OR(AL10=3,AL10=5,AL10=7),(1-Parameters!$I$25)^EJ$9,(1-Parameters!$I$24)^EJ$9) -> 0.3687778038 | EK10: =IF(OR(AM10=3,AM10=5,AM10=7),(1-Parameters!$I$25)^EK$9,(1-Parameters!$I$24)^EK$9) -> 0.3558705807 | EL10: =IF(OR(AN10=3,AN10=5,AN10=7),(1-Parameters!$I$25)^EL$9,(1-Parameters!$I$24)^EL$9) -> 0.3434151104 | EM10: =IF(OR(AO10=3,AO10=5,AO10=7),(1-Parameters!$I$25)^EM$9,(1-Parameters!$I$24)^EM$9) -> 0.3313955815 | EN10: =IF(OR(AP10=3,AP10=5,AP10=7),(1-Parameters!$I$25)^EN$9,(1-Parameters!$I$24)^EN$9) -> 0.3197967361 | EO10: =IF(OR(AQ10=3,AQ10=5,AQ10=7),(1-Parameters!$I$25)^EO$9,(1-Parameters!$I$24)^EO$9) -> 0.3086038504 | EP10: =IF(OR(AR10=3,AR10=5,AR10=7),(1-Parameters!$I$25)^EP$9,(1-Parameters!$I$24)^EP$9) -> 0.2978027156 | EQ10: =IF(OR(AS10=3,AS10=5,AS10=7),(1-Parameters!$I$25)^EQ$9,(1-Parameters!$I$24)^EQ$9) -> 0.2873796206 | ER10: =IF(OR(AT10=3,AT10=5,AT10=7),(1-Parameters!$I$25)^ER$9,(1-Parameters!$I$24)^ER$9) -> 0.2773213338 | ES10: =IF(OR(AU10=3,AU10=5,AU10=7),(1-Parameters!$I$25)^ES$9,(1-Parameters!$I$24)^ES$9) -> 0.2676150872 | ET10: =IF(OR(AV10=3,AV10=5,AV10=7),(1-Parameters!$I$25)^ET$9,(1-Parameters!$I$24)^ET$9) -> 0.2582485591 | EU10: =IF(OR(AW10=3,AW10=5,AW10=7),(1-Parameters!$I$25)^EU$9,(1-Parameters!$I$24)^EU$9) -> 0.2492098595 | EV10: =IF(OR(AX10=3,AX10=5,AX10=7),(1-Parameters!$I$25)^EV$9,(1-Parameters!$I$24)^EV$9) -> 0.2404875145 | EW10: =IF(OR(AY10=3,AY10=5,AY10=7),(1-Parameters!$I$25)^EW$9,(1-Parameters!$I$24)^EW$9) -> 0.2320704515 | EX10: =IF(OR(AZ10=3,AZ10=5,AZ10=7),(1-Parameters!$I$25)^EX$9,(1-Parameters!$I$24)^EX$9) -> 0.2239479856 | EY10: =IF(OR(BA10=3,BA10=5,BA10=7),(1-Parameters!$I$25)^EY$9,(1-Parameters!$I$24)^EY$9) -> 0.2161098062 | EZ10: =IF(OR(BB10=3,BB10=5,BB10=7),(1-Parameters!$I$25)^EZ$9,(1-Parameters!$I$24)^EZ$9) -> 0.2085459629 | FA10: =IF(OR(BC10=3,BC10=5,BC10=7),(1-Parameters!$I$25)^FA$9,(1-Parameters!$I$24)^FA$9) -> 0.2012468542 | FB10: =IF(OR(BD10=3,BD10=5,BD10=7),(1-Parameters!$I$25)^FB$9,(1-Parameters!$I$24)^FB$9) -> 0.1942032143 | FC10: =IF(OR(BE10=3,BE10=5,BE10=7),(1-Parameters!$I$25)^FC$9,(1-Parameters!$I$24)^FC$9) -> 0.1874061018 | FD10: =IF(OR(BF10=3,BF10=5,BF10=7),(1-Parameters!$I$25)^FD$9,(1-Parameters!$I$24)^FD$9) -> 0.1808468883 | FE10: =IF(OR(BG10=3,BG10=5,BG10=7),(1-Parameters!$I$25)^FE$9,(1-Parameters!$I$24)^FE$9) -> 0.1745172472 | FF10: =IF(OR(BH10=3,BH10=5,BH10=7),(1-Parameters!$I$25)^FF$9,(1-Parameters!$I$24)^FF$9) -> 0.1684091435 | FG10: =IF(OR(BI10=3,BI10=5,BI10=7),(1-Parameters!$I$25)^FG$9,(1-Parameters!$I$24)^FG$9) -> 0.1625148235 | FH10: =IF(OR(BJ10=3,BJ10=5,BJ10=7),(1-Parameters!$I$25)^FH$9,(1-Parameters!$I$24)^FH$9) -> 0.1568268047 | FI10: =IF(OR(BK10=3,BK10=5,BK10=7),(1-Parameters!$I$25)^FI$9,(1-Parameters!$I$24)^FI$9) -> 0.1513378665 | FJ10: =IF(OR(BL10=3,BL10=5,BL10=7),(1-Parameters!$I$25)^FJ$9,(1-Parameters!$I$24)^FJ$9) -> 0.1460410412 | FK10: =IF(OR(BM10=3,BM10=5,BM10=7),(1-Parameters!$I$25)^FK$9,(1-Parameters!$I$24)^FK$9) -> 0.1409296047 | FL10: =IF(OR(BN10=3,BN10=5,BN10=7),(1-Parameters!$I$25)^FL$9,(1-Parameters!$I$24)^FL$9) -> 0.1359970686 | FM10: =IF(OR(BO10=3,BO10=5,BO10=7),(1-Parameters!$I$25)^FM$9,(1-Parameters!$I$24)^FM$9) -> 0.1312371712 | FN10: =IF(OR(BP10=3,BP10=5,BP10=7),(1-Parameters!$I$25)^FN$9,(1-Parameters!$I$24)^FN$9) -> 0.1266438702 | FO10: =IF(OR(BQ10=3,BQ10=5,BQ10=7),(1-Parameters!$I$25)^FO$9,(1-Parameters!$I$24)^FO$9) -> 0.1222113347 | FP10: =IF(OR(BR10=3,BR10=5,BR10=7),(1-Parameters!$I$25)^FP$9,(1-Parameters!$I$24)^FP$9) -> 0.117933938 | FQ10: =IF(OR(BS10=3,BS10=5,BS10=7),(1-Parameters!$I$25)^FQ$9,(1-Parameters!$I$24)^FQ$9) -> 0.1138062502 | FR10: =IF(OR(BT10=3,BT10=5,BT10=7),(1-Parameters!$I$25)^FR$9,(1-Parameters!$I$24)^FR$9) -> 0.1098230314 | FS10: =IF(OR(BU10=3,BU10=5,BU10=7),(1-Parameters!$I$25)^FS$9,(1-Parameters!$I$24)^FS$9) -> 0.1059792253 | FT10: =IF(OR(BV10=3,BV10=5,BV10=7),(1-Parameters!$I$25)^FT$9,(1-Parameters!$I$24)^FT$9) -> 0.1022699524 | FU10: =IF(OR(BW10=3,BW10=5,BW10=7),(1-Parameters!$I$25)^FU$9,(1-Parameters!$I$24)^FU$9) -> 0.09869050411 | FV10: =IF(OR(BX10=3,BX10=5,BX10=7),(1-Parameters!$I$25)^FV$9,(1-Parameters!$I$24)^FV$9) -> 0.09523633647 | FW10: =IF(OR(BY10=3,BY10=5,BY10=7),(1-Parameters!$I$25)^FW$9,(1-Parameters!$I$24)^FW$9) -> 0.09190306469 | FX10: =IF(OR(BZ10=3,BZ10=5,BZ10=7),(1-Parameters!$I$25)^FX$9,(1-Parameters!$I$24)^FX$9) -> 0.08868645742 | FY10: =IF(OR(CA10=3,CA10=5,CA10=7),(1-Parameters!$I$25)^FY$9,(1-Parameters!$I$24)^FY$9) -> 0.08558243142 | FZ10: =IF(OR(CB10=3,CB10=5,CB10=7),(1-Parameters!$I$25)^FZ$9,(1-Parameters!$I$24)^FZ$9) -> 0.08258704632 | GA10: =IF(OR(CC10=3,CC10=5,CC10=7),(1-Parameters!$I$25)^GA$9,(1-Parameters!$I$24)^GA$9) -> 0.07969649969 | GB10: =IF(OR(CD10=3,CD10=5,CD10=7),(1-Parameters!$I$25)^GB$9,(1-Parameters!$I$24)^GB$9) -> 0.07690712221 | GC10: =IF(OR(CE10=3,CE10=5,CE10=7),(1-Parameters!$I$25)^GC$9,(1-Parameters!$I$24)^GC$9) -> 0.07421537293 | GD10: =IF(OR(CF10=3,CF10=5,CF10=7),(1-Parameters!$I$25)^GD$9,(1-Parameters!$I$24)^GD$9) -> 0.07161783488 | GE10: =IF(OR(CG10=3,CG10=5,CG10=7),(1-Parameters!$I$25)^GE$9,(1-Parameters!$I$24)^GE$9) -> 0.06911121065 | GF10: =IF(OR(CH10=3,CH10=5,CH10=7),(1-Parameters!$I$25)^GF$9,(1-Parameters!$I$24)^GF$9) -> 0.06669231828 | GG10: =IF(OR(CI10=3,CI10=5,CI10=7),(1-Parameters!$I$25)^GG$9,(1-Parameters!$I$24)^GG$9) -> 0.06435808714 | GH10: =IF(OR(CJ10=3,CJ10=5,CJ10=7),(1-Parameters!$I$25)^GH$9,(1-Parameters!$I$24)^GH$9) -> 0.06210555409 | GI10: =IF(OR(CK10=3,CK10=5,CK10=7),(1-Parameters!$I$25)^GI$9,(1-Parameters!$I$24)^GI$9) -> 0.0599318597 | GJ10: =IF(OR(CL10=3,CL10=5,CL10=7),(1-Parameters!$I$25)^GJ$9,(1-Parameters!$I$24)^GJ$9) -> 0.05783424461 | GK10: =IF(OR(CM10=3,CM10=5,CM10=7),(1-Parameters!$I$25)^GK$9,(1-Parameters!$I$24)^GK$9) -> 0.05581004605 | GL10: =IF(OR(CN10=3,CN10=5,CN10=7),(1-Parameters!$I$25)^GL$9,(1-Parameters!$I$24)^GL$9) -> 0.05385669444 | GM10: =IF(OR(CO10=3,CO10=5,CO10=7),(1-Parameters!$I$25)^GM$9,(1-Parameters!$I$24)^GM$9) -> 0.05197171013 | GN10: =IF(OR(CP10=3,CP10=5,CP10=7),(1-Parameters!$I$25)^GN$9,(1-Parameters!$I$24)^GN$9) -> 0.05015270028 | GO10: =IF(OR(CQ10=3,CQ10=5,CQ10=7),(1-Parameters!$I$25)^GO$9,(1-Parameters!$I$24)^GO$9) -> 0.04839735577 | GP10: =IF(OR(CR10=3,CR10=5,CR10=7),(1-Parameters!$I$25)^GP$9,(1-Parameters!$I$24)^GP$9) -> 0.04670344832 | GQ10: =IF(OR(CS10=3,CS10=5,CS10=7),(1-Parameters!$I$25)^GQ$9,(1-Parameters!$I$24)^GQ$9) -> 0.04506882762 | GR10: =IF(OR(CT10=3,CT10=5,CT10=7),(1-Parameters!$I$25)^GR$9,(1-Parameters!$I$24)^GR$9) -> 0.04349141866 | GS10: =IF(OR(CU10=3,CU10=5,CU10=7),(1-Parameters!$I$25)^GS$9,(1-Parameters!$I$24)^GS$9) -> 0.041969219 | GT10: =IF(OR(CV10=3,CV10=5,CV10=7),(1-Parameters!$I$25)^GT$9,(1-Parameters!$I$24)^GT$9) -> 0.04050029634 | GU10: =IF(OR(CW10=3,CW10=5,CW10=7),(1-Parameters!$I$25)^GU$9,(1-Parameters!$I$24)^GU$9) -> 0.03908278597 | GV10: =IF(OR(CX10=3,CX10=5,CX10=7),(1-Parameters!$I$25)^GV$9,(1-Parameters!$I$24)^GV$9) -> 0.03771488846 | GW10: =IF(OR(CY10=3,CY10=5,CY10=7),(1-Parameters!$I$25)^GW$9,(1-Parameters!$I$24)^GW$9) -> 0.03639486736 | GX10: =IF(OR(CZ10=3,CZ10=5,CZ10=7),(1-Parameters!$I$25)^GX$9,(1-Parameters!$I$24)^GX$9) -> 0.035121047 | GY10: =IF(OR(DA10=3,DA10=5,DA10=7),(1-Parameters!$I$25)^GY$9,(1-Parameters!$I$24)^GY$9) -> 0.03389181036 | GZ10: =IF(OR(DB10=3,DB10=5,DB10=7),(1-Parameters!$I$25)^GZ$9,(1-Parameters!$I$24)^GZ$9) -> 0.032705597 | HA10: =IF(OR(DC10=3,DC10=5,DC10=7),(1-Parameters!$I$25)^HA$9,(1-Parameters!$I$24)^HA$9) -> 0.0315609011 | HB10: =IF(OR(DD10=3,DD10=5,DD10=7),(1-Parameters!$I$25)^HB$9,(1-Parameters!$I$24)^HB$9) -> 0.03045626956 | HC10: =IF(OR(DE10=3,DE10=5,DE10=7),(1-Parameters!$I$25)^HC$9,(1-Parameters!$I$24)^HC$9) -> 0.02939030013 | HD10: =IF(OR(DF10=3,DF10=5,DF10=7),(1-Parameters!$I$25)^HD$9,(1-Parameters!$I$24)^HD$9) -> 0.02836163962 | HF10: =IF(OR(I10=3,I10=5,I10=7),(1-Parameters!$J$25)^HF$9,(1-Parameters!$J$24)^HF$9) -> 1 | HG10: =IF(OR(J10=3,J10=5,J10=7),(1-Parameters!$J$25)^HG$9,(1-Parameters!$J$24)^HG$9) -> 0.965 | HH10: =IF(OR(K10=3,K10=5,K10=7),(1-Parameters!$J$25)^HH$9,(1-Parameters!$J$24)^HH$9) -> 0.931225 | HI10: =IF(OR(L10=3,L10=5,L10=7),(1-Parameters!$J$25)^HI$9,(1-Parameters!$J$24)^HI$9) -> 0.898632125 | HJ10: =IF(OR(M10=3,M10=5,M10=7),(1-Parameters!$J$25)^HJ$9,(1-Parameters!$J$24)^HJ$9) -> 0.8671800006 | HK10: =IF(OR(N10=3,N10=5,N10=7),(1-Parameters!$J$25)^HK$9,(1-Parameters!$J$24)^HK$9) -> 0.8368287006 | HL10: =IF(OR(O10=3,O10=5,O10=7),(1-Parameters!$J$25)^HL$9,(1-Parameters!$J$24)^HL$9) -> 0.8075396961 | HM10: =IF(OR(P10=3,P10=5,P10=7),(1-Parameters!$J$25)^HM$9,(1-Parameters!$J$24)^HM$9) -> 0.7792758067 | HN10: =IF(OR(Q10=3,Q10=5,Q10=7),(1-Parameters!$J$25)^HN$9,(1-Parameters!$J$24)^HN$9) -> 0.7520011535 | HO10: =IF(OR(R10=3,R10=5,R10=7),(1-Parameters!$J$25)^HO$9,(1-Parameters!$J$24)^HO$9) -> 0.7256811131 | HP10: =IF(OR(S10=3,S10=5,S10=7),(1-Parameters!$J$25)^HP$9,(1-Parameters!$J$24)^HP$9) -> 0.7002822742 | HQ10: =IF(OR(T10=3,T10=5,T10=7),(1-Parameters!$J$25)^HQ$9,(1-Parameters!$J$24)^HQ$9) -> 0.6757723946 | HR10: =IF(OR(U10=3,U10=5,U10=7),(1-Parameters!$J$25)^HR$9,(1-Parameters!$J$24)^HR$9) -> 0.6521203607 | HS10: =IF(OR(V10=3,V10=5,V10=7),(1-Parameters!$J$25)^HS$9,(1-Parameters!$J$24)^HS$9) -> 0.6292961481 | HT10: =IF(OR(W10=3,W10=5,W10=7),(1-Parameters!$J$25)^HT$9,(1-Parameters!$J$24)^HT$9) -> 0.6072707829 | HU10: =IF(OR(X10=3,X10=5,X10=7),(1-Parameters!$J$25)^HU$9,(1-Parameters!$J$24)^HU$9) -> 0.5860163055 | HV10: =IF(OR(Y10=3,Y10=5,Y10=7),(1-Parameters!$J$25)^HV$9,(1-Parameters!$J$24)^HV$9) -> 0.5655057348 | HW10: =IF(OR(Z10=3,Z10=5,Z10=7),(1-Parameters!$J$25)^HW$9,(1-Parameters!$J$24)^HW$9) -> 0.5457130341 | HX10: =IF(OR(AA10=3,AA10=5,AA10=7),(1-Parameters!$J$25)^HX$9,(1-Parameters!$J$24)^HX$9) -> 0.5266130779 | HY10: =IF(OR(AB10=3,AB10=5,AB10=7),(1-Parameters!$J$25)^HY$9,(1-Parameters!$J$24)^HY$9) -> 0.5081816202 | HZ10: =IF(OR(AC10=3,AC10=5,AC10=7),(1-Parameters!$J$25)^HZ$9,(1-Parameters!$J$24)^HZ$9) -> 0.4903952635 | IA10: =IF(OR(AD10=3,AD10=5,AD10=7),(1-Parameters!$J$25)^IA$9,(1-Parameters!$J$24)^IA$9) -> 0.4732314293 | IB10: =IF(OR(AE10=3,AE10=5,AE10=7),(1-Parameters!$J$25)^IB$9,(1-Parameters!$J$24)^IB$9) -> 0.4566683292 | IC10: =IF(OR(AF10=3,AF10=5,AF10=7),(1-Parameters!$J$25)^IC$9,(1-Parameters!$J$24)^IC$9) -> 0.4406849377 | ID10: =IF(OR(AG10=3,AG10=5,AG10=7),(1-Parameters!$J$25)^ID$9,(1-Parameters!$J$24)^ID$9) -> 0.4252609649 | IE10: =IF(OR(AH10=3,AH10=5,AH10=7),(1-Parameters!$J$25)^IE$9,(1-Parameters!$J$24)^IE$9) -> 0.4103768311 | IF10: =IF(OR(AI10=3,AI10=5,AI10=7),(1-Parameters!$J$25)^IF$9,(1-Parameters!$J$24)^IF$9) -> 0.396013642 | IG10: =IF(OR(AJ10=3,AJ10=5,AJ10=7),(1-Parameters!$J$25)^IG$9,(1-Parameters!$J$24)^IG$9) -> 0.3821531646 | IH10: =IF(OR(AK10=3,AK10=5,AK10=7),(1-Parameters!$J$25)^IH$9,(1-Parameters!$J$24)^IH$9) -> 0.3687778038 | II10: =IF(OR(AL10=3,AL10=5,AL10=7),(1-Parameters!$J$25)^II$9,(1-Parameters!$J$24)^II$9) -> 0.3558705807 | IJ10: =IF(OR(AM10=3,AM10=5,AM10=7),(1-Parameters!$J$25)^IJ$9,(1-Parameters!$J$24)^IJ$9) -> 0.3434151104 | IK10: =IF(OR(AN10=3,AN10=5,AN10=7),(1-Parameters!$J$25)^IK$9,(1-Parameters!$J$24)^IK$9) -> 0.3313955815 | IL10: =IF(OR(AO10=3,AO10=5,AO10=7),(1-Parameters!$J$25)^IL$9,(1-Parameters!$J$24)^IL$9) -> 0.3197967361 | IM10: =IF(OR(AP10=3,AP10=5,AP10=7),(1-Parameters!$J$25)^IM$9,(1-Parameters!$J$24)^IM$9) -> 0.3086038504 | IN10: =IF(OR(AQ10=3,AQ10=5,AQ10=7),(1-Parameters!$J$25)^IN$9,(1-Parameters!$J$24)^IN$9) -> 0.2978027156 | IO10: =IF(OR(AR10=3,AR10=5,AR10=7),(1-Parameters!$J$25)^IO$9,(1-Parameters!$J$24)^IO$9) -> 0.2873796206 | IP10: =IF(OR(AS10=3,AS10=5,AS10=7),(1-Parameters!$J$25)^IP$9,(1-Parameters!$J$24)^IP$9) -> 0.2773213338 | IQ10: =IF(OR(AT10=3,AT10=5,AT10=7),(1-Parameters!$J$25)^IQ$9,(1-Parameters!$J$24)^IQ$9) -> 0.2676150872 | IR10: =IF(OR(AU10=3,AU10=5,AU10=7),(1-Parameters!$J$25)^IR$9,(1-Parameters!$J$24)^IR$9) -> 0.2582485591 | IS10: =IF(OR(AV10=3,AV10=5,AV10=7),(1-Parameters!$J$25)^IS$9,(1-Parameters!$J$24)^IS$9) -> 0.2492098595 | IT10: =IF(OR(AW10=3,AW10=5,AW10=7),(1-Parameters!$J$25)^IT$9,(1-Parameters!$J$24)^IT$9) -> 0.2404875145 | IU10: =IF(OR(AX10=3,AX10=5,AX10=7),(1-Parameters!$J$25)^IU$9,(1-Parameters!$J$24)^IU$9) -> 0.2320704515 | IV10: =IF(OR(AY10=3,AY10=5,AY10=7),(1-Parameters!$J$25)^IV$9,(1-Parameters!$J$24)^IV$9) -> 0.2239479856 | IW10: =IF(OR(AZ10=3,AZ10=5,AZ10=7),(1-Parameters!$J$25)^IW$9,(1-Parameters!$J$24)^IW$9) -> 0.2161098062 | IX10: =IF(OR(BA10=3,BA10=5,BA10=7),(1-Parameters!$J$25)^IX$9,(1-Parameters!$J$24)^IX$9) -> 0.2085459629 | IY10: =IF(OR(BB10=3,BB10=5,BB10=7),(1-Parameters!$J$25)^IY$9,(1-Parameters!$J$24)^IY$9) -> 0.2012468542 | IZ10: =IF(OR(BC10=3,BC10=5,BC10=7),(1-Parameters!$J$25)^IZ$9,(1-Parameters!$J$24)^IZ$9) -> 0.1942032143 | JA10: =IF(OR(BD10=3,BD10=5,BD10=7),(1-Parameters!$J$25)^JA$9,(1-Parameters!$J$24)^JA$9) -> 0.1874061018 | JB10: =IF(OR(BE10=3,BE10=5,BE10=7),(1-Parameters!$J$25)^JB$9,(1-Parameters!$J$24)^JB$9) -> 0.1808468883 | JC10: =IF(OR(BF10=3,BF10=5,BF10=7),(1-Parameters!$J$25)^JC$9,(1-Parameters!$J$24)^JC$9) -> 0.1745172472 | JD10: =IF(OR(BG10=3,BG10=5,BG10=7),(1-Parameters!$J$25)^JD$9,(1-Parameters!$J$24)^JD$9) -> 0.1684091435 | JE10: =IF(OR(BH10=3,BH10=5,BH10=7),(1-Parameters!$J$25)^JE$9,(1-Parameters!$J$24)^JE$9) -> 0.1625148235 | JF10: =IF(OR(BI10=3,BI10=5,BI10=7),(1-Parameters!$J$25)^JF$9,(1-Parameters!$J$24)^JF$9) -> 0.1568268047 | JG10: =IF(OR(BJ10=3,BJ10=5,BJ10=7),(1-Parameters!$J$25)^JG$9,(1-Parameters!$J$24)^JG$9) -> 0.1513378665 | JH10: =IF(OR(BK10=3,BK10=5,BK10=7),(1-Parameters!$J$25)^JH$9,(1-Parameters!$J$24)^JH$9) -> 0.1460410412 | JI10: =IF(OR(BL10=3,BL10=5,BL10=7),(1-Parameters!$J$25)^JI$9,(1-Parameters!$J$24)^JI$9) -> 0.1409296047 | JJ10: =IF(OR(BM10=3,BM10=5,BM10=7),(1-Parameters!$J$25)^JJ$9,(1-Parameters!$J$24)^JJ$9) -> 0.1359970686 | JK10: =IF(OR(BN10=3,BN10=5,BN10=7),(1-Parameters!$J$25)^JK$9,(1-Parameters!$J$24)^JK$9) -> 0.1312371712 | JL10: =IF(OR(BO10=3,BO10=5,BO10=7),(1-Parameters!$J$25)^JL$9,(1-Parameters!$J$24)^JL$9) -> 0.1266438702 | JM10: =IF(OR(BP10=3,BP10=5,BP10=7),(1-Parameters!$J$25)^JM$9,(1-Parameters!$J$24)^JM$9) -> 0.1222113347 | JN10: =IF(OR(BQ10=3,BQ10=5,BQ10=7),(1-Parameters!$J$25)^JN$9,(1-Parameters!$J$24)^JN$9) -> 0.117933938 | JO10: =IF(OR(BR10=3,BR10=5,BR10=7),(1-Parameters!$J$25)^JO$9,(1-Parameters!$J$24)^JO$9) -> 0.1138062502 | JP10: =IF(OR(BS10=3,BS10=5,BS10=7),(1-Parameters!$J$25)^JP$9,(1-Parameters!$J$24)^JP$9) -> 0.1098230314 | JQ10: =IF(OR(BT10=3,BT10=5,BT10=7),(1-Parameters!$J$25)^JQ$9,(1-Parameters!$J$24)^JQ$9) -> 0.1059792253 | JR10: =IF(OR(BU10=3,BU10=5,BU10=7),(1-Parameters!$J$25)^JR$9,(1-Parameters!$J$24)^JR$9) -> 0.1022699524 | JS10: =IF(OR(BV10=3,BV10=5,BV10=7),(1-Parameters!$J$25)^JS$9,(1-Parameters!$J$24)^JS$9) -> 0.09869050411 | JT10: =IF(OR(BW10=3,BW10=5,BW10=7),(1-Parameters!$J$25)^JT$9,(1-Parameters!$J$24)^JT$9) -> 0.09523633647 | JU10: =IF(OR(BX10=3,BX10=5,BX10=7),(1-Parameters!$J$25)^JU$9,(1-Parameters!$J$24)^JU$9) -> 0.09190306469 | JV10: =IF(OR(BY10=3,BY10=5,BY10=7),(1-Parameters!$J$25)^JV$9,(1-Parameters!$J$24)^JV$9) -> 0.08868645742 | JW10: =IF(OR(BZ10=3,BZ10=5,BZ10=7),(1-Parameters!$J$25)^JW$9,(1-Parameters!$J$24)^JW$9) -> 0.08558243142 | JX10: =IF(OR(CA10=3,CA10=5,CA10=7),(1-Parameters!$J$25)^JX$9,(1-Parameters!$J$24)^JX$9) -> 0.08258704632 | JY10: =IF(OR(CB10=3,CB10=5,CB10=7),(1-Parameters!$J$25)^JY$9,(1-Parameters!$J$24)^JY$9) -> 0.07969649969 | JZ10: =IF(OR(CC10=3,CC10=5,CC10=7),(1-Parameters!$J$25)^JZ$9,(1-Parameters!$J$24)^JZ$9) -> 0.07690712221 | KA10: =IF(OR(CD10=3,CD10=5,CD10=7),(1-Parameters!$J$25)^KA$9,(1-Parameters!$J$24)^KA$9) -> 0.07421537293 | KB10: =IF(OR(CE10=3,CE10=5,CE10=7),(1-Parameters!$J$25)^KB$9,(1-Parameters!$J$24)^KB$9) -> 0.07161783488 | KC10: =IF(OR(CF10=3,CF10=5,CF10=7),(1-Parameters!$J$25)^KC$9,(1-Parameters!$J$24)^KC$9) -> 0.06911121065 | KD10: =IF(OR(CG10=3,CG10=5,CG10=7),(1-Parameters!$J$25)^KD$9,(1-Parameters!$J$24)^KD$9) -> 0.06669231828 | KE10: =IF(OR(CH10=3,CH10=5,CH10=7),(1-Parameters!$J$25)^KE$9,(1-Parameters!$J$24)^KE$9) -> 0.06435808714 | KF10: =IF(OR(CI10=3,CI10=5,CI10=7),(1-Parameters!$J$25)^KF$9,(1-Parameters!$J$24)^KF$9) -> 0.06210555409 | KG10: =IF(OR(CJ10=3,CJ10=5,CJ10=7),(1-Parameters!$J$25)^KG$9,(1-Parameters!$J$24)^KG$9) -> 0.0599318597 | KH10: =IF(OR(CK10=3,CK10=5,CK10=7),(1-Parameters!$J$25)^KH$9,(1-Parameters!$J$24)^KH$9) -> 0.05783424461 | KI10: =IF(OR(CL10=3,CL10=5,CL10=7),(1-Parameters!$J$25)^KI$9,(1-Parameters!$J$24)^KI$9) -> 0.05581004605 | KJ10: =IF(OR(CM10=3,CM10=5,CM10=7),(1-Parameters!$J$25)^KJ$9,(1-Parameters!$J$24)^KJ$9) -> 0.05385669444 | KK10: =IF(OR(CN10=3,CN10=5,CN10=7),(1-Parameters!$J$25)^KK$9,(1-Parameters!$J$24)^KK$9) -> 0.05197171013 | KL10: =IF(OR(CO10=3,CO10=5,CO10=7),(1-Parameters!$J$25)^KL$9,(1-Parameters!$J$24)^KL$9) -> 0.05015270028 | KM10: =IF(OR(CP10=3,CP10=5,CP10=7),(1-Parameters!$J$25)^KM$9,(1-Parameters!$J$24)^KM$9) -> 0.04839735577 | KN10: =IF(OR(CQ10=3,CQ10=5,CQ10=7),(1-Parameters!$J$25)^KN$9,(1-Parameters!$J$24)^KN$9) -> 0.04670344832 | KO10: =IF(OR(CR10=3,CR10=5,CR10=7),(1-Parameters!$J$25)^KO$9,(1-Parameters!$J$24)^KO$9) -> 0.04506882762 | KP10: =IF(OR(CS10=3,CS10=5,CS10=7),(1-Parameters!$J$25)^KP$9,(1-Parameters!$J$24)^KP$9) -> 0.04349141866 | KQ10: =IF(OR(CT10=3,CT10=5,CT10=7),(1-Parameters!$J$25)^KQ$9,(1-Parameters!$J$24)^KQ$9) -> 0.041969219 | KR10: =IF(OR(CU10=3,CU10=5,CU10=7),(1-Parameters!$J$25)^KR$9,(1-Parameters!$J$24)^KR$9) -> 0.04050029634 | KS10: =IF(OR(CV10=3,CV10=5,CV10=7),(1-Parameters!$J$25)^KS$9,(1-Parameters!$J$24)^KS$9) -> 0.03908278597 | KT10: =IF(OR(CW10=3,CW10=5,CW10=7),(1-Parameters!$J$25)^KT$9,(1-Parameters!$J$24)^KT$9) -> 0.03771488846 | KU10: =IF(OR(CX10=3,CX10=5,CX10=7),(1-Parameters!$J$25)^KU$9,(1-Parameters!$J$24)^KU$9) -> 0.03639486736 | KV10: =IF(OR(CY10=3,CY10=5,CY10=7),(1-Parameters!$J$25)^KV$9,(1-Parameters!$J$24)^KV$9) -> 0.035121047 | KW10: =IF(OR(CZ10=3,CZ10=5,CZ10=7),(1-Parameters!$J$25)^KW$9,(1-Parameters!$J$24)^KW$9) -> 0.03389181036 | KX10: =IF(OR(DA10=3,DA10=5,DA10=7),(1-Parameters!$J$25)^KX$9,(1-Parameters!$J$24)^KX$9) -> 0.032705597 | KY10: =IF(OR(DB10=3,DB10=5,DB10=7),(1-Parameters!$J$25)^KY$9,(1-Parameters!$J$24)^KY$9) -> 0.0315609011 | KZ10: =IF(OR(DC10=3,DC10=5,DC10=7),(1-Parameters!$J$25)^KZ$9,(1-Parameters!$J$24)^KZ$9) -> 0.03045626956 | LA10: =IF(OR(DD10=3,DD10=5,DD10=7),(1-Parameters!$J$25)^LA$9,(1-Parameters!$J$24)^LA$9) -> 0.02939030013 | LB10: =IF(OR(DE10=3,DE10=5,DE10=7),(1-Parameters!$J$25)^LB$9,(1-Parameters!$J$24)^LB$9) -> 0.02836163962 | LD10: =(OFFSET(Parameters!$I$107,(J10-1)*9+3,($F10-1))*(VLOOKUP($H10+LD$9,'Age Dependencies'!$E$8:$H$208,3,0)))+IF(J10<>I10,OFFSET(Parameters!$I$107,(J10-1)*9+2,($F10-1)),0) -> 2058.823529 | LE10: =(OFFSET(Parameters!$I$107,(K10-1)*9+3,($F10-1))*(VLOOKUP($H10+LE$9,'Age Dependencies'!$E$8:$H$208,3,0)))+IF(K10<>J10,OFFSET(Parameters!$I$107,(K10-1)*9+2,($F10-1)),0) -> 10861.68627 | LF10: =(OFFSET(Parameters!$I$107,(L10-1)*9+3,($F10-1))*(VLOOKUP($H10+LF$9,'Age Dependencies'!$E$8:$H$208,3,0)))+IF(L10<>K10,OFFSET(Parameters!$I$107,(L10-1)*9+2,($F10-1)),0) -> 10861.68627 | LG10: =(OFFSET(Parameters!$I$107,(M10-1)*9+3,($F10-1))*(VLOOKUP($H10+LG$9,'Age Dependencies'!$E$8:$H$208,3,0)))+IF(M10<>L10,OFFSET(Parameters!$I$107,(M10-1)*9+2,($F10-1)),0) -> 10861.68627 | LH10: =(OFFSET(Parameters!$I$107,(N10-1)*9+3,($F10-1))*(VLOOKUP($H10+LH$9,'Age Dependencies'!$E$8:$H$208,3,0)))+IF(N10<>M10,OFFSET(Parameters!$I$107,(N10-1)*9+2,($F10-1)),0) -> 10861.68627 | LI10: =(OFFSET(Parameters!$I$107,(O10-1)*9+3,($F10-1))*(VLOOKUP($H10+LI$9,'Age Dependencies'!$E$8:$H$208,3,0)))+IF(O10<>N10,OFFSET(Parameters!$I$107,(O10-1)*9+2,($F10-1)),0) -> 10861.68627 | LJ10: =(OFFSET(Parameters!$I$107,(P10-1)*9+3,($F10-1))*(VLOOKUP($H10+LJ$9,'Age Dependencies'!$E$8:$H$208,3,0)))+IF(P10<>O10,OFFSET(Parameters!$I$107,(P10-1)*9+2,($F10-1)),0) -> 10861.68627 | LK10: =(OFFSET(Parameters!$I$107,(Q10-1)*9+3,($F10-1))*(VLOOKUP($H10+LK$9,'Age Dependencies'!$E$8:$H$208,3,0)))+IF(Q10<>P10,OFFSET(Parameters!$I$107,(Q10-1)*9+2,($F10-1)),0) -> 10861.68627 | LL10: =(OFFSET(Parameters!$I$107,(R10-1)*9+3,($F10-1))*(VLOOKUP($H10+LL$9,'Age Dependencies'!$E$8:$H$208,3,0)))+IF(R10<>Q10,OFFSET(Parameters!$I$107,(R10-1)*9+2,($F10-1)),0) -> 10861.68627 | LM10: =(OFFSET(Parameters!$I$107,(S10-1)*9+3,($F10-1))*(VLOOKUP($H10+LM$9,'Age Dependencies'!$E$8:$H$208,3,0)))+IF(S10<>R10,OFFSET(Parameters!$I$107,(S10-1)*9+2,($F10-1)),0) -> 10861.68627 | LN10: =(OFFSET(Parameters!$I$107,(T10-1)*9+3,($F10-1))*(VLOOKUP($H10+LN$9,'Age Dependencies'!$E$8:$H$208,3,0)))+IF(T10<>S10,OFFSET(Parameters!$I$107,(T10-1)*9+2,($F10-1)),0) -> 10861.68627 | LO10: =(OFFSET(Parameters!$I$107,(U10-1)*9+3,($F10-1))*(VLOOKUP($H10+LO$9,'Age Dependencies'!$E$8:$H$208,3,0)))+IF(U10<>T10,OFFSET(Parameters!$I$107,(U10-1)*9+2,($F10-1)),0) -> 10861.68627 | LP10: =(OFFSET(Parameters!$I$107,(V10-1)*9+3,($F10-1))*(VLOOKUP($H10+LP$9,'Age Dependencies'!$E$8:$H$208,3,0)))+IF(V10<>U10,OFFSET(Parameters!$I$107,(V10-1)*9+2,($F10-1)),0) -> 10861.68627 | LQ10: =(OFFSET(Parameters!$I$107,(W10-1)*9+3,($F10-1))*(VLOOKUP($H10+LQ$9,'Age Dependencies'!$E$8:$H$208,3,0)))+IF(W10<>V10,OFFSET(Parameters!$I$107,(W10-1)*9+2,($F10-1)),0) -> 10861.68627 | LR10: =(OFFSET(Parameters!$I$107,(X10-1)*9+3,($F10-1))*(VLOOKUP($H10+LR$9,'Age Dependencies'!$E$8:$H$208,3,0)))+IF(X10<>W10,OFFSET(Parameters!$I$107,(X10-1)*9+2,($F10-1)),0) -> 10861.68627 | LS10: =(OFFSET(Parameters!$I$107,(Y10-1)*9+3,($F10-1))*(VLOOKUP($H10+LS$9,'Age Dependencies'!$E$8:$H$208,3,0)))+IF(Y10<>X10,OFFSET(Parameters!$I$107,(Y10-1)*9+2,($F10-1)),0) -> 10861.68627 | LT10: =(OFFSET(Parameters!$I$107,(Z10-1)*9+3,($F10-1))*(VLOOKUP($H10+LT$9,'Age Dependencies'!$E$8:$H$208,3,0)))+IF(Z10<>Y10,OFFSET(Parameters!$I$107,(Z10-1)*9+2,($F10-1)),0) -> 10861.68627 | LU10: =(OFFSET(Parameters!$I$107,(AA10-1)*9+3,($F10-1))*(VLOOKUP($H10+LU$9,'Age Dependencies'!$E$8:$H$208,3,0)))+IF(AA10<>Z10,OFFSET(Parameters!$I$107,(AA10-1)*9+2,($F10-1)),0) -> 10861.68627 | LV10: =(OFFSET(Parameters!$I$107,(AB10-1)*9+3,($F10-1))*(VLOOKUP($H10+LV$9,'Age Dependencies'!$E$8:$H$208,3,0)))+IF(AB10<>AA10,OFFSET(Parameters!$I$107,(AB10-1)*9+2,($F10-1)),0) -> 10861.68627 | LW10: =(OFFSET(Parameters!$I$107,(AC10-1)*9+3,($F10-1))*(VLOOKUP($H10+LW$9,'Age Dependencies'!$E$8:$H$208,3,0)))+IF(AC10<>AB10,OFFSET(Parameters!$I$107,(AC10-1)*9+2,($F10-1)),0) -> 10861.68627 | LX10: =(OFFSET(Parameters!$I$107,(AD10-1)*9+3,($F10-1))*(VLOOKUP($H10+LX$9,'Age Dependencies'!$E$8:$H$208,3,0)))+IF(AD10<>AC10,OFFSET(Parameters!$I$107,(AD10-1)*9+2,($F10-1)),0) -> 10861.68627 | LY10: =(OFFSET(Parameters!$I$107,(AE10-1)*9+3,($F10-1))*(VLOOKUP($H10+LY$9,'Age Dependencies'!$E$8:$H$208,3,0)))+IF(AE10<>AD10,OFFSET(Parameters!$I$107,(AE10-1)*9+2,($F10-1)),0) -> 10861.68627 | LZ10: =(OFFSET(Parameters!$I$107,(AF10-1)*9+3,($F10-1))*(VLOOKUP($H10+LZ$9,'Age Dependencies'!$E$8:$H$208,3,0)))+IF(AF10<>AE10,OFFSET(Parameters!$I$107,(AF10-1)*9+2,($F10-1)),0) -> 10861.68627 | MA10: =(OFFSET(Parameters!$I$107,(AG10-1)*9+3,($F10-1))*(VLOOKUP($H10+MA$9,'Age Dependencies'!$E$8:$H$208,3,0)))+IF(AG10<>AF10,OFFSET(Parameters!$I$107,(AG10-1)*9+2,($F10-1)),0) -> 10861.68627 | MB10: =(OFFSET(Parameters!$I$107,(AH10-1)*9+3,($F10-1))*(VLOOKUP($H10+MB$9,'Age Dependencies'!$E$8:$H$208,3,0)))+IF(AH10<>AG10,OFFSET(Parameters!$I$107,(AH10-1)*9+2,($F10-1)),0) -> 10861.68627 | MC10: =(OFFSET(Parameters!$I$107,(AI10-1)*9+3,($F10-1))*(VLOOKUP($H10+MC$9,'Age Dependencies'!$E$8:$H$208,3,0)))+IF(AI10<>AH10,OFFSET(Parameters!$I$107,(AI10-1)*9+2,($F10-1)),0) -> 10861.68627 | MD10: =(OFFSET(Parameters!$I$107,(AJ10-1)*9+3,($F10-1))*(VLOOKUP($H10+MD$9,'Age Dependencies'!$E$8:$H$208,3,0)))+IF(AJ10<>AI10,OFFSET(Parameters!$I$107,(AJ10-1)*9+2,($F10-1)),0) -> 10861.68627 | ME10: =(OFFSET(Parameters!$I$107,(AK10-1)*9+3,($F10-1))*(VLOOKUP($H10+ME$9,'Age Dependencies'!$E$8:$H$208,3,0)))+IF(AK10<>AJ10,OFFSET(Parameters!$I$107,(AK10-1)*9+2,($F10-1)),0) -> 10861.68627 | MF10: =(OFFSET(Parameters!$I$107,(AL10-1)*9+3,($F10-1))*(VLOOKUP($H10+MF$9,'Age Dependencies'!$E$8:$H$208,3,0)))+IF(AL10<>AK10,OFFSET(Parameters!$I$107,(AL10-1)*9+2,($F10-1)),0) -> 10861.68627 | MG10: =(OFFSET(Parameters!$I$107,(AM10-1)*9+3,($F10-1))*(VLOOKUP($H10+MG$9,'Age Dependencies'!$E$8:$H$208,3,0)))+IF(AM10<>AL10,OFFSET(Parameters!$I$107,(AM10-1)*9+2,($F10-1)),0) -> 10861.68627 | MH10: =(OFFSET(Parameters!$I$107,(AN10-1)*9+3,($F10-1))*(VLOOKUP($H10+MH$9,'Age Dependencies'!$E$8:$H$208,3,0)))+IF(AN10<>AM10,OFFSET(Parameters!$I$107,(AN10-1)*9+2,($F10-1)),0) -> 10861.68627 | MI10: =(OFFSET(Parameters!$I$107,(AO10-1)*9+3,($F10-1))*(VLOOKUP($H10+MI$9,'Age Dependencies'!$E$8:$H$208,3,0)))+IF(AO10<>AN10,OFFSET(Parameters!$I$107,(AO10-1)*9+2,($F10-1)),0) -> 10861.68627 | MJ10: =(OFFSET(Parameters!$I$107,(AP10-1)*9+3,($F10-1))*(VLOOKUP($H10+MJ$9,'Age Dependencies'!$E$8:$H$208,3,0)))+IF(AP10<>AO10,OFFSET(Parameters!$I$107,(AP10-1)*9+2,($F10-1)),0) -> 10861.68627 | MK10: =(OFFSET(Parameters!$I$107,(AQ10-1)*9+3,($F10-1))*(VLOOKUP($H10+MK$9,'Age Dependencies'!$E$8:$H$208,3,0)))+IF(AQ10<>AP10,OFFSET(Parameters!$I$107,(AQ10-1)*9+2,($F10-1)),0) -> 10861.68627 | ML10: =(OFFSET(Parameters!$I$107,(AR10-1)*9+3,($F10-1))*(VLOOKUP($H10+ML$9,'Age Dependencies'!$E$8:$H$208,3,0)))+IF(AR10<>AQ10,OFFSET(Parameters!$I$107,(AR10-1)*9+2,($F10-1)),0) -> 10861.68627 | MM10: =(OFFSET(Parameters!$I$107,(AS10-1)*9+3,($F10-1))*(VLOOKUP($H10+MM$9,'Age Dependencies'!$E$8:$H$208,3,0)))+IF(AS10<>AR10,OFFSET(Parameters!$I$107,(AS10-1)*9+2,($F10-1)),0) -> 10861.68627 | MN10: =(OFFSET(Parameters!$I$107,(AT10-1)*9+3,($F10-1))*(VLOOKUP($H10+MN$9,'Age Dependencies'!$E$8:$H$208,3,0)))+IF(AT10<>AS10,OFFSET(Parameters!$I$107,(AT10-1)*9+2,($F10-1)),0) -> 10861.68627 | MO10: =(OFFSET(Parameters!$I$107,(AU10-1)*9+3,($F10-1))*(VLOOKUP($H10+MO$9,'Age Dependencies'!$E$8:$H$208,3,0)))+IF(AU10<>AT10,OFFSET(Parameters!$I$107,(AU10-1)*9+2,($F10-1)),0) -> 10861.68627 | MP10: =(OFFSET(Parameters!$I$107,(AV10-1)*9+3,($F10-1))*(VLOOKUP($H10+MP$9,'Age Dependencies'!$E$8:$H$208,3,0)))+IF(AV10<>AU10,OFFSET(Parameters!$I$107,(AV10-1)*9+2,($F10-1)),0) -> 10861.68627 | MQ10: =(OFFSET(Parameters!$I$107,(AW10-1)*9+3,($F10-1))*(VLOOKUP($H10+MQ$9,'Age Dependencies'!$E$8:$H$208,3,0)))+IF(AW10<>AV10,OFFSET(Parameters!$I$107,(AW10-1)*9+2,($F10-1)),0) -> 10861.68627 | MR10: =(OFFSET(Parameters!$I$107,(AX10-1)*9+3,($F10-1))*(VLOOKUP($H10+MR$9,'Age Dependencies'!$E$8:$H$208,3,0)))+IF(AX10<>AW10,OFFSET(Parameters!$I$107,(AX10-1)*9+2,($F10-1)),0) -> 10861.68627 | MS10: =(OFFSET(Parameters!$I$107,(AY10-1)*9+3,($F10-1))*(VLOOKUP($H10+MS$9,'Age Dependencies'!$E$8:$H$208,3,0)))+IF(AY10<>AX10,OFFSET(Parameters!$I$107,(AY10-1)*9+2,($F10-1)),0) -> 10861.68627 | MT10: =(OFFSET(Parameters!$I$107,(AZ10-1)*9+3,($F10-1))*(VLOOKUP($H10+MT$9,'Age Dependencies'!$E$8:$H$208,3,0)))+IF(AZ10<>AY10,OFFSET(Parameters!$I$107,(AZ10-1)*9+2,($F10-1)),0) -> 10861.68627 | MU10: =(OFFSET(Parameters!$I$107,(BA10-1)*9+3,($F10-1))*(VLOOKUP($H10+MU$9,'Age Dependencies'!$E$8:$H$208,3,0)))+IF(BA10<>AZ10,OFFSET(Parameters!$I$107,(BA10-1)*9+2,($F10-1)),0) -> 10861.68627 | MV10: =(OFFSET(Parameters!$I$107,(BB10-1)*9+3,($F10-1))*(VLOOKUP($H10+MV$9,'Age Dependencies'!$E$8:$H$208,3,0)))+IF(BB10<>BA10,OFFSET(Parameters!$I$107,(BB10-1)*9+2,($F10-1)),0) -> 10861.68627 | MW10: =(OFFSET(Parameters!$I$107,(BC10-1)*9+3,($F10-1))*(VLOOKUP($H10+MW$9,'Age Dependencies'!$E$8:$H$208,3,0)))+IF(BC10<>BB10,OFFSET(Parameters!$I$107,(BC10-1)*9+2,($F10-1)),0) -> 10861.68627 | MX10: =(OFFSET(Parameters!$I$107,(BD10-1)*9+3,($F10-1))*(VLOOKUP($H10+MX$9,'Age Dependencies'!$E$8:$H$208,3,0)))+IF(BD10<>BC10,OFFSET(Parameters!$I$107,(BD10-1)*9+2,($F10-1)),0) -> 10861.68627 | MY10: =(OFFSET(Parameters!$I$107,(BE10-1)*9+3,($F10-1))*(VLOOKUP($H10+MY$9,'Age Dependencies'!$E$8:$H$208,3,0)))+IF(BE10<>BD10,OFFSET(Parameters!$I$107,(BE10-1)*9+2,($F10-1)),0) -> 10861.68627 | MZ10: =(OFFSET(Parameters!$I$107,(BF10-1)*9+3,($F10-1))*(VLOOKUP($H10+MZ$9,'Age Dependencies'!$E$8:$H$208,3,0)))+IF(BF10<>BE10,OFFSET(Parameters!$I$107,(BF10-1)*9+2,($F10-1)),0) -> 10861.68627 | NA10: =(OFFSET(Parameters!$I$107,(BG10-1)*9+3,($F10-1))*(VLOOKUP($H10+NA$9,'Age Dependencies'!$E$8:$H$208,3,0)))+IF(BG10<>BF10,OFFSET(Parameters!$I$107,(BG10-1)*9+2,($F10-1)),0) -> 10861.68627 | NB10: =(OFFSET(Parameters!$I$107,(BH10-1)*9+3,($F10-1))*(VLOOKUP($H10+NB$9,'Age Dependencies'!$E$8:$H$208,3,0)))+IF(BH10<>BG10,OFFSET(Parameters!$I$107,(BH10-1)*9+2,($F10-1)),0) -> 10861.68627 | NC10: =(OFFSET(Parameters!$I$107,(BI10-1)*9+3,($F10-1))*(VLOOKUP($H10+NC$9,'Age Dependencies'!$E$8:$H$208,3,0)))+IF(BI10<>BH10,OFFSET(Parameters!$I$107,(BI10-1)*9+2,($F10-1)),0) -> 10861.68627 | ND10: =(OFFSET(Parameters!$I$107,(BJ10-1)*9+3,($F10-1))*(VLOOKUP($H10+ND$9,'Age Dependencies'!$E$8:$H$208,3,0)))+IF(BJ10<>BI10,OFFSET(Parameters!$I$107,(BJ10-1)*9+2,($F10-1)),0) -> 10861.68627 | NE10: =(OFFSET(Parameters!$I$107,(BK10-1)*9+3,($F10-1))*(VLOOKUP($H10+NE$9,'Age Dependencies'!$E$8:$H$208,3,0)))+IF(BK10<>BJ10,OFFSET(Parameters!$I$107,(BK10-1)*9+2,($F10-1)),0) -> 10861.68627 | NF10: =(OFFSET(Parameters!$I$107,(BL10-1)*9+3,($F10-1))*(VLOOKUP($H10+NF$9,'Age Dependencies'!$E$8:$H$208,3,0)))+IF(BL10<>BK10,OFFSET(Parameters!$I$107,(BL10-1)*9+2,($F10-1)),0) -> 10861.68627 | NG10: =(OFFSET(Parameters!$I$107,(BM10-1)*9+3,($F10-1))*(VLOOKUP($H10+NG$9,'Age Dependencies'!$E$8:$H$208,3,0)))+IF(BM10<>BL10,OFFSET(Parameters!$I$107,(BM10-1)*9+2,($F10-1)),0) -> 10861.68627 | NH10: =(OFFSET(Parameters!$I$107,(BN10-1)*9+3,($F10-1))*(VLOOKUP($H10+NH$9,'Age Dependencies'!$E$8:$H$208,3,0)))+IF(BN10<>BM10,OFFSET(Parameters!$I$107,(BN10-1)*9+2,($F10-1)),0) -> 10861.68627 | NI10: =(OFFSET(Parameters!$I$107,(BO10-1)*9+3,($F10-1))*(VLOOKUP($H10+NI$9,'Age Dependencies'!$E$8:$H$208,3,0)))+IF(BO10<>BN10,OFFSET(Parameters!$I$107,(BO10-1)*9+2,($F10-1)),0) -> 10861.68627 | NJ10: =(OFFSET(Parameters!$I$107,(BP10-1)*9+3,($F10-1))*(VLOOKUP($H10+NJ$9,'Age Dependencies'!$E$8:$H$208,3,0)))+IF(BP10<>BO10,OFFSET(Parameters!$I$107,(BP10-1)*9+2,($F10-1)),0) -> 10861.68627 | NK10: =(OFFSET(Parameters!$I$107,(BQ10-1)*9+3,($F10-1))*(VLOOKUP($H10+NK$9,'Age Dependencies'!$E$8:$H$208,3,0)))+IF(BQ10<>BP10,OFFSET(Parameters!$I$107,(BQ10-1)*9+2,($F10-1)),0) -> 10861.68627 | NL10: =(OFFSET(Parameters!$I$107,(BR10-1)*9+3,($F10-1))*(VLOOKUP($H10+NL$9,'Age Dependencies'!$E$8:$H$208,3,0)))+IF(BR10<>BQ10,OFFSET(Parameters!$I$107,(BR10-1)*9+2,($F10-1)),0) -> 10861.68627 | NM10: =(OFFSET(Parameters!$I$107,(BS10-1)*9+3,($F10-1))*(VLOOKUP($H10+NM$9,'Age Dependencies'!$E$8:$H$208,3,0)))+IF(BS10<>BR10,OFFSET(Parameters!$I$107,(BS10-1)*9+2,($F10-1)),0) -> 10861.68627 | NN10: =(OFFSET(Parameters!$I$107,(BT10-1)*9+3,($F10-1))*(VLOOKUP($H10+NN$9,'Age Dependencies'!$E$8:$H$208,3,0)))+IF(BT10<>BS10,OFFSET(Parameters!$I$107,(BT10-1)*9+2,($F10-1)),0) -> 10861.68627 | NO10: =(OFFSET(Parameters!$I$107,(BU10-1)*9+3,($F10-1))*(VLOOKUP($H10+NO$9,'Age Dependencies'!$E$8:$H$208,3,0)))+IF(BU10<>BT10,OFFSET(Parameters!$I$107,(BU10-1)*9+2,($F10-1)),0) -> 10861.68627 | NP10: =(OFFSET(Parameters!$I$107,(BV10-1)*9+3,($F10-1))*(VLOOKUP($H10+NP$9,'Age Dependencies'!$E$8:$H$208,3,0)))+IF(BV10<>BU10,OFFSET(Parameters!$I$107,(BV10-1)*9+2,($F10-1)),0) -> 10861.68627 | NQ10: =(OFFSET(Parameters!$I$107,(BW10-1)*9+3,($F10-1))*(VLOOKUP($H10+NQ$9,'Age Dependencies'!$E$8:$H$208,3,0)))+IF(BW10<>BV10,OFFSET(Parameters!$I$107,(BW10-1)*9+2,($F10-1)),0) -> 10861.68627 | NR10: =(OFFSET(Parameters!$I$107,(BX10-1)*9+3,($F10-1))*(VLOOKUP($H10+NR$9,'Age Dependencies'!$E$8:$H$208,3,0)))+IF(BX10<>BW10,OFFSET(Parameters!$I$107,(BX10-1)*9+2,($F10-1)),0) -> 10861.68627 | NS10: =(OFFSET(Parameters!$I$107,(BY10-1)*9+3,($F10-1))*(VLOOKUP($H10+NS$9,'Age Dependencies'!$E$8:$H$208,3,0)))+IF(BY10<>BX10,OFFSET(Parameters!$I$107,(BY10-1)*9+2,($F10-1)),0) -> 10861.68627 | NT10: =(OFFSET(Parameters!$I$107,(BZ10-1)*9+3,($F10-1))*(VLOOKUP($H10+NT$9,'Age Dependencies'!$E$8:$H$208,3,0)))+IF(BZ10<>BY10,OFFSET(Parameters!$I$107,(BZ10-1)*9+2,($F10-1)),0) -> 10861.68627 | NU10: =(OFFSET(Parameters!$I$107,(CA10-1)*9+3,($F10-1))*(VLOOKUP($H10+NU$9,'Age Dependencies'!$E$8:$H$208,3,0)))+IF(CA10<>BZ10,OFFSET(Parameters!$I$107,(CA10-1)*9+2,($F10-1)),0) -> 10861.68627 | NV10: =(OFFSET(Parameters!$I$107,(CB10-1)*9+3,($F10-1))*(VLOOKUP($H10+NV$9,'Age Dependencies'!$E$8:$H$208,3,0)))+IF(CB10<>CA10,OFFSET(Parameters!$I$107,(CB10-1)*9+2,($F10-1)),0) -> 0 | NW10: =(OFFSET(Parameters!$I$107,(CC10-1)*9+3,($F10-1))*(VLOOKUP($H10+NW$9,'Age Dependencies'!$E$8:$H$208,3,0)))+IF(CC10<>CB10,OFFSET(Parameters!$I$107,(CC10-1)*9+2,($F10-1)),0) -> 0 | NX10: =(OFFSET(Parameters!$I$107,(CD10-1)*9+3,($F10-1))*(VLOOKUP($H10+NX$9,'Age Dependencies'!$E$8:$H$208,3,0)))+IF(CD10<>CC10,OFFSET(Parameters!$I$107,(CD10-1)*9+2,($F10-1)),0) -> 0 | NY10: =(OFFSET(Parameters!$I$107,(CE10-1)*9+3,($F10-1))*(VLOOKUP($H10+NY$9,'Age Dependencies'!$E$8:$H$208,3,0)))+IF(CE10<>CD10,OFFSET(Parameters!$I$107,(CE10-1)*9+2,($F10-1)),0) -> 0 | NZ10: =(OFFSET(Parameters!$I$107,(CF10-1)*9+3,($F10-1))*(VLOOKUP($H10+NZ$9,'Age Dependencies'!$E$8:$H$208,3,0)))+IF(CF10<>CE10,OFFSET(Parameters!$I$107,(CF10-1)*9+2,($F10-1)),0) -> 0 | OA10: =(OFFSET(Parameters!$I$107,(CG10-1)*9+3,($F10-1))*(VLOOKUP($H10+OA$9,'Age Dependencies'!$E$8:$H$208,3,0)))+IF(CG10<>CF10,OFFSET(Parameters!$I$107,(CG10-1)*9+2,($F10-1)),0) -> 0 | OB10: =(OFFSET(Parameters!$I$107,(CH10-1)*9+3,($F10-1))*(VLOOKUP($H10+OB$9,'Age Dependencies'!$E$8:$H$208,3,0)))+IF(CH10<>CG10,OFFSET(Parameters!$I$107,(CH10-1)*9+2,($F10-1)),0) -> 0 | OC10: =(OFFSET(Parameters!$I$107,(CI10-1)*9+3,($F10-1))*(VLOOKUP($H10+OC$9,'Age Dependencies'!$E$8:$H$208,3,0)))+IF(CI10<>CH10,OFFSET(Parameters!$I$107,(CI10-1)*9+2,($F10-1)),0) -> 0 | OD10: =(OFFSET(Parameters!$I$107,(CJ10-1)*9+3,($F10-1))*(VLOOKUP($H10+OD$9,'Age Dependencies'!$E$8:$H$208,3,0)))+IF(CJ10<>CI10,OFFSET(Parameters!$I$107,(CJ10-1)*9+2,($F10-1)),0) -> 0 | OE10: =(OFFSET(Parameters!$I$107,(CK10-1)*9+3,($F10-1))*(VLOOKUP($H10+OE$9,'Age Dependencies'!$E$8:$H$208,3,0)))+IF(CK10<>CJ10,OFFSET(Parameters!$I$107,(CK10-1)*9+2,($F10-1)),0) -> 0 | OF10: =(OFFSET(Parameters!$I$107,(CL10-1)*9+3,($F10-1))*(VLOOKUP($H10+OF$9,'Age Dependencies'!$E$8:$H$208,3,0)))+IF(CL10<>CK10,OFFSET(Parameters!$I$107,(CL10-1)*9+2,($F10-1)),0) -> 0 | OG10: =(OFFSET(Parameters!$I$107,(CM10-1)*9+3,($F10-1))*(VLOOKUP($H10+OG$9,'Age Dependencies'!$E$8:$H$208,3,0)))+IF(CM10<>CL10,OFFSET(Parameters!$I$107,(CM10-1)*9+2,($F10-1)),0) -> 0 | OH10: =(OFFSET(Parameters!$I$107,(CN10-1)*9+3,($F10-1))*(VLOOKUP($H10+OH$9,'Age Dependencies'!$E$8:$H$208,3,0)))+IF(CN10<>CM10,OFFSET(Parameters!$I$107,(CN10-1)*9+2,($F10-1)),0) -> 0 | OI10: =(OFFSET(Parameters!$I$107,(CO10-1)*9+3,($F10-1))*(VLOOKUP($H10+OI$9,'Age Dependencies'!$E$8:$H$208,3,0)))+IF(CO10<>CN10,OFFSET(Parameters!$I$107,(CO10-1)*9+2,($F10-1)),0) -> 0 | OJ10: =(OFFSET(Parameters!$I$107,(CP10-1)*9+3,($F10-1))*(VLOOKUP($H10+OJ$9,'Age Dependencies'!$E$8:$H$208,3,0)))+IF(CP10<>CO10,OFFSET(Parameters!$I$107,(CP10-1)*9+2,($F10-1)),0) -> 0 | OK10: =(OFFSET(Parameters!$I$107,(CQ10-1)*9+3,($F10-1))*(VLOOKUP($H10+OK$9,'Age Dependencies'!$E$8:$H$208,3,0)))+IF(CQ10<>CP10,OFFSET(Parameters!$I$107,(CQ10-1)*9+2,($F10-1)),0) -> 0 | OL10: =(OFFSET(Parameters!$I$107,(CR10-1)*9+3,($F10-1))*(VLOOKUP($H10+OL$9,'Age Dependencies'!$E$8:$H$208,3,0)))+IF(CR10<>CQ10,OFFSET(Parameters!$I$107,(CR10-1)*9+2,($F10-1)),0) -> 0 | OM10: =(OFFSET(Parameters!$I$107,(CS10-1)*9+3,($F10-1))*(VLOOKUP($H10+OM$9,'Age Dependencies'!$E$8:$H$208,3,0)))+IF(CS10<>CR10,OFFSET(Parameters!$I$107,(CS10-1)*9+2,($F10-1)),0) -> 0 | ON10: =(OFFSET(Parameters!$I$107,(CT10-1)*9+3,($F10-1))*(VLOOKUP($H10+ON$9,'Age Dependencies'!$E$8:$H$208,3,0)))+IF(CT10<>CS10,OFFSET(Parameters!$I$107,(CT10-1)*9+2,($F10-1)),0) -> 0 | OO10: =(OFFSET(Parameters!$I$107,(CU10-1)*9+3,($F10-1))*(VLOOKUP($H10+OO$9,'Age Dependencies'!$E$8:$H$208,3,0)))+IF(CU10<>CT10,OFFSET(Parameters!$I$107,(CU10-1)*9+2,($F10-1)),0) -> 0 | OP10: =(OFFSET(Parameters!$I$107,(CV10-1)*9+3,($F10-1))*(VLOOKUP($H10+OP$9,'Age Dependencies'!$E$8:$H$208,3,0)))+IF(CV10<>CU10,OFFSET(Parameters!$I$107,(CV10-1)*9+2,($F10-1)),0) -> 0 | OQ10: =(OFFSET(Parameters!$I$107,(CW10-1)*9+3,($F10-1))*(VLOOKUP($H10+OQ$9,'Age Dependencies'!$E$8:$H$208,3,0)))+IF(CW10<>CV10,OFFSET(Parameters!$I$107,(CW10-1)*9+2,($F10-1)),0) -> 0 | OR10: =(OFFSET(Parameters!$I$107,(CX10-1)*9+3,($F10-1))*(VLOOKUP($H10+OR$9,'Age Dependencies'!$E$8:$H$208,3,0)))+IF(CX10<>CW10,OFFSET(Parameters!$I$107,(CX10-1)*9+2,($F10-1)),0) -> 0 | OS10: =(OFFSET(Parameters!$I$107,(CY10-1)*9+3,($F10-1))*(VLOOKUP($H10+OS$9,'Age Dependencies'!$E$8:$H$208,3,0)))+IF(CY10<>CX10,OFFSET(Parameters!$I$107,(CY10-1)*9+2,($F10-1)),0) -> 0 | OT10: =(OFFSET(Parameters!$I$107,(CZ10-1)*9+3,($F10-1))*(VLOOKUP($H10+OT$9,'Age Dependencies'!$E$8:$H$208,3,0)))+IF(CZ10<>CY10,OFFSET(Parameters!$I$107,(CZ10-1)*9+2,($F10-1)),0) -> 0 | OU10: =(OFFSET(Parameters!$I$107,(DA10-1)*9+3,($F10-1))*(VLOOKUP($H10+OU$9,'Age Dependencies'!$E$8:$H$208,3,0)))+IF(DA10<>CZ10,OFFSET(Parameters!$I$107,(DA10-1)*9+2,($F10-1)),0) -> 0 | OV10: =(OFFSET(Parameters!$I$107,(DB10-1)*9+3,($F10-1))*(VLOOKUP($H10+OV$9,'Age Dependencies'!$E$8:$H$208,3,0)))+IF(DB10<>DA10,OFFSET(Parameters!$I$107,(DB10-1)*9+2,($F10-1)),0) -> 0 | OW10: =(OFFSET(Parameters!$I$107,(DC10-1)*9+3,($F10-1))*(VLOOKUP($H10+OW$9,'Age Dependencies'!$E$8:$H$208,3,0)))+IF(DC10<>DB10,OFFSET(Parameters!$I$107,(DC10-1)*9+2,($F10-1)),0) -> 0 | OX10: =(OFFSET(Parameters!$I$107,(DD10-1)*9+3,($F10-1))*(VLOOKUP($H10+OX$9,'Age Dependencies'!$E$8:$H$208,3,0)))+IF(DD10<>DC10,OFFSET(Parameters!$I$107,(DD10-1)*9+2,($F10-1)),0) -> 0 | OY10: =(OFFSET(Parameters!$I$107,(DE10-1)*9+3,($F10-1))*(VLOOKUP($H10+OY$9,'Age Dependencies'!$E$8:$H$208,3,0)))+IF(DE10<>DD10,OFFSET(Parameters!$I$107,(DE10-1)*9+2,($F10-1)),0) -> 0 | OZ10: =(OFFSET(Parameters!$I$107,(DF10-1)*9+3,($F10-1))*(VLOOKUP($H10+OZ$9,'Age Dependencies'!$E$8:$H$208,3,0)))+IF(DF10<>DE10,OFFSET(Parameters!$I$107,(DF10-1)*9+2,($F10-1)),0) -> 0 | PB10: =IF($F10=14,PB$3*(OFFSET(Parameters!$I$107,(J10-1)*9+6,($F10-1))*(VLOOKUP($H10+PB$9,'Age Dependencies'!$E$8:$H$208,3,0))),IF(AND($F10=15,J10=2),PB$4*(OFFSET(Parameters!$I$107,(J10-1)*9+6,($F10-1))*(VLOOKUP($H10+PB$9,'Age Dependencies'!$E$8:$H$208,3,0))),(OFFSET(Parameters!$I$107,(J10-1)*9+6,($F10-1))*(VLOOKUP($H10+PB$9,'Age Dependencies'!$E$8:$H$208,3,0))))) -> 0.86 | PC10: =IF($F10=14,PC$3*(OFFSET(Parameters!$I$107,(K10-1)*9+6,($F10-1))*(VLOOKUP($H10+PC$9,'Age Dependencies'!$E$8:$H$208,3,0))),IF(AND($F10=15,K10=2),PC$4*(OFFSET(Parameters!$I$107,(K10-1)*9+6,($F10-1))*(VLOOKUP($H10+PC$9,'Age Dependencies'!$E$8:$H$208,3,0))),(OFFSET(Parameters!$I$107,(K10-1)*9+6,($F10-1))*(VLOOKUP($H10+PC$9,'Age Dependencies'!$E$8:$H$208,3,0))))) -> 1.2 | PD10: =IF($F10=14,PD$3*(OFFSET(Parameters!$I$107,(L10-1)*9+6,($F10-1))*(VLOOKUP($H10+PD$9,'Age Dependencies'!$E$8:$H$208,3,0))),IF(AND($F10=15,L10=2),PD$4*(OFFSET(Parameters!$I$107,(L10-1)*9+6,($F10-1))*(VLOOKUP($H10+PD$9,'Age Dependencies'!$E$8:$H$208,3,0))),(OFFSET(Parameters!$I$107,(L10-1)*9+6,($F10-1))*(VLOOKUP($H10+PD$9,'Age Dependencies'!$E$8:$H$208,3,0))))) -> 1.2 | PE10: =IF($F10=14,PE$3*(OFFSET(Parameters!$I$107,(M10-1)*9+6,($F10-1))*(VLOOKUP($H10+PE$9,'Age Dependencies'!$E$8:$H$208,3,0))),IF(AND($F10=15,M10=2),PE$4*(OFFSET(Parameters!$I$107,(M10-1)*9+6,($F10-1))*(VLOOKUP($H10+PE$9,'Age Dependencies'!$E$8:$H$208,3,0))),(OFFSET(Parameters!$I$107,(M10-1)*9+6,($F10-1))*(VLOOKUP($H10+PE$9,'Age Dependencies'!$E$8:$H$208,3,0))))) -> 1.2 | PF10: =IF($F10=14,PF$3*(OFFSET(Parameters!$I$107,(N10-1)*9+6,($F10-1))*(VLOOKUP($H10+PF$9,'Age Dependencies'!$E$8:$H$208,3,0))),IF(AND($F10=15,N10=2),PF$4*(OFFSET(Parameters!$I$107,(N10-1)*9+6,($F10-1))*(VLOOKUP($H10+PF$9,'Age Dependencies'!$E$8:$H$208,3,0))),(OFFSET(Parameters!$I$107,(N10-1)*9+6,($F10-1))*(VLOOKUP($H10+PF$9,'Age Dependencies'!$E$8:$H$208,3,0))))) -> 1.2 | PG10: =IF($F10=14,PG$3*(OFFSET(Parameters!$I$107,(O10-1)*9+6,($F10-1))*(VLOOKUP($H10+PG$9,'Age Dependencies'!$E$8:$H$208,3,0))),IF(AND($F10=15,O10=2),PG$4*(OFFSET(Parameters!$I$107,(O10-1)*9+6,($F10-1))*(VLOOKUP($H10+PG$9,'Age Dependencies'!$E$8:$H$208,3,0))),(OFFSET(Parameters!$I$107,(O10-1)*9+6,($F10-1))*(VLOOKUP($H10+PG$9,'Age Dependencies'!$E$8:$H$208,3,0))))) -> 1.2 | PH10: =IF($F10=14,PH$3*(OFFSET(Parameters!$I$107,(P10-1)*9+6,($F10-1))*(VLOOKUP($H10+PH$9,'Age Dependencies'!$E$8:$H$208,3,0))),IF(AND($F10=15,P10=2),PH$4*(OFFSET(Parameters!$I$107,(P10-1)*9+6,($F10-1))*(VLOOKUP($H10+PH$9,'Age Dependencies'!$E$8:$H$208,3,0))),(OFFSET(Parameters!$I$107,(P10-1)*9+6,($F10-1))*(VLOOKUP($H10+PH$9,'Age Dependencies'!$E$8:$H$208,3,0))))) -> 1.2 | PI10: =IF($F10=14,PI$3*(OFFSET(Parameters!$I$107,(Q10-1)*9+6,($F10-1))*(VLOOKUP($H10+PI$9,'Age Dependencies'!$E$8:$H$208,3,0))),IF(AND($F10=15,Q10=2),PI$4*(OFFSET(Parameters!$I$107,(Q10-1)*9+6,($F10-1))*(VLOOKUP($H10+PI$9,'Age Dependencies'!$E$8:$H$208,3,0))),(OFFSET(Parameters!$I$107,(Q10-1)*9+6,($F10-1))*(VLOOKUP($H10+PI$9,'Age Dependencies'!$E$8:$H$208,3,0))))) -> 1.2 | PJ10: =IF($F10=14,PJ$3*(OFFSET(Parameters!$I$107,(R10-1)*9+6,($F10-1))*(VLOOKUP($H10+PJ$9,'Age Dependencies'!$E$8:$H$208,3,0))),IF(AND($F10=15,R10=2),PJ$4*(OFFSET(Parameters!$I$107,(R10-1)*9+6,($F10-1))*(VLOOKUP($H10+PJ$9,'Age Dependencies'!$E$8:$H$208,3,0))),(OFFSET(Parameters!$I$107,(R10-1)*9+6,($F10-1))*(VLOOKUP($H10+PJ$9,'Age Dependencies'!$E$8:$H$208,3,0))))) -> 1.2 | PK10: =IF($F10=14,PK$3*(OFFSET(Parameters!$I$107,(S10-1)*9+6,($F10-1))*(VLOOKUP($H10+PK$9,'Age Dependencies'!$E$8:$H$208,3,0))),IF(AND($F10=15,S10=2),PK$4*(OFFSET(Parameters!$I$107,(S10-1)*9+6,($F10-1))*(VLOOKUP($H10+PK$9,'Age Dependencies'!$E$8:$H$208,3,0))),(OFFSET(Parameters!$I$107,(S10-1)*9+6,($F10-1))*(VLOOKUP($H10+PK$9,'Age Dependencies'!$E$8:$H$208,3,0))))) -> 1.2 | PL10: =IF($F10=14,PL$3*(OFFSET(Parameters!$I$107,(T10-1)*9+6,($F10-1))*(VLOOKUP($H10+PL$9,'Age Dependencies'!$E$8:$H$208,3,0))),IF(AND($F10=15,T10=2),PL$4*(OFFSET(Parameters!$I$107,(T10-1)*9+6,($F10-1))*(VLOOKUP($H10+PL$9,'Age Dependencies'!$E$8:$H$208,3,0))),(OFFSET(Parameters!$I$107,(T10-1)*9+6,($F10-1))*(VLOOKUP($H10+PL$9,'Age Dependencies'!$E$8:$H$208,3,0))))) -> 1.2 | PM10: =IF($F10=14,PM$3*(OFFSET(Parameters!$I$107,(U10-1)*9+6,($F10-1))*(VLOOKUP($H10+PM$9,'Age Dependencies'!$E$8:$H$208,3,0))),IF(AND($F10=15,U10=2),PM$4*(OFFSET(Parameters!$I$107,(U10-1)*9+6,($F10-1))*(VLOOKUP($H10+PM$9,'Age Dependencies'!$E$8:$H$208,3,0))),(OFFSET(Parameters!$I$107,(U10-1)*9+6,($F10-1))*(VLOOKUP($H10+PM$9,'Age Dependencies'!$E$8:$H$208,3,0))))) -> 1.2 | PN10: =IF($F10=14,PN$3*(OFFSET(Parameters!$I$107,(V10-1)*9+6,($F10-1))*(VLOOKUP($H10+PN$9,'Age Dependencies'!$E$8:$H$208,3,0))),IF(AND($F10=15,V10=2),PN$4*(OFFSET(Parameters!$I$107,(V10-1)*9+6,($F10-1))*(VLOOKUP($H10+PN$9,'Age Dependencies'!$E$8:$H$208,3,0))),(OFFSET(Parameters!$I$107,(V10-1)*9+6,($F10-1))*(VLOOKUP($H10+PN$9,'Age Dependencies'!$E$8:$H$208,3,0))))) -> 1.2 | PO10: =IF($F10=14,PO$3*(OFFSET(Parameters!$I$107,(W10-1)*9+6,($F10-1))*(VLOOKUP($H10+PO$9,'Age Dependencies'!$E$8:$H$208,3,0))),IF(AND($F10=15,W10=2),PO$4*(OFFSET(Parameters!$I$107,(W10-1)*9+6,($F10-1))*(VLOOKUP($H10+PO$9,'Age Dependencies'!$E$8:$H$208,3,0))),(OFFSET(Parameters!$I$107,(W10-1)*9+6,($F10-1))*(VLOOKUP($H10+PO$9,'Age Dependencies'!$E$8:$H$208,3,0))))) -> 1.2 | PP10: =IF($F10=14,PP$3*(OFFSET(Parameters!$I$107,(X10-1)*9+6,($F10-1))*(VLOOKUP($H10+PP$9,'Age Dependencies'!$E$8:$H$208,3,0))),IF(AND($F10=15,X10=2),PP$4*(OFFSET(Parameters!$I$107,(X10-1)*9+6,($F10-1))*(VLOOKUP($H10+PP$9,'Age Dependencies'!$E$8:$H$208,3,0))),(OFFSET(Parameters!$I$107,(X10-1)*9+6,($F10-1))*(VLOOKUP($H10+PP$9,'Age Dependencies'!$E$8:$H$208,3,0))))) -> 1.2 | PQ10: =IF($F10=14,PQ$3*(OFFSET(Parameters!$I$107,(Y10-1)*9+6,($F10-1))*(VLOOKUP($H10+PQ$9,'Age Dependencies'!$E$8:$H$208,3,0))),IF(AND($F10=15,Y10=2),PQ$4*(OFFSET(Parameters!$I$107,(Y10-1)*9+6,($F10-1))*(VLOOKUP($H10+PQ$9,'Age Dependencies'!$E$8:$H$208,3,0))),(OFFSET(Parameters!$I$107,(Y10-1)*9+6,($F10-1))*(VLOOKUP($H10+PQ$9,'Age Dependencies'!$E$8:$H$208,3,0))))) -> 1.2 | PR10: =IF($F10=14,PR$3*(OFFSET(Parameters!$I$107,(Z10-1)*9+6,($F10-1))*(VLOOKUP($H10+PR$9,'Age Dependencies'!$E$8:$H$208,3,0))),IF(AND($F10=15,Z10=2),PR$4*(OFFSET(Parameters!$I$107,(Z10-1)*9+6,($F10-1))*(VLOOKUP($H10+PR$9,'Age Dependencies'!$E$8:$H$208,3,0))),(OFFSET(Parameters!$I$107,(Z10-1)*9+6,($F10-1))*(VLOOKUP($H10+PR$9,'Age Dependencies'!$E$8:$H$208,3,0))))) -> 1.2 | PS10: =IF($F10=14,PS$3*(OFFSET(Parameters!$I$107,(AA10-1)*9+6,($F10-1))*(VLOOKUP($H10+PS$9,'Age Dependencies'!$E$8:$H$208,3,0))),IF(AND($F10=15,AA10=2),PS$4*(OFFSET(Parameters!$I$107,(AA10-1)*9+6,($F10-1))*(VLOOKUP($H10+PS$9,'Age Dependencies'!$E$8:$H$208,3,0))),(OFFSET(Parameters!$I$107,(AA10-1)*9+6,($F10-1))*(VLOOKUP($H10+PS$9,'Age Dependencies'!$E$8:$H$208,3,0))))) -> 1.2 | PT10: =IF($F10=14,PT$3*(OFFSET(Parameters!$I$107,(AB10-1)*9+6,($F10-1))*(VLOOKUP($H10+PT$9,'Age Dependencies'!$E$8:$H$208,3,0))),IF(AND($F10=15,AB10=2),PT$4*(OFFSET(Parameters!$I$107,(AB10-1)*9+6,($F10-1))*(VLOOKUP($H10+PT$9,'Age Dependencies'!$E$8:$H$208,3,0))),(OFFSET(Parameters!$I$107,(AB10-1)*9+6,($F10-1))*(VLOOKUP($H10+PT$9,'Age Dependencies'!$E$8:$H$208,3,0))))) -> 1.2 | PU10: =IF($F10=14,PU$3*(OFFSET(Parameters!$I$107,(AC10-1)*9+6,($F10-1))*(VLOOKUP($H10+PU$9,'Age Dependencies'!$E$8:$H$208,3,0))),IF(AND($F10=15,AC10=2),PU$4*(OFFSET(Parameters!$I$107,(AC10-1)*9+6,($F10-1))*(VLOOKUP($H10+PU$9,'Age Dependencies'!$E$8:$H$208,3,0))),(OFFSET(Parameters!$I$107,(AC10-1)*9+6,($F10-1))*(VLOOKUP($H10+PU$9,'Age Dependencies'!$E$8:$H$208,3,0))))) -> 1.2 | PV10: =IF($F10=14,PV$3*(OFFSET(Parameters!$I$107,(AD10-1)*9+6,($F10-1))*(VLOOKUP($H10+PV$9,'Age Dependencies'!$E$8:$H$208,3,0))),IF(AND($F10=15,AD10=2),PV$4*(OFFSET(Parameters!$I$107,(AD10-1)*9+6,($F10-1))*(VLOOKUP($H10+PV$9,'Age Dependencies'!$E$8:$H$208,3,0))),(OFFSET(Parameters!$I$107,(AD10-1)*9+6,($F10-1))*(VLOOKUP($H10+PV$9,'Age Dependencies'!$E$8:$H$208,3,0))))) -> 1.2 | PW10: =IF($F10=14,PW$3*(OFFSET(Parameters!$I$107,(AE10-1)*9+6,($F10-1))*(VLOOKUP($H10+PW$9,'Age Dependencies'!$E$8:$H$208,3,0))),IF(AND($F10=15,AE10=2),PW$4*(OFFSET(Parameters!$I$107,(AE10-1)*9+6,($F10-1))*(VLOOKUP($H10+PW$9,'Age Dependencies'!$E$8:$H$208,3,0))),(OFFSET(Parameters!$I$107,(AE10-1)*9+6,($F10-1))*(VLOOKUP($H10+PW$9,'Age Dependencies'!$E$8:$H$208,3,0))))) -> 1.2 | PX10: =IF($F10=14,PX$3*(OFFSET(Parameters!$I$107,(AF10-1)*9+6,($F10-1))*(VLOOKUP($H10+PX$9,'Age Dependencies'!$E$8:$H$208,3,0))),IF(AND($F10=15,AF10=2),PX$4*(OFFSET(Parameters!$I$107,(AF10-1)*9+6,($F10-1))*(VLOOKUP($H10+PX$9,'Age Dependencies'!$E$8:$H$208,3,0))),(OFFSET(Parameters!$I$107,(AF10-1)*9+6,($F10-1))*(VLOOKUP($H10+PX$9,'Age Dependencies'!$E$8:$H$208,3,0))))) -> 1.2 | PY10: =IF($F10=14,PY$3*(OFFSET(Parameters!$I$107,(AG10-1)*9+6,($F10-1))*(VLOOKUP($H10+PY$9,'Age Dependencies'!$E$8:$H$208,3,0))),IF(AND($F10=15,AG10=2),PY$4*(OFFSET(Parameters!$I$107,(AG10-1)*9+6,($F10-1))*(VLOOKUP($H10+PY$9,'Age Dependencies'!$E$8:$H$208,3,0))),(OFFSET(Parameters!$I$107,(AG10-1)*9+6,($F10-1))*(VLOOKUP($H10+PY$9,'Age Dependencies'!$E$8:$H$208,3,0))))) -> 1.2 | PZ10: =IF($F10=14,PZ$3*(OFFSET(Parameters!$I$107,(AH10-1)*9+6,($F10-1))*(VLOOKUP($H10+PZ$9,'Age Dependencies'!$E$8:$H$208,3,0))),IF(AND($F10=15,AH10=2),PZ$4*(OFFSET(Parameters!$I$107,(AH10-1)*9+6,($F10-1))*(VLOOKUP($H10+PZ$9,'Age Dependencies'!$E$8:$H$208,3,0))),(OFFSET(Parameters!$I$107,(AH10-1)*9+6,($F10-1))*(VLOOKUP($H10+PZ$9,'Age Dependencies'!$E$8:$H$208,3,0))))) -> 1.2 | QA10: =IF($F10=14,QA$3*(OFFSET(Parameters!$I$107,(AI10-1)*9+6,($F10-1))*(VLOOKUP($H10+QA$9,'Age Dependencies'!$E$8:$H$208,3,0))),IF(AND($F10=15,AI10=2),QA$4*(OFFSET(Parameters!$I$107,(AI10-1)*9+6,($F10-1))*(VLOOKUP($H10+QA$9,'Age Dependencies'!$E$8:$H$208,3,0))),(OFFSET(Parameters!$I$107,(AI10-1)*9+6,($F10-1))*(VLOOKUP($H10+QA$9,'Age Dependencies'!$E$8:$H$208,3,0))))) -> 1.2 | QB10: =IF($F10=14,QB$3*(OFFSET(Parameters!$I$107,(AJ10-1)*9+6,($F10-1))*(VLOOKUP($H10+QB$9,'Age Dependencies'!$E$8:$H$208,3,0))),IF(AND($F10=15,AJ10=2),QB$4*(OFFSET(Parameters!$I$107,(AJ10-1)*9+6,($F10-1))*(VLOOKUP($H10+QB$9,'Age Dependencies'!$E$8:$H$208,3,0))),(OFFSET(Parameters!$I$107,(AJ10-1)*9+6,($F10-1))*(VLOOKUP($H10+QB$9,'Age Dependencies'!$E$8:$H$208,3,0))))) -> 1.2 | QC10: =IF($F10=14,QC$3*(OFFSET(Parameters!$I$107,(AK10-1)*9+6,($F10-1))*(VLOOKUP($H10+QC$9,'Age Dependencies'!$E$8:$H$208,3,0))),IF(AND($F10=15,AK10=2),QC$4*(OFFSET(Parameters!$I$107,(AK10-1)*9+6,($F10-1))*(VLOOKUP($H10+QC$9,'Age Dependencies'!$E$8:$H$208,3,0))),(OFFSET(Parameters!$I$107,(AK10-1)*9+6,($F10-1))*(VLOOKUP($H10+QC$9,'Age Dependencies'!$E$8:$H$208,3,0))))) -> 1.2 | QD10: =IF($F10=14,QD$3*(OFFSET(Parameters!$I$107,(AL10-1)*9+6,($F10-1))*(VLOOKUP($H10+QD$9,'Age Dependencies'!$E$8:$H$208,3,0))),IF(AND($F10=15,AL10=2),QD$4*(OFFSET(Parameters!$I$107,(AL10-1)*9+6,($F10-1))*(VLOOKUP($H10+QD$9,'Age Dependencies'!$E$8:$H$208,3,0))),(OFFSET(Parameters!$I$107,(AL10-1)*9+6,($F10-1))*(VLOOKUP($H10+QD$9,'Age Dependencies'!$E$8:$H$208,3,0))))) -> 1.2 | QE10: =IF($F10=14,QE$3*(OFFSET(Parameters!$I$107,(AM10-1)*9+6,($F10-1))*(VLOOKUP($H10+QE$9,'Age Dependencies'!$E$8:$H$208,3,0))),IF(AND($F10=15,AM10=2),QE$4*(OFFSET(Parameters!$I$107,(AM10-1)*9+6,($F10-1))*(VLOOKUP($H10+QE$9,'Age Dependencies'!$E$8:$H$208,3,0))),(OFFSET(Parameters!$I$107,(AM10-1)*9+6,($F10-1))*(VLOOKUP($H10+QE$9,'Age Dependencies'!$E$8:$H$208,3,0))))) -> 1.2 | QF10: =IF($F10=14,QF$3*(OFFSET(Parameters!$I$107,(AN10-1)*9+6,($F10-1))*(VLOOKUP($H10+QF$9,'Age Dependencies'!$E$8:$H$208,3,0))),IF(AND($F10=15,AN10=2),QF$4*(OFFSET(Parameters!$I$107,(AN10-1)*9+6,($F10-1))*(VLOOKUP($H10+QF$9,'Age Dependencies'!$E$8:$H$208,3,0))),(OFFSET(Parameters!$I$107,(AN10-1)*9+6,($F10-1))*(VLOOKUP($H10+QF$9,'Age Dependencies'!$E$8:$H$208,3,0))))) -> 1.2 | QG10: =IF($F10=14,QG$3*(OFFSET(Parameters!$I$107,(AO10-1)*9+6,($F10-1))*(VLOOKUP($H10+QG$9,'Age Dependencies'!$E$8:$H$208,3,0))),IF(AND($F10=15,AO10=2),QG$4*(OFFSET(Parameters!$I$107,(AO10-1)*9+6,($F10-1))*(VLOOKUP($H10+QG$9,'Age Dependencies'!$E$8:$H$208,3,0))),(OFFSET(Parameters!$I$107,(AO10-1)*9+6,($F10-1))*(VLOOKUP($H10+QG$9,'Age Dependencies'!$E$8:$H$208,3,0))))) -> 1.2 | QH10: =IF($F10=14,QH$3*(OFFSET(Parameters!$I$107,(AP10-1)*9+6,($F10-1))*(VLOOKUP($H10+QH$9,'Age Dependencies'!$E$8:$H$208,3,0))),IF(AND($F10=15,AP10=2),QH$4*(OFFSET(Parameters!$I$107,(AP10-1)*9+6,($F10-1))*(VLOOKUP($H10+QH$9,'Age Dependencies'!$E$8:$H$208,3,0))),(OFFSET(Parameters!$I$107,(AP10-1)*9+6,($F10-1))*(VLOOKUP($H10+QH$9,'Age Dependencies'!$E$8:$H$208,3,0))))) -> 1.2 | QI10: =IF($F10=14,QI$3*(OFFSET(Parameters!$I$107,(AQ10-1)*9+6,($F10-1))*(VLOOKUP($H10+QI$9,'Age Dependencies'!$E$8:$H$208,3,0))),IF(AND($F10=15,AQ10=2),QI$4*(OFFSET(Parameters!$I$107,(AQ10-1)*9+6,($F10-1))*(VLOOKUP($H10+QI$9,'Age Dependencies'!$E$8:$H$208,3,0))),(OFFSET(Parameters!$I$107,(AQ10-1)*9+6,($F10-1))*(VLOOKUP($H10+QI$9,'Age Dependencies'!$E$8:$H$208,3,0))))) -> 1.2 | QJ10: =IF($F10=14,QJ$3*(OFFSET(Parameters!$I$107,(AR10-1)*9+6,($F10-1))*(VLOOKUP($H10+QJ$9,'Age Dependencies'!$E$8:$H$208,3,0))),IF(AND($F10=15,AR10=2),QJ$4*(OFFSET(Parameters!$I$107,(AR10-1)*9+6,($F10-1))*(VLOOKUP($H10+QJ$9,'Age Dependencies'!$E$8:$H$208,3,0))),(OFFSET(Parameters!$I$107,(AR10-1)*9+6,($F10-1))*(VLOOKUP($H10+QJ$9,'Age Dependencies'!$E$8:$H$208,3,0))))) -> 1.2 | QK10: =IF($F10=14,QK$3*(OFFSET(Parameters!$I$107,(AS10-1)*9+6,($F10-1))*(VLOOKUP($H10+QK$9,'Age Dependencies'!$E$8:$H$208,3,0))),IF(AND($F10=15,AS10=2),QK$4*(OFFSET(Parameters!$I$107,(AS10-1)*9+6,($F10-1))*(VLOOKUP($H10+QK$9,'Age Dependencies'!$E$8:$H$208,3,0))),(OFFSET(Parameters!$I$107,(AS10-1)*9+6,($F10-1))*(VLOOKUP($H10+QK$9,'Age Dependencies'!$E$8:$H$208,3,0))))) -> 1.2 | QL10: =IF($F10=14,QL$3*(OFFSET(Parameters!$I$107,(AT10-1)*9+6,($F10-1))*(VLOOKUP($H10+QL$9,'Age Dependencies'!$E$8:$H$208,3,0))),IF(AND($F10=15,AT10=2),QL$4*(OFFSET(Parameters!$I$107,(AT10-1)*9+6,($F10-1))*(VLOOKUP($H10+QL$9,'Age Dependencies'!$E$8:$H$208,3,0))),(OFFSET(Parameters!$I$107,(AT10-1)*9+6,($F10-1))*(VLOOKUP($H10+QL$9,'Age Dependencies'!$E$8:$H$208,3,0))))) -> 1.2 | QM10: =IF($F10=14,QM$3*(OFFSET(Parameters!$I$107,(AU10-1)*9+6,($F10-1))*(VLOOKUP($H10+QM$9,'Age Dependencies'!$E$8:$H$208,3,0))),IF(AND($F10=15,AU10=2),QM$4*(OFFSET(Parameters!$I$107,(AU10-1)*9+6,($F10-1))*(VLOOKUP($H10+QM$9,'Age Dependencies'!$E$8:$H$208,3,0))),(OFFSET(Parameters!$I$107,(AU10-1)*9+6,($F10-1))*(VLOOKUP($H10+QM$9,'Age Dependencies'!$E$8:$H$208,3,0))))) -> 1.2 | QN10: =IF($F10=14,QN$3*(OFFSET(Parameters!$I$107,(AV10-1)*9+6,($F10-1))*(VLOOKUP($H10+QN$9,'Age Dependencies'!$E$8:$H$208,3,0))),IF(AND($F10=15,AV10=2),QN$4*(OFFSET(Parameters!$I$107,(AV10-1)*9+6,($F10-1))*(VLOOKUP($H10+QN$9,'Age Dependencies'!$E$8:$H$208,3,0))),(OFFSET(Parameters!$I$107,(AV10-1)*9+6,($F10-1))*(VLOOKUP($H10+QN$9,'Age Dependencies'!$E$8:$H$208,3,0))))) -> 1.2 | QO10: =IF($F10=14,QO$3*(OFFSET(Parameters!$I$107,(AW10-1)*9+6,($F10-1))*(VLOOKUP($H10+QO$9,'Age Dependencies'!$E$8:$H$208,3,0))),IF(AND($F10=15,AW10=2),QO$4*(OFFSET(Parameters!$I$107,(AW10-1)*9+6,($F10-1))*(VLOOKUP($H10+QO$9,'Age Dependencies'!$E$8:$H$208,3,0))),(OFFSET(Parameters!$I$107,(AW10-1)*9+6,($F10-1))*(VLOOKUP($H10+QO$9,'Age Dependencies'!$E$8:$H$208,3,0))))) -> 1.2 | QP10: =IF($F10=14,QP$3*(OFFSET(Parameters!$I$107,(AX10-1)*9+6,($F10-1))*(VLOOKUP($H10+QP$9,'Age Dependencies'!$E$8:$H$208,3,0))),IF(AND($F10=15,AX10=2),QP$4*(OFFSET(Parameters!$I$107,(AX10-1)*9+6,($F10-1))*(VLOOKUP($H10+QP$9,'Age Dependencies'!$E$8:$H$208,3,0))),(OFFSET(Parameters!$I$107,(AX10-1)*9+6,($F10-1))*(VLOOKUP($H10+QP$9,'Age Dependencies'!$E$8:$H$208,3,0))))) -> 1.2 | QQ10: =IF($F10=14,QQ$3*(OFFSET(Parameters!$I$107,(AY10-1)*9+6,($F10-1))*(VLOOKUP($H10+QQ$9,'Age Dependencies'!$E$8:$H$208,3,0))),IF(AND($F10=15,AY10=2),QQ$4*(OFFSET(Parameters!$I$107,(AY10-1)*9+6,($F10-1))*(VLOOKUP($H10+QQ$9,'Age Dependencies'!$E$8:$H$208,3,0))),(OFFSET(Parameters!$I$107,(AY10-1)*9+6,($F10-1))*(VLOOKUP($H10+QQ$9,'Age Dependencies'!$E$8:$H$208,3,0))))) -> 1.2 | QR10: =IF($F10=14,QR$3*(OFFSET(Parameters!$I$107,(AZ10-1)*9+6,($F10-1))*(VLOOKUP($H10+QR$9,'Age Dependencies'!$E$8:$H$208,3,0))),IF(AND($F10=15,AZ10=2),QR$4*(OFFSET(Parameters!$I$107,(AZ10-1)*9+6,($F10-1))*(VLOOKUP($H10+QR$9,'Age Dependencies'!$E$8:$H$208,3,0))),(OFFSET(Parameters!$I$107,(AZ10-1)*9+6,($F10-1))*(VLOOKUP($H10+QR$9,'Age Dependencies'!$E$8:$H$208,3,0))))) -> 1.2 | QS10: =IF($F10=14,QS$3*(OFFSET(Parameters!$I$107,(BA10-1)*9+6,($F10-1))*(VLOOKUP($H10+QS$9,'Age Dependencies'!$E$8:$H$208,3,0))),IF(AND($F10=15,BA10=2),QS$4*(OFFSET(Parameters!$I$107,(BA10-1)*9+6,($F10-1))*(VLOOKUP($H10+QS$9,'Age Dependencies'!$E$8:$H$208,3,0))),(OFFSET(Parameters!$I$107,(BA10-1)*9+6,($F10-1))*(VLOOKUP($H10+QS$9,'Age Dependencies'!$E$8:$H$208,3,0))))) -> 1.2 | QT10: =IF($F10=14,QT$3*(OFFSET(Parameters!$I$107,(BB10-1)*9+6,($F10-1))*(VLOOKUP($H10+QT$9,'Age Dependencies'!$E$8:$H$208,3,0))),IF(AND($F10=15,BB10=2),QT$4*(OFFSET(Parameters!$I$107,(BB10-1)*9+6,($F10-1))*(VLOOKUP($H10+QT$9,'Age Dependencies'!$E$8:$H$208,3,0))),(OFFSET(Parameters!$I$107,(BB10-1)*9+6,($F10-1))*(VLOOKUP($H10+QT$9,'Age Dependencies'!$E$8:$H$208,3,0))))) -> 1.2 | QU10: =IF($F10=14,QU$3*(OFFSET(Parameters!$I$107,(BC10-1)*9+6,($F10-1))*(VLOOKUP($H10+QU$9,'Age Dependencies'!$E$8:$H$208,3,0))),IF(AND($F10=15,BC10=2),QU$4*(OFFSET(Parameters!$I$107,(BC10-1)*9+6,($F10-1))*(VLOOKUP($H10+QU$9,'Age Dependencies'!$E$8:$H$208,3,0))),(OFFSET(Parameters!$I$107,(BC10-1)*9+6,($F10-1))*(VLOOKUP($H10+QU$9,'Age Dependencies'!$E$8:$H$208,3,0))))) -> 1.2 | QV10: =IF($F10=14,QV$3*(OFFSET(Parameters!$I$107,(BD10-1)*9+6,($F10-1))*(VLOOKUP($H10+QV$9,'Age Dependencies'!$E$8:$H$208,3,0))),IF(AND($F10=15,BD10=2),QV$4*(OFFSET(Parameters!$I$107,(BD10-1)*9+6,($F10-1))*(VLOOKUP($H10+QV$9,'Age Dependencies'!$E$8:$H$208,3,0))),(OFFSET(Parameters!$I$107,(BD10-1)*9+6,($F10-1))*(VLOOKUP($H10+QV$9,'Age Dependencies'!$E$8:$H$208,3,0))))) -> 1.2 | QW10: =IF($F10=14,QW$3*(OFFSET(Parameters!$I$107,(BE10-1)*9+6,($F10-1))*(VLOOKUP($H10+QW$9,'Age Dependencies'!$E$8:$H$208,3,0))),IF(AND($F10=15,BE10=2),QW$4*(OFFSET(Parameters!$I$107,(BE10-1)*9+6,($F10-1))*(VLOOKUP($H10+QW$9,'Age Dependencies'!$E$8:$H$208,3,0))),(OFFSET(Parameters!$I$107,(BE10-1)*9+6,($F10-1))*(VLOOKUP($H10+QW$9,'Age Dependencies'!$E$8:$H$208,3,0))))) -> 1.2 | QX10: =IF($F10=14,QX$3*(OFFSET(Parameters!$I$107,(BF10-1)*9+6,($F10-1))*(VLOOKUP($H10+QX$9,'Age Dependencies'!$E$8:$H$208,3,0))),IF(AND($F10=15,BF10=2),QX$4*(OFFSET(Parameters!$I$107,(BF10-1)*9+6,($F10-1))*(VLOOKUP($H10+QX$9,'Age Dependencies'!$E$8:$H$208,3,0))),(OFFSET(Parameters!$I$107,(BF10-1)*9+6,($F10-1))*(VLOOKUP($H10+QX$9,'Age Dependencies'!$E$8:$H$208,3,0))))) -> 1.2 | QY10: =IF($F10=14,QY$3*(OFFSET(Parameters!$I$107,(BG10-1)*9+6,($F10-1))*(VLOOKUP($H10+QY$9,'Age Dependencies'!$E$8:$H$208,3,0))),IF(AND($F10=15,BG10=2),QY$4*(OFFSET(Parameters!$I$107,(BG10-1)*9+6,($F10-1))*(VLOOKUP($H10+QY$9,'Age Dependencies'!$E$8:$H$208,3,0))),(OFFSET(Parameters!$I$107,(BG10-1)*9+6,($F10-1))*(VLOOKUP($H10+QY$9,'Age Dependencies'!$E$8:$H$208,3,0))))) -> 1.2 | QZ10: =IF($F10=14,QZ$3*(OFFSET(Parameters!$I$107,(BH10-1)*9+6,($F10-1))*(VLOOKUP($H10+QZ$9,'Age Dependencies'!$E$8:$H$208,3,0))),IF(AND($F10=15,BH10=2),QZ$4*(OFFSET(Parameters!$I$107,(BH10-1)*9+6,($F10-1))*(VLOOKUP($H10+QZ$9,'Age Dependencies'!$E$8:$H$208,3,0))),(OFFSET(Parameters!$I$107,(BH10-1)*9+6,($F10-1))*(VLOOKUP($H10+QZ$9,'Age Dependencies'!$E$8:$H$208,3,0))))) -> 1.2 | RA10: =IF($F10=14,RA$3*(OFFSET(Parameters!$I$107,(BI10-1)*9+6,($F10-1))*(VLOOKUP($H10+RA$9,'Age Dependencies'!$E$8:$H$208,3,0))),IF(AND($F10=15,BI10=2),RA$4*(OFFSET(Parameters!$I$107,(BI10-1)*9+6,($F10-1))*(VLOOKUP($H10+RA$9,'Age Dependencies'!$E$8:$H$208,3,0))),(OFFSET(Parameters!$I$107,(BI10-1)*9+6,($F10-1))*(VLOOKUP($H10+RA$9,'Age Dependencies'!$E$8:$H$208,3,0))))) -> 1.2 | RB10: =IF($F10=14,RB$3*(OFFSET(Parameters!$I$107,(BJ10-1)*9+6,($F10-1))*(VLOOKUP($H10+RB$9,'Age Dependencies'!$E$8:$H$208,3,0))),IF(AND($F10=15,BJ10=2),RB$4*(OFFSET(Parameters!$I$107,(BJ10-1)*9+6,($F10-1))*(VLOOKUP($H10+RB$9,'Age Dependencies'!$E$8:$H$208,3,0))),(OFFSET(Parameters!$I$107,(BJ10-1)*9+6,($F10-1))*(VLOOKUP($H10+RB$9,'Age Dependencies'!$E$8:$H$208,3,0))))) -> 1.2 | RC10: =IF($F10=14,RC$3*(OFFSET(Parameters!$I$107,(BK10-1)*9+6,($F10-1))*(VLOOKUP($H10+RC$9,'Age Dependencies'!$E$8:$H$208,3,0))),IF(AND($F10=15,BK10=2),RC$4*(OFFSET(Parameters!$I$107,(BK10-1)*9+6,($F10-1))*(VLOOKUP($H10+RC$9,'Age Dependencies'!$E$8:$H$208,3,0))),(OFFSET(Parameters!$I$107,(BK10-1)*9+6,($F10-1))*(VLOOKUP($H10+RC$9,'Age Dependencies'!$E$8:$H$208,3,0))))) -> 1.2 | RD10: =IF($F10=14,RD$3*(OFFSET(Parameters!$I$107,(BL10-1)*9+6,($F10-1))*(VLOOKUP($H10+RD$9,'Age Dependencies'!$E$8:$H$208,3,0))),IF(AND($F10=15,BL10=2),RD$4*(OFFSET(Parameters!$I$107,(BL10-1)*9+6,($F10-1))*(VLOOKUP($H10+RD$9,'Age Dependencies'!$E$8:$H$208,3,0))),(OFFSET(Parameters!$I$107,(BL10-1)*9+6,($F10-1))*(VLOOKUP($H10+RD$9,'Age Dependencies'!$E$8:$H$208,3,0))))) -> 1.2 | RE10: =IF($F10=14,RE$3*(OFFSET(Parameters!$I$107,(BM10-1)*9+6,($F10-1))*(VLOOKUP($H10+RE$9,'Age Dependencies'!$E$8:$H$208,3,0))),IF(AND($F10=15,BM10=2),RE$4*(OFFSET(Parameters!$I$107,(BM10-1)*9+6,($F10-1))*(VLOOKUP($H10+RE$9,'Age Dependencies'!$E$8:$H$208,3,0))),(OFFSET(Parameters!$I$107,(BM10-1)*9+6,($F10-1))*(VLOOKUP($H10+RE$9,'Age Dependencies'!$E$8:$H$208,3,0))))) -> 1.2 | RF10: =IF($F10=14,RF$3*(OFFSET(Parameters!$I$107,(BN10-1)*9+6,($F10-1))*(VLOOKUP($H10+RF$9,'Age Dependencies'!$E$8:$H$208,3,0))),IF(AND($F10=15,BN10=2),RF$4*(OFFSET(Parameters!$I$107,(BN10-1)*9+6,($F10-1))*(VLOOKUP($H10+RF$9,'Age Dependencies'!$E$8:$H$208,3,0))),(OFFSET(Parameters!$I$107,(BN10-1)*9+6,($F10-1))*(VLOOKUP($H10+RF$9,'Age Dependencies'!$E$8:$H$208,3,0))))) -> 1.2 | RG10: =IF($F10=14,RG$3*(OFFSET(Parameters!$I$107,(BO10-1)*9+6,($F10-1))*(VLOOKUP($H10+RG$9,'Age Dependencies'!$E$8:$H$208,3,0))),IF(AND($F10=15,BO10=2),RG$4*(OFFSET(Parameters!$I$107,(BO10-1)*9+6,($F10-1))*(VLOOKUP($H10+RG$9,'Age Dependencies'!$E$8:$H$208,3,0))),(OFFSET(Parameters!$I$107,(BO10-1)*9+6,($F10-1))*(VLOOKUP($H10+RG$9,'Age Dependencies'!$E$8:$H$208,3,0))))) -> 1.2 | RH10: =IF($F10=14,RH$3*(OFFSET(Parameters!$I$107,(BP10-1)*9+6,($F10-1))*(VLOOKUP($H10+RH$9,'Age Dependencies'!$E$8:$H$208,3,0))),IF(AND($F10=15,BP10=2),RH$4*(OFFSET(Parameters!$I$107,(BP10-1)*9+6,($F10-1))*(VLOOKUP($H10+RH$9,'Age Dependencies'!$E$8:$H$208,3,0))),(OFFSET(Parameters!$I$107,(BP10-1)*9+6,($F10-1))*(VLOOKUP($H10+RH$9,'Age Dependencies'!$E$8:$H$208,3,0))))) -> 1.2 | RI10: =IF($F10=14,RI$3*(OFFSET(Parameters!$I$107,(BQ10-1)*9+6,($F10-1))*(VLOOKUP($H10+RI$9,'Age Dependencies'!$E$8:$H$208,3,0))),IF(AND($F10=15,BQ10=2),RI$4*(OFFSET(Parameters!$I$107,(BQ10-1)*9+6,($F10-1))*(VLOOKUP($H10+RI$9,'Age Dependencies'!$E$8:$H$208,3,0))),(OFFSET(Parameters!$I$107,(BQ10-1)*9+6,($F10-1))*(VLOOKUP($H10+RI$9,'Age Dependencies'!$E$8:$H$208,3,0))))) -> 1.2 | RJ10: =IF($F10=14,RJ$3*(OFFSET(Parameters!$I$107,(BR10-1)*9+6,($F10-1))*(VLOOKUP($H10+RJ$9,'Age Dependencies'!$E$8:$H$208,3,0))),IF(AND($F10=15,BR10=2),RJ$4*(OFFSET(Parameters!$I$107,(BR10-1)*9+6,($F10-1))*(VLOOKUP($H10+RJ$9,'Age Dependencies'!$E$8:$H$208,3,0))),(OFFSET(Parameters!$I$107,(BR10-1)*9+6,($F10-1))*(VLOOKUP($H10+RJ$9,'Age Dependencies'!$E$8:$H$208,3,0))))) -> 1.2 | RK10: =IF($F10=14,RK$3*(OFFSET(Parameters!$I$107,(BS10-1)*9+6,($F10-1))*(VLOOKUP($H10+RK$9,'Age Dependencies'!$E$8:$H$208,3,0))),IF(AND($F10=15,BS10=2),RK$4*(OFFSET(Parameters!$I$107,(BS10-1)*9+6,($F10-1))*(VLOOKUP($H10+RK$9,'Age Dependencies'!$E$8:$H$208,3,0))),(OFFSET(Parameters!$I$107,(BS10-1)*9+6,($F10-1))*(VLOOKUP($H10+RK$9,'Age Dependencies'!$E$8:$H$208,3,0))))) -> 1.2 | RL10: =IF($F10=14,RL$3*(OFFSET(Parameters!$I$107,(BT10-1)*9+6,($F10-1))*(VLOOKUP($H10+RL$9,'Age Dependencies'!$E$8:$H$208,3,0))),IF(AND($F10=15,BT10=2),RL$4*(OFFSET(Parameters!$I$107,(BT10-1)*9+6,($F10-1))*(VLOOKUP($H10+RL$9,'Age Dependencies'!$E$8:$H$208,3,0))),(OFFSET(Parameters!$I$107,(BT10-1)*9+6,($F10-1))*(VLOOKUP($H10+RL$9,'Age Dependencies'!$E$8:$H$208,3,0))))) -> 1.2 | RM10: =IF($F10=14,RM$3*(OFFSET(Parameters!$I$107,(BU10-1)*9+6,($F10-1))*(VLOOKUP($H10+RM$9,'Age Dependencies'!$E$8:$H$208,3,0))),IF(AND($F10=15,BU10=2),RM$4*(OFFSET(Parameters!$I$107,(BU10-1)*9+6,($F10-1))*(VLOOKUP($H10+RM$9,'Age Dependencies'!$E$8:$H$208,3,0))),(OFFSET(Parameters!$I$107,(BU10-1)*9+6,($F10-1))*(VLOOKUP($H10+RM$9,'Age Dependencies'!$E$8:$H$208,3,0))))) -> 1.2 | RN10: =IF($F10=14,RN$3*(OFFSET(Parameters!$I$107,(BV10-1)*9+6,($F10-1))*(VLOOKUP($H10+RN$9,'Age Dependencies'!$E$8:$H$208,3,0))),IF(AND($F10=15,BV10=2),RN$4*(OFFSET(Parameters!$I$107,(BV10-1)*9+6,($F10-1))*(VLOOKUP($H10+RN$9,'Age Dependencies'!$E$8:$H$208,3,0))),(OFFSET(Parameters!$I$107,(BV10-1)*9+6,($F10-1))*(VLOOKUP($H10+RN$9,'Age Dependencies'!$E$8:$H$208,3,0))))) -> 1.2 | RO10: =IF($F10=14,RO$3*(OFFSET(Parameters!$I$107,(BW10-1)*9+6,($F10-1))*(VLOOKUP($H10+RO$9,'Age Dependencies'!$E$8:$H$208,3,0))),IF(AND($F10=15,BW10=2),RO$4*(OFFSET(Parameters!$I$107,(BW10-1)*9+6,($F10-1))*(VLOOKUP($H10+RO$9,'Age Dependencies'!$E$8:$H$208,3,0))),(OFFSET(Parameters!$I$107,(BW10-1)*9+6,($F10-1))*(VLOOKUP($H10+RO$9,'Age Dependencies'!$E$8:$H$208,3,0))))) -> 1.2 | RP10: =IF($F10=14,RP$3*(OFFSET(Parameters!$I$107,(BX10-1)*9+6,($F10-1))*(VLOOKUP($H10+RP$9,'Age Dependencies'!$E$8:$H$208,3,0))),IF(AND($F10=15,BX10=2),RP$4*(OFFSET(Parameters!$I$107,(BX10-1)*9+6,($F10-1))*(VLOOKUP($H10+RP$9,'Age Dependencies'!$E$8:$H$208,3,0))),(OFFSET(Parameters!$I$107,(BX10-1)*9+6,($F10-1))*(VLOOKUP($H10+RP$9,'Age Dependencies'!$E$8:$H$208,3,0))))) -> 1.2 | RQ10: =IF($F10=14,RQ$3*(OFFSET(Parameters!$I$107,(BY10-1)*9+6,($F10-1))*(VLOOKUP($H10+RQ$9,'Age Dependencies'!$E$8:$H$208,3,0))),IF(AND($F10=15,BY10=2),RQ$4*(OFFSET(Parameters!$I$107,(BY10-1)*9+6,($F10-1))*(VLOOKUP($H10+RQ$9,'Age Dependencies'!$E$8:$H$208,3,0))),(OFFSET(Parameters!$I$107,(BY10-1)*9+6,($F10-1))*(VLOOKUP($H10+RQ$9,'Age Dependencies'!$E$8:$H$208,3,0))))) -> 1.2 | RR10: =IF($F10=14,RR$3*(OFFSET(Parameters!$I$107,(BZ10-1)*9+6,($F10-1))*(VLOOKUP($H10+RR$9,'Age Dependencies'!$E$8:$H$208,3,0))),IF(AND($F10=15,BZ10=2),RR$4*(OFFSET(Parameters!$I$107,(BZ10-1)*9+6,($F10-1))*(VLOOKUP($H10+RR$9,'Age Dependencies'!$E$8:$H$208,3,0))),(OFFSET(Parameters!$I$107,(BZ10-1)*9+6,($F10-1))*(VLOOKUP($H10+RR$9,'Age Dependencies'!$E$8:$H$208,3,0))))) -> 1.2 | RS10: =IF($F10=14,RS$3*(OFFSET(Parameters!$I$107,(CA10-1)*9+6,($F10-1))*(VLOOKUP($H10+RS$9,'Age Dependencies'!$E$8:$H$208,3,0))),IF(AND($F10=15,CA10=2),RS$4*(OFFSET(Parameters!$I$107,(CA10-1)*9+6,($F10-1))*(VLOOKUP($H10+RS$9,'Age Dependencies'!$E$8:$H$208,3,0))),(OFFSET(Parameters!$I$107,(CA10-1)*9+6,($F10-1))*(VLOOKUP($H10+RS$9,'Age Dependencies'!$E$8:$H$208,3,0))))) -> 1.2 | RT10: =IF($F10=14,RT$3*(OFFSET(Parameters!$I$107,(CB10-1)*9+6,($F10-1))*(VLOOKUP($H10+RT$9,'Age Dependencies'!$E$8:$H$208,3,0))),IF(AND($F10=15,CB10=2),RT$4*(OFFSET(Parameters!$I$107,(CB10-1)*9+6,($F10-1))*(VLOOKUP($H10+RT$9,'Age Dependencies'!$E$8:$H$208,3,0))),(OFFSET(Parameters!$I$107,(CB10-1)*9+6,($F10-1))*(VLOOKUP($H10+RT$9,'Age Dependencies'!$E$8:$H$208,3,0))))) -> 0 | RU10: =IF($F10=14,RU$3*(OFFSET(Parameters!$I$107,(CC10-1)*9+6,($F10-1))*(VLOOKUP($H10+RU$9,'Age Dependencies'!$E$8:$H$208,3,0))),IF(AND($F10=15,CC10=2),RU$4*(OFFSET(Parameters!$I$107,(CC10-1)*9+6,($F10-1))*(VLOOKUP($H10+RU$9,'Age Dependencies'!$E$8:$H$208,3,0))),(OFFSET(Parameters!$I$107,(CC10-1)*9+6,($F10-1))*(VLOOKUP($H10+RU$9,'Age Dependencies'!$E$8:$H$208,3,0))))) -> 0 | RV10: =IF($F10=14,RV$3*(OFFSET(Parameters!$I$107,(CD10-1)*9+6,($F10-1))*(VLOOKUP($H10+RV$9,'Age Dependencies'!$E$8:$H$208,3,0))),IF(AND($F10=15,CD10=2),RV$4*(OFFSET(Parameters!$I$107,(CD10-1)*9+6,($F10-1))*(VLOOKUP($H10+RV$9,'Age Dependencies'!$E$8:$H$208,3,0))),(OFFSET(Parameters!$I$107,(CD10-1)*9+6,($F10-1))*(VLOOKUP($H10+RV$9,'Age Dependencies'!$E$8:$H$208,3,0))))) -> 0 | RW10: =IF($F10=14,RW$3*(OFFSET(Parameters!$I$107,(CE10-1)*9+6,($F10-1))*(VLOOKUP($H10+RW$9,'Age Dependencies'!$E$8:$H$208,3,0))),IF(AND($F10=15,CE10=2),RW$4*(OFFSET(Parameters!$I$107,(CE10-1)*9+6,($F10-1))*(VLOOKUP($H10+RW$9,'Age Dependencies'!$E$8:$H$208,3,0))),(OFFSET(Parameters!$I$107,(CE10-1)*9+6,($F10-1))*(VLOOKUP($H10+RW$9,'Age Dependencies'!$E$8:$H$208,3,0))))) -> 0 | RX10: =IF($F10=14,RX$3*(OFFSET(Parameters!$I$107,(CF10-1)*9+6,($F10-1))*(VLOOKUP($H10+RX$9,'Age Dependencies'!$E$8:$H$208,3,0))),IF(AND($F10=15,CF10=2),RX$4*(OFFSET(Parameters!$I$107,(CF10-1)*9+6,($F10-1))*(VLOOKUP($H10+RX$9,'Age Dependencies'!$E$8:$H$208,3,0))),(OFFSET(Parameters!$I$107,(CF10-1)*9+6,($F10-1))*(VLOOKUP($H10+RX$9,'Age Dependencies'!$E$8:$H$208,3,0))))) -> 0 | RY10: =IF($F10=14,RY$3*(OFFSET(Parameters!$I$107,(CG10-1)*9+6,($F10-1))*(VLOOKUP($H10+RY$9,'Age Dependencies'!$E$8:$H$208,3,0))),IF(AND($F10=15,CG10=2),RY$4*(OFFSET(Parameters!$I$107,(CG10-1)*9+6,($F10-1))*(VLOOKUP($H10+RY$9,'Age Dependencies'!$E$8:$H$208,3,0))),(OFFSET(Parameters!$I$107,(CG10-1)*9+6,($F10-1))*(VLOOKUP($H10+RY$9,'Age Dependencies'!$E$8:$H$208,3,0))))) -> 0 | RZ10: =IF($F10=14,RZ$3*(OFFSET(Parameters!$I$107,(CH10-1)*9+6,($F10-1))*(VLOOKUP($H10+RZ$9,'Age Dependencies'!$E$8:$H$208,3,0))),IF(AND($F10=15,CH10=2),RZ$4*(OFFSET(Parameters!$I$107,(CH10-1)*9+6,($F10-1))*(VLOOKUP($H10+RZ$9,'Age Dependencies'!$E$8:$H$208,3,0))),(OFFSET(Parameters!$I$107,(CH10-1)*9+6,($F10-1))*(VLOOKUP($H10+RZ$9,'Age Dependencies'!$E$8:$H$208,3,0))))) -> 0 | SA10: =IF($F10=14,SA$3*(OFFSET(Parameters!$I$107,(CI10-1)*9+6,($F10-1))*(VLOOKUP($H10+SA$9,'Age Dependencies'!$E$8:$H$208,3,0))),IF(AND($F10=15,CI10=2),SA$4*(OFFSET(Parameters!$I$107,(CI10-1)*9+6,($F10-1))*(VLOOKUP($H10+SA$9,'Age Dependencies'!$E$8:$H$208,3,0))),(OFFSET(Parameters!$I$107,(CI10-1)*9+6,($F10-1))*(VLOOKUP($H10+SA$9,'Age Dependencies'!$E$8:$H$208,3,0))))) -> 0 | SB10: =IF($F10=14,SB$3*(OFFSET(Parameters!$I$107,(CJ10-1)*9+6,($F10-1))*(VLOOKUP($H10+SB$9,'Age Dependencies'!$E$8:$H$208,3,0))),IF(AND($F10=15,CJ10=2),SB$4*(OFFSET(Parameters!$I$107,(CJ10-1)*9+6,($F10-1))*(VLOOKUP($H10+SB$9,'Age Dependencies'!$E$8:$H$208,3,0))),(OFFSET(Parameters!$I$107,(CJ10-1)*9+6,($F10-1))*(VLOOKUP($H10+SB$9,'Age Dependencies'!$E$8:$H$208,3,0))))) -> 0 | SC10: =IF($F10=14,SC$3*(OFFSET(Parameters!$I$107,(CK10-1)*9+6,($F10-1))*(VLOOKUP($H10+SC$9,'Age Dependencies'!$E$8:$H$208,3,0))),IF(AND($F10=15,CK10=2),SC$4*(OFFSET(Parameters!$I$107,(CK10-1)*9+6,($F10-1))*(VLOOKUP($H10+SC$9,'Age Dependencies'!$E$8:$H$208,3,0))),(OFFSET(Parameters!$I$107,(CK10-1)*9+6,($F10-1))*(VLOOKUP($H10+SC$9,'Age Dependencies'!$E$8:$H$208,3,0))))) -> 0 | SD10: =IF($F10=14,SD$3*(OFFSET(Parameters!$I$107,(CL10-1)*9+6,($F10-1))*(VLOOKUP($H10+SD$9,'Age Dependencies'!$E$8:$H$208,3,0))),IF(AND($F10=15,CL10=2),SD$4*(OFFSET(Parameters!$I$107,(CL10-1)*9+6,($F10-1))*(VLOOKUP($H10+SD$9,'Age Dependencies'!$E$8:$H$208,3,0))),(OFFSET(Parameters!$I$107,(CL10-1)*9+6,($F10-1))*(VLOOKUP($H10+SD$9,'Age Dependencies'!$E$8:$H$208,3,0))))) -> 0 | SE10: =IF($F10=14,SE$3*(OFFSET(Parameters!$I$107,(CM10-1)*9+6,($F10-1))*(VLOOKUP($H10+SE$9,'Age Dependencies'!$E$8:$H$208,3,0))),IF(AND($F10=15,CM10=2),SE$4*(OFFSET(Parameters!$I$107,(CM10-1)*9+6,($F10-1))*(VLOOKUP($H10+SE$9,'Age Dependencies'!$E$8:$H$208,3,0))),(OFFSET(Parameters!$I$107,(CM10-1)*9+6,($F10-1))*(VLOOKUP($H10+SE$9,'Age Dependencies'!$E$8:$H$208,3,0))))) -> 0 | SF10: =IF($F10=14,SF$3*(OFFSET(Parameters!$I$107,(CN10-1)*9+6,($F10-1))*(VLOOKUP($H10+SF$9,'Age Dependencies'!$E$8:$H$208,3,0))),IF(AND($F10=15,CN10=2),SF$4*(OFFSET(Parameters!$I$107,(CN10-1)*9+6,($F10-1))*(VLOOKUP($H10+SF$9,'Age Dependencies'!$E$8:$H$208,3,0))),(OFFSET(Parameters!$I$107,(CN10-1)*9+6,($F10-1))*(VLOOKUP($H10+SF$9,'Age Dependencies'!$E$8:$H$208,3,0))))) -> 0 | SG10: =IF($F10=14,SG$3*(OFFSET(Parameters!$I$107,(CO10-1)*9+6,($F10-1))*(VLOOKUP($H10+SG$9,'Age Dependencies'!$E$8:$H$208,3,0))),IF(AND($F10=15,CO10=2),SG$4*(OFFSET(Parameters!$I$107,(CO10-1)*9+6,($F10-1))*(VLOOKUP($H10+SG$9,'Age Dependencies'!$E$8:$H$208,3,0))),(OFFSET(Parameters!$I$107,(CO10-1)*9+6,($F10-1))*(VLOOKUP($H10+SG$9,'Age Dependencies'!$E$8:$H$208,3,0))))) -> 0 | SH10: =IF($F10=14,SH$3*(OFFSET(Parameters!$I$107,(CP10-1)*9+6,($F10-1))*(VLOOKUP($H10+SH$9,'Age Dependencies'!$E$8:$H$208,3,0))),IF(AND($F10=15,CP10=2),SH$4*(OFFSET(Parameters!$I$107,(CP10-1)*9+6,($F10-1))*(VLOOKUP($H10+SH$9,'Age Dependencies'!$E$8:$H$208,3,0))),(OFFSET(Parameters!$I$107,(CP10-1)*9+6,($F10-1))*(VLOOKUP($H10+SH$9,'Age Dependencies'!$E$8:$H$208,3,0))))) -> 0 | SI10: =IF($F10=14,SI$3*(OFFSET(Parameters!$I$107,(CQ10-1)*9+6,($F10-1))*(VLOOKUP($H10+SI$9,'Age Dependencies'!$E$8:$H$208,3,0))),IF(AND($F10=15,CQ10=2),SI$4*(OFFSET(Parameters!$I$107,(CQ10-1)*9+6,($F10-1))*(VLOOKUP($H10+SI$9,'Age Dependencies'!$E$8:$H$208,3,0))),(OFFSET(Parameters!$I$107,(CQ10-1)*9+6,($F10-1))*(VLOOKUP($H10+SI$9,'Age Dependencies'!$E$8:$H$208,3,0))))) -> 0 | SJ10: =IF($F10=14,SJ$3*(OFFSET(Parameters!$I$107,(CR10-1)*9+6,($F10-1))*(VLOOKUP($H10+SJ$9,'Age Dependencies'!$E$8:$H$208,3,0))),IF(AND($F10=15,CR10=2),SJ$4*(OFFSET(Parameters!$I$107,(CR10-1)*9+6,($F10-1))*(VLOOKUP($H10+SJ$9,'Age Dependencies'!$E$8:$H$208,3,0))),(OFFSET(Parameters!$I$107,(CR10-1)*9+6,($F10-1))*(VLOOKUP($H10+SJ$9,'Age Dependencies'!$E$8:$H$208,3,0))))) -> 0 | SK10: =IF($F10=14,SK$3*(OFFSET(Parameters!$I$107,(CS10-1)*9+6,($F10-1))*(VLOOKUP($H10+SK$9,'Age Dependencies'!$E$8:$H$208,3,0))),IF(AND($F10=15,CS10=2),SK$4*(OFFSET(Parameters!$I$107,(CS10-1)*9+6,($F10-1))*(VLOOKUP($H10+SK$9,'Age Dependencies'!$E$8:$H$208,3,0))),(OFFSET(Parameters!$I$107,(CS10-1)*9+6,($F10-1))*(VLOOKUP($H10+SK$9,'Age Dependencies'!$E$8:$H$208,3,0))))) -> 0 | SL10: =IF($F10=14,SL$3*(OFFSET(Parameters!$I$107,(CT10-1)*9+6,($F10-1))*(VLOOKUP($H10+SL$9,'Age Dependencies'!$E$8:$H$208,3,0))),IF(AND($F10=15,CT10=2),SL$4*(OFFSET(Parameters!$I$107,(CT10-1)*9+6,($F10-1))*(VLOOKUP($H10+SL$9,'Age Dependencies'!$E$8:$H$208,3,0))),(OFFSET(Parameters!$I$107,(CT10-1)*9+6,($F10-1))*(VLOOKUP($H10+SL$9,'Age Dependencies'!$E$8:$H$208,3,0))))) -> 0 | SM10: =IF($F10=14,SM$3*(OFFSET(Parameters!$I$107,(CU10-1)*9+6,($F10-1))*(VLOOKUP($H10+SM$9,'Age Dependencies'!$E$8:$H$208,3,0))),IF(AND($F10=15,CU10=2),SM$4*(OFFSET(Parameters!$I$107,(CU10-1)*9+6,($F10-1))*(VLOOKUP($H10+SM$9,'Age Dependencies'!$E$8:$H$208,3,0))),(OFFSET(Parameters!$I$107,(CU10-1)*9+6,($F10-1))*(VLOOKUP($H10+SM$9,'Age Dependencies'!$E$8:$H$208,3,0))))) -> 0 | SN10: =IF($F10=14,SN$3*(OFFSET(Parameters!$I$107,(CV10-1)*9+6,($F10-1))*(VLOOKUP($H10+SN$9,'Age Dependencies'!$E$8:$H$208,3,0))),IF(AND($F10=15,CV10=2),SN$4*(OFFSET(Parameters!$I$107,(CV10-1)*9+6,($F10-1))*(VLOOKUP($H10+SN$9,'Age Dependencies'!$E$8:$H$208,3,0))),(OFFSET(Parameters!$I$107,(CV10-1)*9+6,($F10-1))*(VLOOKUP($H10+SN$9,'Age Dependencies'!$E$8:$H$208,3,0))))) -> 0 | SO10: =IF($F10=14,SO$3*(OFFSET(Parameters!$I$107,(CW10-1)*9+6,($F10-1))*(VLOOKUP($H10+SO$9,'Age Dependencies'!$E$8:$H$208,3,0))),IF(AND($F10=15,CW10=2),SO$4*(OFFSET(Parameters!$I$107,(CW10-1)*9+6,($F10-1))*(VLOOKUP($H10+SO$9,'Age Dependencies'!$E$8:$H$208,3,0))),(OFFSET(Parameters!$I$107,(CW10-1)*9+6,($F10-1))*(VLOOKUP($H10+SO$9,'Age Dependencies'!$E$8:$H$208,3,0))))) -> 0 | SP10: =IF($F10=14,SP$3*(OFFSET(Parameters!$I$107,(CX10-1)*9+6,($F10-1))*(VLOOKUP($H10+SP$9,'Age Dependencies'!$E$8:$H$208,3,0))),IF(AND($F10=15,CX10=2),SP$4*(OFFSET(Parameters!$I$107,(CX10-1)*9+6,($F10-1))*(VLOOKUP($H10+SP$9,'Age Dependencies'!$E$8:$H$208,3,0))),(OFFSET(Parameters!$I$107,(CX10-1)*9+6,($F10-1))*(VLOOKUP($H10+SP$9,'Age Dependencies'!$E$8:$H$208,3,0))))) -> 0 | SQ10: =IF($F10=14,SQ$3*(OFFSET(Parameters!$I$107,(CY10-1)*9+6,($F10-1))*(VLOOKUP($H10+SQ$9,'Age Dependencies'!$E$8:$H$208,3,0))),IF(AND($F10=15,CY10=2),SQ$4*(OFFSET(Parameters!$I$107,(CY10-1)*9+6,($F10-1))*(VLOOKUP($H10+SQ$9,'Age Dependencies'!$E$8:$H$208,3,0))),(OFFSET(Parameters!$I$107,(CY10-1)*9+6,($F10-1))*(VLOOKUP($H10+SQ$9,'Age Dependencies'!$E$8:$H$208,3,0))))) -> 0 | SR10: =IF($F10=14,SR$3*(OFFSET(Parameters!$I$107,(CZ10-1)*9+6,($F10-1))*(VLOOKUP($H10+SR$9,'Age Dependencies'!$E$8:$H$208,3,0))),IF(AND($F10=15,CZ10=2),SR$4*(OFFSET(Parameters!$I$107,(CZ10-1)*9+6,($F10-1))*(VLOOKUP($H10+SR$9,'Age Dependencies'!$E$8:$H$208,3,0))),(OFFSET(Parameters!$I$107,(CZ10-1)*9+6,($F10-1))*(VLOOKUP($H10+SR$9,'Age Dependencies'!$E$8:$H$208,3,0))))) -> 0 | SS10: =IF($F10=14,SS$3*(OFFSET(Parameters!$I$107,(DA10-1)*9+6,($F10-1))*(VLOOKUP($H10+SS$9,'Age Dependencies'!$E$8:$H$208,3,0))),IF(AND($F10=15,DA10=2),SS$4*(OFFSET(Parameters!$I$107,(DA10-1)*9+6,($F10-1))*(VLOOKUP($H10+SS$9,'Age Dependencies'!$E$8:$H$208,3,0))),(OFFSET(Parameters!$I$107,(DA10-1)*9+6,($F10-1))*(VLOOKUP($H10+SS$9,'Age Dependencies'!$E$8:$H$208,3,0))))) -> 0 | ST10: =IF($F10=14,ST$3*(OFFSET(Parameters!$I$107,(DB10-1)*9+6,($F10-1))*(VLOOKUP($H10+ST$9,'Age Dependencies'!$E$8:$H$208,3,0))),IF(AND($F10=15,DB10=2),ST$4*(OFFSET(Parameters!$I$107,(DB10-1)*9+6,($F10-1))*(VLOOKUP($H10+ST$9,'Age Dependencies'!$E$8:$H$208,3,0))),(OFFSET(Parameters!$I$107,(DB10-1)*9+6,($F10-1))*(VLOOKUP($H10+ST$9,'Age Dependencies'!$E$8:$H$208,3,0))))) -> 0 | SU10: =IF($F10=14,SU$3*(OFFSET(Parameters!$I$107,(DC10-1)*9+6,($F10-1))*(VLOOKUP($H10+SU$9,'Age Dependencies'!$E$8:$H$208,3,0))),IF(AND($F10=15,DC10=2),SU$4*(OFFSET(Parameters!$I$107,(DC10-1)*9+6,($F10-1))*(VLOOKUP($H10+SU$9,'Age Dependencies'!$E$8:$H$208,3,0))),(OFFSET(Parameters!$I$107,(DC10-1)*9+6,($F10-1))*(VLOOKUP($H10+SU$9,'Age Dependencies'!$E$8:$H$208,3,0))))) -> 0 | SV10: =IF($F10=14,SV$3*(OFFSET(Parameters!$I$107,(DD10-1)*9+6,($F10-1))*(VLOOKUP($H10+SV$9,'Age Dependencies'!$E$8:$H$208,3,0))),IF(AND($F10=15,DD10=2),SV$4*(OFFSET(Parameters!$I$107,(DD10-1)*9+6,($F10-1))*(VLOOKUP($H10+SV$9,'Age Dependencies'!$E$8:$H$208,3,0))),(OFFSET(Parameters!$I$107,(DD10-1)*9+6,($F10-1))*(VLOOKUP($H10+SV$9,'Age Dependencies'!$E$8:$H$208,3,0))))) -> 0 | SW10: =IF($F10=14,SW$3*(OFFSET(Parameters!$I$107,(DE10-1)*9+6,($F10-1))*(VLOOKUP($H10+SW$9,'Age Dependencies'!$E$8:$H$208,3,0))),IF(AND($F10=15,DE10=2),SW$4*(OFFSET(Parameters!$I$107,(DE10-1)*9+6,($F10-1))*(VLOOKUP($H10+SW$9,'Age Dependencies'!$E$8:$H$208,3,0))),(OFFSET(Parameters!$I$107,(DE10-1)*9+6,($F10-1))*(VLOOKUP($H10+SW$9,'Age Dependencies'!$E$8:$H$208,3,0))))) -> 0 | SX10: =IF($F10=14,SX$3*(OFFSET(Parameters!$I$107,(DF10-1)*9+6,($F10-1))*(VLOOKUP($H10+SX$9,'Age Dependencies'!$E$8:$H$208,3,0))),IF(AND($F10=15,DF10=2),SX$4*(OFFSET(Parameters!$I$107,(DF10-1)*9+6,($F10-1))*(VLOOKUP($H10+SX$9,'Age Dependencies'!$E$8:$H$208,3,0))),(OFFSET(Parameters!$I$107,(DF10-1)*9+6,($F10-1))*(VLOOKUP($H10+SX$9,'Age Dependencies'!$E$8:$H$208,3,0))))) -> 0 | SZ10: =MIN(PB10,1) -> 0.86 | TA10: 1 | TB10: 1 | TC10: 1 | TD10: 1 | TE10: 1 | TF10: 1 | TG10: 1 | TH10: 1 | TI10: 1 | TJ10: 1 | TK10: 1 | TL10: 1 | TM10: 1 | TN10: 1 | TO10: 1 | TP10: 1 | TQ10: 1 | TR10: 1 | TS10: 1 | TT10: 1 | TU10: 1 | TV10: 1 | TW10: 1 | TX10: 1 | TY10: 1 | TZ10: 1 | UA10: 1 | UB10: 1 | UC10: 1 | UD10: 1 | UE10: 1 | UF10: =MIN(QH10,1) -> 1 | UG10: 1 | UH10: 1 | UI10: 1 | UJ10: 1 | UK10: 1 | UL10: 1 | UM10: 1 | UN10: 1 | UO10: 1 | UP10: 1 | UQ10: 1 | UR10: 1 | US10: 1 | UT10: 1 | UU10: 1 | UV10: 1 | UW10: 1 | UX10: 1 | UY10: 1 | UZ10: 1 | VA10: 1 | VB10: 1 | VC10: 1 | VD10: 1 | VE10: 1 | VF10: 1 | VG10: 1 | VH10: 1 | VI10: 1 | VJ10: 1 | VK10: 1 | VL10: =MIN(RN10,1) -> 1 | VM10: 1 | VN10: 1 | VO10: 1 | VP10: 1 | VQ10: 1 | VR10: 0 | VS10: 0 | VT10: 0 | VU10: 0 | VV10: 0 | VW10: 0 | VX10: 0 | VY10: 0 | VZ10: 0 | WA10: 0 | WB10: 0 | WC10: 0 | WD10: 0 | WE10: 0 | WF10: 0 | WG10: 0 | WH10: 0 | WI10: 0 | WJ10: 0 | WK10: 0 | WL10: 0 | WM10: 0 | WN10: 0 | WO10: 0 | WP10: 0 | WQ10: 0 | WR10: =MIN(ST10,1) -> 0 | WS10: 0 | WT10: 0 | WU10: 0 | WV10: 0 | WX10: =IF(PB10<1,PB10,1+(PB10-1)*Parameters!$I$17) -> 0.86 | WY10: =IF(PC10<1,PC10,1+(PC10-1)*Parameters!$I$17) -> 1.1 | WZ10: =IF(PD10<1,PD10,1+(PD10-1)*Parameters!$I$17) -> 1.1 | XA10: =IF(PE10<1,PE10,1+(PE10-1)*Parameters!$I$17) -> 1.1 | XB10: =IF(PF10<1,PF10,1+(PF10-1)*Parameters!$I$17) -> 1.1 | XC10: =IF(PG10<1,PG10,1+(PG10-1)*Parameters!$I$17) -> 1.1 | XD10: =IF(PH10<1,PH10,1+(PH10-1)*Parameters!$I$17) -> 1.1 | XE10: =IF(PI10<1,PI10,1+(PI10-1)*Parameters!$I$17) -> 1.1 | XF10: =IF(PJ10<1,PJ10,1+(PJ10-1)*Parameters!$I$17) -> 1.1 | XG10: =IF(PK10<1,PK10,1+(PK10-1)*Parameters!$I$17) -> 1.1 | XH10: =IF(PL10<1,PL10,1+(PL10-1)*Parameters!$I$17) -> 1.1 | XI10: =IF(PM10<1,PM10,1+(PM10-1)*Parameters!$I$17) -> 1.1 | XJ10: =IF(PN10<1,PN10,1+(PN10-1)*Parameters!$I$17) -> 1.1 | XK10: =IF(PO10<1,PO10,1+(PO10-1)*Parameters!$I$17) -> 1.1 | XL10: =IF(PP10<1,PP10,1+(PP10-1)*Parameters!$I$17) -> 1.1 | XM10: =IF(PQ10<1,PQ10,1+(PQ10-1)*Parameters!$I$17) -> 1.1 | XN10: =IF(PR10<1,PR10,1+(PR10-1)*Parameters!$I$17) -> 1.1 | XO10: =IF(PS10<1,PS10,1+(PS10-1)*Parameters!$I$17) -> 1.1 | XP10: =IF(PT10<1,PT10,1+(PT10-1)*Parameters!$I$17) -> 1.1 | XQ10: =IF(PU10<1,PU10,1+(PU10-1)*Parameters!$I$17) -> 1.1 | XR10: =IF(PV10<1,PV10,1+(PV10-1)*Parameters!$I$17) -> 1.1 | XS10: =IF(PW10<1,PW10,1+(PW10-1)*Parameters!$I$17) -> 1.1 | XT10: =IF(PX10<1,PX10,1+(PX10-1)*Parameters!$I$17) -> 1.1 | XU10: =IF(PY10<1,PY10,1+(PY10-1)*Parameters!$I$17) -> 1.1 | XV10: =IF(PZ10<1,PZ10,1+(PZ10-1)*Parameters!$I$17) -> 1.1 | XW10: =IF(QA10<1,QA10,1+(QA10-1)*Parameters!$I$17) -> 1.1 | XX10: =IF(QB10<1,QB10,1+(QB10-1)*Parameters!$I$17) -> 1.1 | XY10: =IF(QC10<1,QC10,1+(QC10-1)*Parameters!$I$17) -> 1.1 | XZ10: =IF(QD10<1,QD10,1+(QD10-1)*Parameters!$I$17) -> 1.1 | YA10: =IF(QE10<1,QE10,1+(QE10-1)*Parameters!$I$17) -> 1.1 | YB10: =IF(QF10<1,QF10,1+(QF10-1)*Parameters!$I$17) -> 1.1 | YC10: =IF(QG10<1,QG10,1+(QG10-1)*Parameters!$I$17) -> 1.1 | YD10: =IF(QH10<1,QH10,1+(QH10-1)*Parameters!$I$17) -> 1.1 | YE10: =IF(QI10<1,QI10,1+(QI10-1)*Parameters!$I$17) -> 1.1 | YF10: =IF(QJ10<1,QJ10,1+(QJ10-1)*Parameters!$I$17) -> 1.1 | YG10: =IF(QK10<1,QK10,1+(QK10-1)*Parameters!$I$17) -> 1.1 | YH10: =IF(QL10<1,QL10,1+(QL10-1)*Parameters!$I$17) -> 1.1 | YI10: =IF(QM10<1,QM10,1+(QM10-1)*Parameters!$I$17) -> 1.1 | YJ10: =IF(QN10<1,QN10,1+(QN10-1)*Parameters!$I$17) -> 1.1 | YK10: =IF(QO10<1,QO10,1+(QO10-1)*Parameters!$I$17) -> 1.1 | YL10: =IF(QP10<1,QP10,1+(QP10-1)*Parameters!$I$17) -> 1.1 | YM10: =IF(QQ10<1,QQ10,1+(QQ10-1)*Parameters!$I$17) -> 1.1 | YN10: =IF(QR10<1,QR10,1+(QR10-1)*Parameters!$I$17) -> 1.1 | YO10: =IF(QS10<1,QS10,1+(QS10-1)*Parameters!$I$17) -> 1.1 | YP10: =IF(QT10<1,QT10,1+(QT10-1)*Parameters!$I$17) -> 1.1 | YQ10: =IF(QU10<1,QU10,1+(QU10-1)*Parameters!$I$17) -> 1.1 | YR10: =IF(QV10<1,QV10,1+(QV10-1)*Parameters!$I$17) -> 1.1 | YS10: =IF(QW10<1,QW10,1+(QW10-1)*Parameters!$I$17) -> 1.1 | YT10: =IF(QX10<1,QX10,1+(QX10-1)*Parameters!$I$17) -> 1.1 | YU10: =IF(QY10<1,QY10,1+(QY10-1)*Parameters!$I$17) -> 1.1 | YV10: =IF(QZ10<1,QZ10,1+(QZ10-1)*Parameters!$I$17) -> 1.1 | YW10: =IF(RA10<1,RA10,1+(RA10-1)*Parameters!$I$17) -> 1.1 | YX10: =IF(RB10<1,RB10,1+(RB10-1)*Parameters!$I$17) -> 1.1 | YY10: =IF(RC10<1,RC10,1+(RC10-1)*Parameters!$I$17) -> 1.1 | YZ10: =IF(RD10<1,RD10,1+(RD10-1)*Parameters!$I$17) -> 1.1 | ZA10: =IF(RE10<1,RE10,1+(RE10-1)*Parameters!$I$17) -> 1.1 | ZB10: =IF(RF10<1,RF10,1+(RF10-1)*Parameters!$I$17) -> 1.1 | ZC10: =IF(RG10<1,RG10,1+(RG10-1)*Parameters!$I$17) -> 1.1 | ZD10: =IF(RH10<1,RH10,1+(RH10-1)*Parameters!$I$17) -> 1.1 | ZE10: =IF(RI10<1,RI10,1+(RI10-1)*Parameters!$I$17) -> 1.1 | ZF10: =IF(RJ10<1,RJ10,1+(RJ10-1)*Parameters!$I$17) -> 1.1 | ZG10: =IF(RK10<1,RK10,1+(RK10-1)*Parameters!$I$17) -> 1.1 | ZH10: =IF(RL10<1,RL10,1+(RL10-1)*Parameters!$I$17) -> 1.1 | ZI10: =IF(RM10<1,RM10,1+(RM10-1)*Parameters!$I$17) -> 1.1 | ZJ10: =IF(RN10<1,RN10,1+(RN10-1)*Parameters!$I$17) -> 1.1 | ZK10: =IF(RO10<1,RO10,1+(RO10-1)*Parameters!$I$17) -> 1.1 | ZL10: =IF(RP10<1,RP10,1+(RP10-1)*Parameters!$I$17) -> 1.1 | ZM10: =IF(RQ10<1,RQ10,1+(RQ10-1)*Parameters!$I$17) -> 1.1 | ZN10: =IF(RR10<1,RR10,1+(RR10-1)*Parameters!$I$17) -> 1.1 | ZO10: =IF(RS10<1,RS10,1+(RS10-1)*Parameters!$I$17) -> 1.1 | ZP10: =IF(RT10<1,RT10,1+(RT10-1)*Parameters!$I$17) -> 0 | ZQ10: =IF(RU10<1,RU10,1+(RU10-1)*Parameters!$I$17) -> 0 | ZR10: =IF(RV10<1,RV10,1+(RV10-1)*Parameters!$I$17) -> 0 | ZS10: =IF(RW10<1,RW10,1+(RW10-1)*Parameters!$I$17) -> 0 | ZT10: =IF(RX10<1,RX10,1+(RX10-1)*Parameters!$I$17) -> 0 | ZU10: =IF(RY10<1,RY10,1+(RY10-1)*Parameters!$I$17) -> 0 | ZV10: =IF(RZ10<1,RZ10,1+(RZ10-1)*Parameters!$I$17) -> 0 | ZW10: =IF(SA10<1,SA10,1+(SA10-1)*Parameters!$I$17) -> 0 | ZX10: =IF(SB10<1,SB10,1+(SB10-1)*Parameters!$I$17) -> 0 | ZY10: =IF(SC10<1,SC10,1+(SC10-1)*Parameters!$I$17) -> 0 | ZZ10: =IF(SD10<1,SD10,1+(SD10-1)*Parameters!$I$17) -> 0 | AAA10: =IF(SE10<1,SE10,1+(SE10-1)*Parameters!$I$17) -> 0 | AAB10: =IF(SF10<1,SF10,1+(SF10-1)*Parameters!$I$17) -> 0 | AAC10: =IF(SG10<1,SG10,1+(SG10-1)*Parameters!$I$17) -> 0 | AAD10: =IF(SH10<1,SH10,1+(SH10-1)*Parameters!$I$17) -> 0 | AAE10: =IF(SI10<1,SI10,1+(SI10-1)*Parameters!$I$17) -> 0 | AAF10: =IF(SJ10<1,SJ10,1+(SJ10-1)*Parameters!$I$17) -> 0 | AAG10: =IF(SK10<1,SK10,1+(SK10-1)*Parameters!$I$17) -> 0 | AAH10: =IF(SL10<1,SL10,1+(SL10-1)*Parameters!$I$17) -> 0 | AAI10: =IF(SM10<1,SM10,1+(SM10-1)*Parameters!$I$17) -> 0 | AAJ10: =IF(SN10<1,SN10,1+(SN10-1)*Parameters!$I$17) -> 0 | AAK10: =IF(SO10<1,SO10,1+(SO10-1)*Parameters!$I$17) -> 0 | AAL10: =IF(SP10<1,SP10,1+(SP10-1)*Parameters!$I$17) -> 0 | AAM10: =IF(SQ10<1,SQ10,1+(SQ10-1)*Parameters!$I$17) -> 0 | AAN10: =IF(SR10<1,SR10,1+(SR10-1)*Parameters!$I$17) -> 0 | AAO10: =IF(SS10<1,SS10,1+(SS10-1)*Parameters!$I$17) -> 0 | AAP10: =IF(ST10<1,ST10,1+(ST10-1)*Parameters!$I$17) -> 0 | AAQ10: =IF(SU10<1,SU10,1+(SU10-1)*Parameters!$I$17) -> 0 | AAR10: =IF(SV10<1,SV10,1+(SV10-1)*Parameters!$I$17) -> 0 | AAS10: =IF(SW10<1,SW10,1+(SW10-1)*Parameters!$I$17) -> 0 | AAT10: =IF(SX10<1,SX10,1+(SX10-1)*Parameters!$I$17) -> 0 | AAV10: =(OFFSET(Parameters!$I$107,(J10-1)*9+5,($F10-1))*(VLOOKUP($H10+AAV$9,'Age Dependencies'!$E$8:$H$208,3,0))) -> 0 | AAW10: =(OFFSET(Parameters!$I$107,(K10-1)*9+5,($F10-1))*(VLOOKUP($H10+AAW$9,'Age Dependencies'!$E$8:$H$208,3,0))) -> 0 | AAX10: =(OFFSET(Parameters!$I$107,(L10-1)*9+5,($F10-1))*(VLOOKUP($H10+AAX$9,'Age Dependencies'!$E$8:$H$208,3,0))) -> 0 | AAY10: =(OFFSET(Parameters!$I$107,(M10-1)*9+5,($F10-1))*(VLOOKUP($H10+AAY$9,'Age Dependencies'!$E$8:$H$208,3,0))) -> 0 | AAZ10: =(OFFSET(Parameters!$I$107,(N10-1)*9+5,($F10-1))*(VLOOKUP($H10+AAZ$9,'Age Dependencies'!$E$8:$H$208,3,0))) -> 0 | ABA10: =(OFFSET(Parameters!$I$107,(O10-1)*9+5,($F10-1))*(VLOOKUP($H10+ABA$9,'Age Dependencies'!$E$8:$H$208,3,0))) -> 0 | ABB10: =(OFFSET(Parameters!$I$107,(P10-1)*9+5,($F10-1))*(VLOOKUP($H10+ABB$9,'Age Dependencies'!$E$8:$H$208,3,0))) -> 0 | ABC10: =(OFFSET(Parameters!$I$107,(Q10-1)*9+5,($F10-1))*(VLOOKUP($H10+ABC$9,'Age Dependencies'!$E$8:$H$208,3,0))) -> 0 | ABD10: =(OFFSET(Parameters!$I$107,(R10-1)*9+5,($F10-1))*(VLOOKUP($H10+ABD$9,'Age Dependencies'!$E$8:$H$208,3,0))) -> 0 | ABE10: =(OFFSET(Parameters!$I$107,(S10-1)*9+5,($F10-1))*(VLOOKUP($H10+ABE$9,'Age Dependencies'!$E$8:$H$208,3,0))) -> 0 | ABF10: =(OFFSET(Parameters!$I$107,(T10-1)*9+5,($F10-1))*(VLOOKUP($H10+ABF$9,'Age Dependencies'!$E$8:$H$208,3,0))) -> 0 | ABG10: =(OFFSET(Parameters!$I$107,(U10-1)*9+5,($F10-1))*(VLOOKUP($H10+ABG$9,'Age Dependencies'!$E$8:$H$208,3,0))) -> 0 | ABH10: =(OFFSET(Parameters!$I$107,(V10-1)*9+5,($F10-1))*(VLOOKUP($H10+ABH$9,'Age Dependencies'!$E$8:$H$208,3,0))) -> 0 | ABI10: =(OFFSET(Parameters!$I$107,(W10-1)*9+5,($F10-1))*(VLOOKUP($H10+ABI$9,'Age Dependencies'!$E$8:$H$208,3,0))) -> 0 | ABJ10: =(OFFSET(Parameters!$I$107,(X10-1)*9+5,($F10-1))*(VLOOKUP($H10+ABJ$9,'Age Dependencies'!$E$8:$H$208,3,0))) -> 0 | ABK10: =(OFFSET(Parameters!$I$107,(Y10-1)*9+5,($F10-1))*(VLOOKUP($H10+ABK$9,'Age Dependencies'!$E$8:$H$208,3,0))) -> 0 | ABL10: =(OFFSET(Parameters!$I$107,(Z10-1)*9+5,($F10-1))*(VLOOKUP($H10+ABL$9,'Age Dependencies'!$E$8:$H$208,3,0))) -> 0 | ABM10: =(OFFSET(Parameters!$I$107,(AA10-1)*9+5,($F10-1))*(VLOOKUP($H10+ABM$9,'Age Dependencies'!$E$8:$H$208,3,0))) -> 0 | ABN10: =(OFFSET(Parameters!$I$107,(AB10-1)*9+5,($F10-1))*(VLOOKUP($H10+ABN$9,'Age Dependencies'!$E$8:$H$208,3,0))) -> 0 | ABO10: =(OFFSET(Parameters!$I$107,(AC10-1)*9+5,($F10-1))*(VLOOKUP($H10+ABO$9,'Age Dependencies'!$E$8:$H$208,3,0))) -> 0 | ABP10: =(OFFSET(Parameters!$I$107,(AD10-1)*9+5,($F10-1))*(VLOOKUP($H10+ABP$9,'Age Dependencies'!$E$8:$H$208,3,0))) -> 0 | ABQ10: =(OFFSET(Parameters!$I$107,(AE10-1)*9+5,($F10-1))*(VLOOKUP($H10+ABQ$9,'Age Dependencies'!$E$8:$H$208,3,0))) -> 0 | ABR10: =(OFFSET(Parameters!$I$107,(AF10-1)*9+5,($F10-1))*(VLOOKUP($H10+ABR$9,'Age Dependencies'!$E$8:$H$208,3,0))) -> 0 | ABS10: =(OFFSET(Parameters!$I$107,(AG10-1)*9+5,($F10-1))*(VLOOKUP($H10+ABS$9,'Age Dependencies'!$E$8:$H$208,3,0))) -> 0 | ABT10: =(OFFSET(Parameters!$I$107,(AH10-1)*9+5,($F10-1))*(VLOOKUP($H10+ABT$9,'Age Dependencies'!$E$8:$H$208,3,0))) -> 0 | ABU10: =(OFFSET(Parameters!$I$107,(AI10-1)*9+5,($F10-1))*(VLOOKUP($H10+ABU$9,'Age Dependencies'!$E$8:$H$208,3,0))) -> 0 | ABV10: =(OFFSET(Parameters!$I$107,(AJ10-1)*9+5,($F10-1))*(VLOOKUP($H10+ABV$9,'Age Dependencies'!$E$8:$H$208,3,0))) -> 0 | ABW10: =(OFFSET(Parameters!$I$107,(AK10-1)*9+5,($F10-1))*(VLOOKUP($H10+ABW$9,'Age Dependencies'!$E$8:$H$208,3,0))) -> 0 | ABX10: =(OFFSET(Parameters!$I$107,(AL10-1)*9+5,($F10-1))*(VLOOKUP($H10+ABX$9,'Age Dependencies'!$E$8:$H$208,3,0))) -> 0 | ABY10: =(OFFSET(Parameters!$I$107,(AM10-1)*9+5,($F10-1))*(VLOOKUP($H10+ABY$9,'Age Dependencies'!$E$8:$H$208,3,0))) -> 0 | ABZ10: =(OFFSET(Parameters!$I$107,(AN10-1)*9+5,($F10-1))*(VLOOKUP($H10+ABZ$9,'Age Dependencies'!$E$8:$H$208,3,0))) -> 0 | ACA10: =(OFFSET(Parameters!$I$107,(AO10-1)*9+5,($F10-1))*(VLOOKUP($H10+ACA$9,'Age Dependencies'!$E$8:$H$208,3,0))) -> 0 | ACB10: =(OFFSET(Parameters!$I$107,(AP10-1)*9+5,($F10-1))*(VLOOKUP($H10+ACB$9,'Age Dependencies'!$E$8:$H$208,3,0))) -> 0 | ACC10: =(OFFSET(Parameters!$I$107,(AQ10-1)*9+5,($F10-1))*(VLOOKUP($H10+ACC$9,'Age Dependencies'!$E$8:$H$208,3,0))) -> 0 | ACD10: =(OFFSET(Parameters!$I$107,(AR10-1)*9+5,($F10-1))*(VLOOKUP($H10+ACD$9,'Age Dependencies'!$E$8:$H$208,3,0))) -> 0 | ACE10: =(OFFSET(Parameters!$I$107,(AS10-1)*9+5,($F10-1))*(VLOOKUP($H10+ACE$9,'Age Dependencies'!$E$8:$H$208,3,0))) -> 0 | ACF10: =(OFFSET(Parameters!$I$107,(AT10-1)*9+5,($F10-1))*(VLOOKUP($H10+ACF$9,'Age Dependencies'!$E$8:$H$208,3,0))) -> 0 | ACG10: =(OFFSET(Parameters!$I$107,(AU10-1)*9+5,($F10-1))*(VLOOKUP($H10+ACG$9,'Age Dependencies'!$E$8:$H$208,3,0))) -> 0 | ACH10: =(OFFSET(Parameters!$I$107,(AV10-1)*9+5,($F10-1))*(VLOOKUP($H10+ACH$9,'Age Dependencies'!$E$8:$H$208,3,0))) -> 0 | ACI10: =(OFFSET(Parameters!$I$107,(AW10-1)*9+5,($F10-1))*(VLOOKUP($H10+ACI$9,'Age Dependencies'!$E$8:$H$208,3,0))) -> 0 | ACJ10: =(OFFSET(Parameters!$I$107,(AX10-1)*9+5,($F10-1))*(VLOOKUP($H10+ACJ$9,'Age Dependencies'!$E$8:$H$208,3,0))) -> 0 | ACK10: =(OFFSET(Parameters!$I$107,(AY10-1)*9+5,($F10-1))*(VLOOKUP($H10+ACK$9,'Age Dependencies'!$E$8:$H$208,3,0))) -> 0 | ACL10: =(OFFSET(Parameters!$I$107,(AZ10-1)*9+5,($F10-1))*(VLOOKUP($H10+ACL$9,'Age Dependencies'!$E$8:$H$208,3,0))) -> 0 | ACM10: =(OFFSET(Parameters!$I$107,(BA10-1)*9+5,($F10-1))*(VLOOKUP($H10+ACM$9,'Age Dependencies'!$E$8:$H$208,3,0))) -> 0 | ACN10: =(OFFSET(Parameters!$I$107,(BB10-1)*9+5,($F10-1))*(VLOOKUP($H10+ACN$9,'Age Dependencies'!$E$8:$H$208,3,0))) -> 0 | ACO10: =(OFFSET(Parameters!$I$107,(BC10-1)*9+5,($F10-1))*(VLOOKUP($H10+ACO$9,'Age Dependencies'!$E$8:$H$208,3,0))) -> 0 | ACP10: =(OFFSET(Parameters!$I$107,(BD10-1)*9+5,($F10-1))*(VLOOKUP($H10+ACP$9,'Age Dependencies'!$E$8:$H$208,3,0))) -> 0 | ACQ10: =(OFFSET(Parameters!$I$107,(BE10-1)*9+5,($F10-1))*(VLOOKUP($H10+ACQ$9,'Age Dependencies'!$E$8:$H$208,3,0))) -> 0 | ACR10: =(OFFSET(Parameters!$I$107,(BF10-1)*9+5,($F10-1))*(VLOOKUP($H10+ACR$9,'Age Dependencies'!$E$8:$H$208,3,0))) -> 0 | ACS10: =(OFFSET(Parameters!$I$107,(BG10-1)*9+5,($F10-1))*(VLOOKUP($H10+ACS$9,'Age Dependencies'!$E$8:$H$208,3,0))) -> 0 | ACT10: =(OFFSET(Parameters!$I$107,(BH10-1)*9+5,($F10-1))*(VLOOKUP($H10+ACT$9,'Age Dependencies'!$E$8:$H$208,3,0))) -> 0 | ACU10: =(OFFSET(Parameters!$I$107,(BI10-1)*9+5,($F10-1))*(VLOOKUP($H10+ACU$9,'Age Dependencies'!$E$8:$H$208,3,0))) -> 0 | ACV10: =(OFFSET(Parameters!$I$107,(BJ10-1)*9+5,($F10-1))*(VLOOKUP($H10+ACV$9,'Age Dependencies'!$E$8:$H$208,3,0))) -> 0 | ACW10: =(OFFSET(Parameters!$I$107,(BK10-1)*9+5,($F10-1))*(VLOOKUP($H10+ACW$9,'Age Dependencies'!$E$8:$H$208,3,0))) -> 0 | ACX10: =(OFFSET(Parameters!$I$107,(BL10-1)*9+5,($F10-1))*(VLOOKUP($H10+ACX$9,'Age Dependencies'!$E$8:$H$208,3,0))) -> 0 | ACY10: =(OFFSET(Parameters!$I$107,(BM10-1)*9+5,($F10-1))*(VLOOKUP($H10+ACY$9,'Age Dependencies'!$E$8:$H$208,3,0))) -> 0 | ACZ10: =(OFFSET(Parameters!$I$107,(BN10-1)*9+5,($F10-1))*(VLOOKUP($H10+ACZ$9,'Age Dependencies'!$E$8:$H$208,3,0))) -> 0 | ADA10: =(OFFSET(Parameters!$I$107,(BO10-1)*9+5,($F10-1))*(VLOOKUP($H10+ADA$9,'Age Dependencies'!$E$8:$H$208,3,0))) -> 0 | ADB10: =(OFFSET(Parameters!$I$107,(BP10-1)*9+5,($F10-1))*(VLOOKUP($H10+ADB$9,'Age Dependencies'!$E$8:$H$208,3,0))) -> 0 | ADC10: =(OFFSET(Parameters!$I$107,(BQ10-1)*9+5,($F10-1))*(VLOOKUP($H10+ADC$9,'Age Dependencies'!$E$8:$H$208,3,0))) -> 0 | ADD10: =(OFFSET(Parameters!$I$107,(BR10-1)*9+5,($F10-1))*(VLOOKUP($H10+ADD$9,'Age Dependencies'!$E$8:$H$208,3,0))) -> 0 | ADE10: =(OFFSET(Parameters!$I$107,(BS10-1)*9+5,($F10-1))*(VLOOKUP($H10+ADE$9,'Age Dependencies'!$E$8:$H$208,3,0))) -> 0 | ADF10: =(OFFSET(Parameters!$I$107,(BT10-1)*9+5,($F10-1))*(VLOOKUP($H10+ADF$9,'Age Dependencies'!$E$8:$H$208,3,0))) -> 0 | ADG10: =(OFFSET(Parameters!$I$107,(BU10-1)*9+5,($F10-1))*(VLOOKUP($H10+ADG$9,'Age Dependencies'!$E$8:$H$208,3,0))) -> 0 | ADH10: =(OFFSET(Parameters!$I$107,(BV10-1)*9+5,($F10-1))*(VLOOKUP($H10+ADH$9,'Age Dependencies'!$E$8:$H$208,3,0))) -> 0 | ADI10: =(OFFSET(Parameters!$I$107,(BW10-1)*9+5,($F10-1))*(VLOOKUP($H10+ADI$9,'Age Dependencies'!$E$8:$H$208,3,0))) -> 0 | ADJ10: =(OFFSET(Parameters!$I$107,(BX10-1)*9+5,($F10-1))*(VLOOKUP($H10+ADJ$9,'Age Dependencies'!$E$8:$H$208,3,0))) -> 0 | ADK10: =(OFFSET(Parameters!$I$107,(BY10-1)*9+5,($F10-1))*(VLOOKUP($H10+ADK$9,'Age Dependencies'!$E$8:$H$208,3,0))) -> 0 | ADL10: =(OFFSET(Parameters!$I$107,(BZ10-1)*9+5,($F10-1))*(VLOOKUP($H10+ADL$9,'Age Dependencies'!$E$8:$H$208,3,0))) -> 0 | ADM10: =(OFFSET(Parameters!$I$107,(CA10-1)*9+5,($F10-1))*(VLOOKUP($H10+ADM$9,'Age Dependencies'!$E$8:$H$208,3,0))) -> 0 | ADN10: =(OFFSET(Parameters!$I$107,(CB10-1)*9+5,($F10-1))*(VLOOKUP($H10+ADN$9,'Age Dependencies'!$E$8:$H$208,3,0))) -> 0 | ADO10: =(OFFSET(Parameters!$I$107,(CC10-1)*9+5,($F10-1))*(VLOOKUP($H10+ADO$9,'Age Dependencies'!$E$8:$H$208,3,0))) -> 0 | ADP10: =(OFFSET(Parameters!$I$107,(CD10-1)*9+5,($F10-1))*(VLOOKUP($H10+ADP$9,'Age Dependencies'!$E$8:$H$208,3,0))) -> 0 | ADQ10: =(OFFSET(Parameters!$I$107,(CE10-1)*9+5,($F10-1))*(VLOOKUP($H10+ADQ$9,'Age Dependencies'!$E$8:$H$208,3,0))) -> 0 | ADR10: =(OFFSET(Parameters!$I$107,(CF10-1)*9+5,($F10-1))*(VLOOKUP($H10+ADR$9,'Age Dependencies'!$E$8:$H$208,3,0))) -> 0 | ADS10: =(OFFSET(Parameters!$I$107,(CG10-1)*9+5,($F10-1))*(VLOOKUP($H10+ADS$9,'Age Dependencies'!$E$8:$H$208,3,0))) -> 0 | ADT10: =(OFFSET(Parameters!$I$107,(CH10-1)*9+5,($F10-1))*(VLOOKUP($H10+ADT$9,'Age Dependencies'!$E$8:$H$208,3,0))) -> 0 | ADU10: =(OFFSET(Parameters!$I$107,(CI10-1)*9+5,($F10-1))*(VLOOKUP($H10+ADU$9,'Age Dependencies'!$E$8:$H$208,3,0))) -> 0 | ADV10: =(OFFSET(Parameters!$I$107,(CJ10-1)*9+5,($F10-1))*(VLOOKUP($H10+ADV$9,'Age Dependencies'!$E$8:$H$208,3,0))) -> 0 | ADW10: =(OFFSET(Parameters!$I$107,(CK10-1)*9+5,($F10-1))*(VLOOKUP($H10+ADW$9,'Age Dependencies'!$E$8:$H$208,3,0))) -> 0 | ADX10: =(OFFSET(Parameters!$I$107,(CL10-1)*9+5,($F10-1))*(VLOOKUP($H10+ADX$9,'Age Dependencies'!$E$8:$H$208,3,0))) -> 0 | ADY10: =(OFFSET(Parameters!$I$107,(CM10-1)*9+5,($F10-1))*(VLOOKUP($H10+ADY$9,'Age Dependencies'!$E$8:$H$208,3,0))) -> 0 | ADZ10: =(OFFSET(Parameters!$I$107,(CN10-1)*9+5,($F10-1))*(VLOOKUP($H10+ADZ$9,'Age Dependencies'!$E$8:$H$208,3,0))) -> 0 | AEA10: =(OFFSET(Parameters!$I$107,(CO10-1)*9+5,($F10-1))*(VLOOKUP($H10+AEA$9,'Age Dependencies'!$E$8:$H$208,3,0))) -> 0 | AEB10: =(OFFSET(Parameters!$I$107,(CP10-1)*9+5,($F10-1))*(VLOOKUP($H10+AEB$9,'Age Dependencies'!$E$8:$H$208,3,0))) -> 0 | AEC10: =(OFFSET(Parameters!$I$107,(CQ10-1)*9+5,($F10-1))*(VLOOKUP($H10+AEC$9,'Age Dependencies'!$E$8:$H$208,3,0))) -> 0 | AED10: =(OFFSET(Parameters!$I$107,(CR10-1)*9+5,($F10-1))*(VLOOKUP($H10+AED$9,'Age Dependencies'!$E$8:$H$208,3,0))) -> 0 | AEE10: =(OFFSET(Parameters!$I$107,(CS10-1)*9+5,($F10-1))*(VLOOKUP($H10+AEE$9,'Age Dependencies'!$E$8:$H$208,3,0))) -> 0 | AEF10: =(OFFSET(Parameters!$I$107,(CT10-1)*9+5,($F10-1))*(VLOOKUP($H10+AEF$9,'Age Dependencies'!$E$8:$H$208,3,0))) -> 0 | AEG10: =(OFFSET(Parameters!$I$107,(CU10-1)*9+5,($F10-1))*(VLOOKUP($H10+AEG$9,'Age Dependencies'!$E$8:$H$208,3,0))) -> 0 | AEH10: =(OFFSET(Parameters!$I$107,(CV10-1)*9+5,($F10-1))*(VLOOKUP($H10+AEH$9,'Age Dependencies'!$E$8:$H$208,3,0))) -> 0 | AEI10: =(OFFSET(Parameters!$I$107,(CW10-1)*9+5,($F10-1))*(VLOOKUP($H10+AEI$9,'Age Dependencies'!$E$8:$H$208,3,0))) -> 0 | AEJ10: =(OFFSET(Parameters!$I$107,(CX10-1)*9+5,($F10-1))*(VLOOKUP($H10+AEJ$9,'Age Dependencies'!$E$8:$H$208,3,0))) -> 0 | AEK10: =(OFFSET(Parameters!$I$107,(CY10-1)*9+5,($F10-1))*(VLOOKUP($H10+AEK$9,'Age Dependencies'!$E$8:$H$208,3,0))) -> 0 | AEL10: =(OFFSET(Parameters!$I$107,(CZ10-1)*9+5,($F10-1))*(VLOOKUP($H10+AEL$9,'Age Dependencies'!$E$8:$H$208,3,0))) -> 0 | AEM10: =(OFFSET(Parameters!$I$107,(DA10-1)*9+5,($F10-1))*(VLOOKUP($H10+AEM$9,'Age Dependencies'!$E$8:$H$208,3,0))) -> 0 | AEN10: =(OFFSET(Parameters!$I$107,(DB10-1)*9+5,($F10-1))*(VLOOKUP($H10+AEN$9,'Age Dependencies'!$E$8:$H$208,3,0))) -> 0 | AEO10: =(OFFSET(Parameters!$I$107,(DC10-1)*9+5,($F10-1))*(VLOOKUP($H10+AEO$9,'Age Dependencies'!$E$8:$H$208,3,0))) -> 0 | AEP10: =(OFFSET(Parameters!$I$107,(DD10-1)*9+5,($F10-1))*(VLOOKUP($H10+AEP$9,'Age Dependencies'!$E$8:$H$208,3,0))) -> 0 | AEQ10: =(OFFSET(Parameters!$I$107,(DE10-1)*9+5,($F10-1))*(VLOOKUP($H10+AEQ$9,'Age Dependencies'!$E$8:$H$208,3,0))) -> 0 | AER10: =(OFFSET(Parameters!$I$107,(DF10-1)*9+5,($F10-1))*(VLOOKUP($H10+AER$9,'Age Dependencies'!$E$8:$H$208,3,0))) -> 0 | AET10: =SUM(LD10:OZ10) -> 751515.1765 | AEU10: =SUM(PB10:SX10) -> 83.66 | AEV10: =SUM(AAV10:AER10)+AET10 -> 751515.1765 | AEW10: =SUM(SZ10:WV10) -> 69.86 | AEX10: =SUM(WX10:AAT10) -> 76.76 | AEY10: =COUNTIF(J10:DF10,"<>1") -> 70 | AEZ10: =SUMPRODUCT(DH10:HD10,LD10:OZ10) -> 275901.4712 | AFA10: =SUMPRODUCT(HF10:LB10,PB10:SX10) -> 31.11415841 | AFB10: =SUMPRODUCT(DH10:HD10,AAV10:AER10)+AEZ10 -> 275901.4712 | AFC10: =SUMPRODUCT(HF10:LB10,SZ10:WV10) -> 26.07179868 | AFD10: =SUMPRODUCT(HF10:LB10,WX10:AAT10) -> 28.59297854 | AFF10: =AFA10-'Control Trace'!AFA10 -> 9.339111988 | AFG10: =IF(AFF10<0,1,0) -> 0 | AFH10: =_xlfn.RANK.AVG(AFA10,$AFA$10:$AFA$109,1) -> 59 | AFI10: =IF(AFH10<COUNT(AFH:AFH)*10%,AFA10,"") ->  | AFJ10: =LINEST(AFA10:AFA109,AFH10:AFH109) -> 0.06141630225 | AFK10: =AVERAGE(AFA10:AFA109)/SUM(AFA10:AFA109) -> 0.01 | AFL10: =SUMIF(AFH:AFH,"<="&E10,AFA:AFA)/SUM(AFA:AFA) -> 0.005876822997 | AFM10: =AFK10-AFL10 -> 0.004123177003
